{"text_format":"1","workbook":"xlsx","n_sheets":15,"sheets":["Instrukcija","Sakuma lapa","Gramatiņas dati","Darbnespējas lapas","VSAOI data","VSAOI transakcijas","Vidējas likmes","Zinas par DN","VSAOI vertikāli","VSAOI horizontāli","VSAOI pa darbiniekiem","Ienākumi pa gruppam - Alga","Ienākumi pa gruppam - st.likme","Format","Tiesibas"],"not_rendered":{"charts":0,"images":6,"macros":1,"external_links":0,"defined_names":16,"comments":5,"pivot_tables":2},"unopened":[],"bounds":{"document_bytes":16777216,"sheet_cells":100000,"rows_first":2000,"rows_last":500,"rows_between":2000,"halvings":0,"cell_chars":16384,"cell_head_chars":4096},"cells_cut":0,"cells_raw":0,"read":"whole","date_system":"1900"}

{"sheet":"Instrukcija","index":0,"n_rows":68,"n_cols":4,"rows_kept":68,"cut":false,"hidden":false,"merged":[[67,1,67,17],[29,1,29,17],[5,1,5,17],[46,1,46,17],[1,2,1,8],[2,3,2,9],[3,3,3,9]]}
[]
[null,"Apraksts:","https://exceldarbariki.mozello.lv/produkti/vsaoi/"]
[null,"Kā ieslēgt makrosus:",null,"https://exceldarbariki.mozello.lv/produkti/instrukcijas/"]
[null,"Kā atbloķēt makrosus:",null,"https://exceldarbariki.mozello.lv/produkti/ka-atbloket-makrosus/"]
[]
[null,"VSAOI deklarācijas"]
[]
[]
[]
[]
[]
[]
[]
[]
[]
[]
[]
[]
[]
[]
[]
[]
[]
[]
[]
[]
[]
[]
[]
[null,"Algas nodokļa grāmatiņas"]
[null,"Atslkaite nepieciešama par visu parskata periodu"]
[]
[]
[]
[]
[]
[]
[]
[]
[]
[]
[]
[]
[]
[]
[]
[null,"Darbinieku darbnespējas lapas"]
[null,"Atslkaite nepieciešama par visu parskata periodu"]
[]
[]
[]
[]
[]
[]
[]
[]
[]
[]
[]
[]
[]
[]
[]
[]
[]
[]
[]
[null,"Pārskats par darbinieku vidējām stundas likmēm"]

{"sheet":"Sakuma lapa","index":1,"n_rows":30,"n_cols":18,"rows_kept":30,"cut":false,"hidden":false,"merged":[[27,7,27,9],[14,7,14,8],[3,1,3,3],[7,1,7,3],[24,7,24,9],[15,1,15,3],[12,7,12,8],[22,7,22,9],[20,7,20,9],[21,7,21,9],[19,7,19,9],[17,2,17,3],[3,7,3,9],[11,1,11,3],[29,14,29,17],[1,7,1,9],[2,7,2,9],[5,7,5,9],[13,7,13,8],[15,7,15,8],[6,7,6,9],[11,15,11,16],[7,7,7,8],[7,9,7,10],[9,7,9,8],[10,7,10,8],[11,7,11,8],[26,7,26,9],[18,7,18,9],[28,7,28,9]]}
[]
[null,null,null,null,null,null,null,"Decimālais atdalītais",null,null,{"$f":"MID(1/10,2,1)","v":"."}]
[null,null,null,null,null,null,null,"Tūkstošu atdalītais"]
[null,"Nolasītais periods",null,null,null,null,null,"VSAOI kopsavilkuma izskats",null,null,"Horizontāli"]
[null,null,null,null,null,null,null,null,null,null,null,null,null,"Nodokļu aprēķini var nesakrīt"]
[null,null,null,null,null,null,null,"IIN ar nodokļu grāmatiņu (2018-2024)",null,null,0.2,null,null," - ja ir parejošais atvaļinājums, kad IIN samaksa uzreiz, bet Bruto alga sadalīta 2 mēnešos"]
[null,null,null,null,null,null,null,"IIN bez nodokļu grāmatiņas (2018-2024)",null,null,0.23,null,null," - ja algas uzskaites programmā nav precīzi dati no EDS par algas grāmatiņām un slimības lapām B"]
[null,"Nolasītais periods",null,null,null,null,null,"Salīdzināt IIN pret",null,"pārskata mēnesi",null,null,null,"- neprecizitāte var būt dēļ manuālas kļūdas"]
[null,null,null,null,null,null,null,null,null,null,null,null,null,"- neprecizitāte var būt ja VG dati netiek regulāri sinhronizēti ar EDS"]
[null,null,null,null,null,null,null,"VSAOI tips",null,"DN","DD"]
[null,null,null,null,null,null,null,"Standarta",null,0.105,0.2359]
[null,"Nolasītais periods",null,null,null,null,null,"Pensionārs",null,9.2499999999999999E-2,0.2077,null,null,null,null,"Minimālā alga",null,{"$f":"SUMIFS(Format!$I$29:$I$100,Format!$D$29:$D$100,YEAR(N15)&\".\"&RIGHT(\"0\"&MONTH(N15),2))","v":0}]
[null,null,null,null,null,null,null,"Izdienas pensija; Invalīds",null,9.7600000000000006E-2,0.21940000000000001]
[null,null,null,null,null,null,null,"BASIL Standarta",null,8.8700000000000001E-2,0.1993,null,null,"Datums","DD","DST","VidSt/D","Min. Likme"]
[null,null,null,null,null,null,null,"BASIL Izdienas pensija",null,7.6700000000000004E-2,0.1724,null,null,{"$f":"E16","v":"00:00:00"},{"$f":"SUMIFS(Format!$E$29:$E$100,Format!$D$29:$D$100,YEAR(N15)&\".\"&RIGHT(\"0\"&MONTH(N15),2))","v":0},{"$f":"SUMIFS(Format!$F$29:$F$100,Format!$D$29:$D$100,YEAR(N15)&\".\"&RIGHT(\"0\"&MONTH(N15),2))","v":0},{"$f":"IFERROR(P15/O15,0)","v":0},{"$f":"SUMIFS(Format!$H$29:$H$100,Format!$D$29:$D$100,YEAR(N15)&\".\"&RIGHT(\"0\"&MONTH(N15),2))","v":0}]
[null,"Nolasītais periods",null,null,null,null,null,"Autoratlīdzību saņēmēji",null,0,0.1,null,null,{"$f":"DATE(YEAR(N15),MONTH(N15)+2,0)","v":60},{"$f":"SUMIFS(Format!$E$29:$E$100,Format!$D$29:$D$100,YEAR(N16)&\".\"&RIGHT(\"0\"&MONTH(N16),2))","v":0},{"$f":"SUMIFS(Format!$F$29:$F$100,Format!$D$29:$D$100,YEAR(N16)&\".\"&RIGHT(\"0\"&MONTH(N16),2))","v":0},{"$f":"IFERROR(P16/O16,0)","v":0},{"$f":"SUMIFS(Format!$H$29:$H$100,Format!$D$29:$D$100,YEAR(N16)&\".\"&RIGHT(\"0\"&MONTH(N16),2))","v":0}]
[null,null,null,null,null,null,null,null,null,null,null,null,null,{"$f":"DATE(YEAR(N16),MONTH(N16)+2,0)","v":"1900-03-31"},{"$f":"SUMIFS(Format!$E$29:$E$100,Format!$D$29:$D$100,YEAR(N17)&\".\"&RIGHT(\"0\"&MONTH(N17),2))","v":0},{"$f":"SUMIFS(Format!$F$29:$F$100,Format!$D$29:$D$100,YEAR(N17)&\".\"&RIGHT(\"0\"&MONTH(N17),2))","v":0},0,{"$f":"SUMIFS(Format!$H$29:$H$100,Format!$D$29:$D$100,YEAR(N17)&\".\"&RIGHT(\"0\"&MONTH(N17),2))","v":0}]
[null,"Gads","RegNr.",null,"Mēnesis","DokId",null,null,null,null,null,null,null,"1900-04-30",{"$f":"SUMIFS(Format!$E$29:$E$100,Format!$D$29:$D$100,YEAR(N18)&\".\"&RIGHT(\"0\"&MONTH(N18),2))","v":0},{"$f":"SUMIFS(Format!$F$29:$F$100,Format!$D$29:$D$100,YEAR(N18)&\".\"&RIGHT(\"0\"&MONTH(N18),2))","v":0},0,{"$f":"SUMIFS(Format!$H$29:$H$100,Format!$D$29:$D$100,YEAR(N18)&\".\"&RIGHT(\"0\"&MONTH(N18),2))","v":0}]
[null,null,null,null,null,null,null,"Atvieglojumi par 1 apgādājamo",null,null,250,null,null,"1900-05-31",{"$f":"SUMIFS(Format!$E$29:$E$100,Format!$D$29:$D$100,YEAR(N19)&\".\"&RIGHT(\"0\"&MONTH(N19),2))","v":0},{"$f":"SUMIFS(Format!$F$29:$F$100,Format!$D$29:$D$100,YEAR(N19)&\".\"&RIGHT(\"0\"&MONTH(N19),2))","v":0},0,{"$f":"SUMIFS(Format!$H$29:$H$100,Format!$D$29:$D$100,YEAR(N19)&\".\"&RIGHT(\"0\"&MONTH(N19),2))","v":0}]
[null,null,null,null,null,null,null,"Atvieglojumi represētiem",null,null,154,null,null,"1900-06-30",{"$f":"SUMIFS(Format!$E$29:$E$100,Format!$D$29:$D$100,YEAR(N20)&\".\"&RIGHT(\"0\"&MONTH(N20),2))","v":0},{"$f":"SUMIFS(Format!$F$29:$F$100,Format!$D$29:$D$100,YEAR(N20)&\".\"&RIGHT(\"0\"&MONTH(N20),2))","v":0},0,{"$f":"SUMIFS(Format!$H$29:$H$100,Format!$D$29:$D$100,YEAR(N20)&\".\"&RIGHT(\"0\"&MONTH(N20),2))","v":0}]
[null,null,null,null,null,null,null,"Atvieglojumi 1. grupas invalidiem",null,null,154,null,null,"1900-07-31",{"$f":"SUMIFS(Format!$E$29:$E$100,Format!$D$29:$D$100,YEAR(N21)&\".\"&RIGHT(\"0\"&MONTH(N21),2))","v":0},{"$f":"SUMIFS(Format!$F$29:$F$100,Format!$D$29:$D$100,YEAR(N21)&\".\"&RIGHT(\"0\"&MONTH(N21),2))","v":0},0,{"$f":"SUMIFS(Format!$H$29:$H$100,Format!$D$29:$D$100,YEAR(N21)&\".\"&RIGHT(\"0\"&MONTH(N21),2))","v":0}]
[null,null,null,null,null,null,null,"Atvieglojumi 2. grupas invalidiem",null,null,154,null,null,"1900-08-31",{"$f":"SUMIFS(Format!$E$29:$E$100,Format!$D$29:$D$100,YEAR(N22)&\".\"&RIGHT(\"0\"&MONTH(N22),2))","v":0},{"$f":"SUMIFS(Format!$F$29:$F$100,Format!$D$29:$D$100,YEAR(N22)&\".\"&RIGHT(\"0\"&MONTH(N22),2))","v":0},0,{"$f":"SUMIFS(Format!$H$29:$H$100,Format!$D$29:$D$100,YEAR(N22)&\".\"&RIGHT(\"0\"&MONTH(N22),2))","v":0}]
[null,null,null,null,null,null,null,"Atvieglojumi 3. grupas invalidiem",null,null,120,null,null,"1900-09-30",{"$f":"SUMIFS(Format!$E$29:$E$100,Format!$D$29:$D$100,YEAR(N23)&\".\"&RIGHT(\"0\"&MONTH(N23),2))","v":0},{"$f":"SUMIFS(Format!$F$29:$F$100,Format!$D$29:$D$100,YEAR(N23)&\".\"&RIGHT(\"0\"&MONTH(N23),2))","v":0},0,{"$f":"SUMIFS(Format!$H$29:$H$100,Format!$D$29:$D$100,YEAR(N23)&\".\"&RIGHT(\"0\"&MONTH(N23),2))","v":0}]
[null,null,null,null,null,null,null,null,null,null,null,null,null,"1900-10-31",{"$f":"SUMIFS(Format!$E$29:$E$100,Format!$D$29:$D$100,YEAR(N24)&\".\"&RIGHT(\"0\"&MONTH(N24),2))","v":0},{"$f":"SUMIFS(Format!$F$29:$F$100,Format!$D$29:$D$100,YEAR(N24)&\".\"&RIGHT(\"0\"&MONTH(N24),2))","v":0},0,{"$f":"SUMIFS(Format!$H$29:$H$100,Format!$D$29:$D$100,YEAR(N24)&\".\"&RIGHT(\"0\"&MONTH(N24),2))","v":0}]
[null,null,null,null,null,null,null,"Bruto alga virs kuras nepiemērot NM",null,null,null,null,null,"1900-11-30",{"$f":"SUMIFS(Format!$E$29:$E$100,Format!$D$29:$D$100,YEAR(N25)&\".\"&RIGHT(\"0\"&MONTH(N25),2))","v":0},{"$f":"SUMIFS(Format!$F$29:$F$100,Format!$D$29:$D$100,YEAR(N25)&\".\"&RIGHT(\"0\"&MONTH(N25),2))","v":0},0,{"$f":"SUMIFS(Format!$H$29:$H$100,Format!$D$29:$D$100,YEAR(N25)&\".\"&RIGHT(\"0\"&MONTH(N25),2))","v":0}]
[null,null,null,null,null,null,null,null,null,null,null,null,null,"1900-12-31",{"$f":"SUMIFS(Format!$E$29:$E$100,Format!$D$29:$D$100,YEAR(N26)&\".\"&RIGHT(\"0\"&MONTH(N26),2))","v":0},{"$f":"SUMIFS(Format!$F$29:$F$100,Format!$D$29:$D$100,YEAR(N26)&\".\"&RIGHT(\"0\"&MONTH(N26),2))","v":0},0,{"$f":"SUMIFS(Format!$H$29:$H$100,Format!$D$29:$D$100,YEAR(N26)&\".\"&RIGHT(\"0\"&MONTH(N26),2))","v":0}]
[null,null,null,null,null,null,null,"Radīt lapu - Zinas par DN",null,null,null,null,null,"Kopā",{"$f":"SUM(O15:O26)","v":0},{"$f":"SUM(P15:P26)","v":0}]
[null,null,null,null,null,null,null,"Radīt lapu - VSAOI pa darbiniekiem",null,null,null,null,null,"Vidēji",{"$f":"AVERAGE(O15:O26)","v":0},{"$f":"AVERAGE(P15:P26)","v":0},{"$f":"AVERAGE(Q15:Q26)","v":0},{"$f":"AVERAGE(R15:R26)","v":0}]
[null,null,null,null,null,null,null,"Izmantot daļu no Personas koda"]
[null,null,null,null,null,null,null,null,null,null,null,null,null,"Uzņemums"]

{"sheet":"Gramatiņas dati","index":2,"n_rows":3,"n_cols":24,"rows_kept":3,"cut":false,"hidden":false,"merged":[[1,21,1,23],[1,1,1,6],[1,7,1,10],[1,11,1,13],[1,14,1,16],[1,17,1,20]]}
[]
[null,"Gramatiņa",null,null,null,null,null,"Apgadajamie",null,null,null,"Pensija",null,null,"Atvieglojumi",null,null,"Neapliekamais minimums",null,null,null,"IIN likmes maiņa"]
[null,"Kods","Persona","Numurs","Datums","No","Līdz","Persona","Veids","No","Līdz","Veids","No","Līdz","Veids","No","Līdz","Veids","No","Līdz","Summa","Veids","No","Līdz"]

{"sheet":"Darbnespējas lapas","index":3,"n_rows":3,"n_cols":15,"rows_kept":3,"cut":false,"hidden":false,"merged":[[1,1,1,9]]}
[]
[null,"Darbinieku darbnespējas lapu dati",null,null,null,null,null,null,null,null,"Darbnespējas","Darbā stāšanās","Datums, no kura ","Iepriekšējās","Statusa"]
[null,"Kods","Persona","Numurs","Tips","Veids","Statuss","No","Līdz","Parrēk. Līdz","cēlonis","datums","DNL turpinās","DNL reģ. nr.","datums"]

{"sheet":"VSAOI data","index":4,"n_rows":3,"n_cols":53,"rows_kept":3,"cut":false,"hidden":false,"merged":[[1,1,1,24],[1,31,1,38],[1,25,1,30],[1,39,1,42]]}
[null,null,null,null,null,null,null,null,null,null,null,null,null,null,null,null,null,null,null,null,null,null,null,null,null,null,null,null,null,null,null,null,null,null,null,null,null,null,null,null,null,null,null,null,{"$f":"IF(IFERROR(SEARCH(\" 9\",H1,1),0)=0,ROUND(IF($AG1=0,0,IF($AF1=\"Nav\",($J1+$L1)*0.23-$AP1*0.2,IF($AG1='Sakuma lapa'!$K$7,\n($J1+$L1)*0.23-SUM($AK1:$AL1,$AP1)*IF(AK1=\"Ir\",0.2,0.23)-IF(AND($J1>='Sakuma lapa'!$K$25,'Sakuma lapa'!$K$25>0),0,$AM1)*0.2,\nROUND(IF(($J1+$L1)>1667,(($J1+$L1)-1667)*0.23,0),2) + ROUND(IF(AND((IF(($J1+$L1)<=1667,($J1+$L1),1667)-$AK1-$AL1-IF(AND($J1>='Sakuma lapa'!$K$25,'Sakuma lapa'!$K$25>0),0,$AM1)-$AP1)<0,($J1+$L1)<=1667),0,1)*IF($AF1=\"Nav\",0.23*IF(($J1+$L1)<=1667,($J1+$L1),1667),$AG1*(IF(($J1+$L1)<=1667,($J1+$L1),1667)-$AK1-$AL1-IF(AND($J1>='Sakuma lapa'!$K$25,'Sakuma lapa'!$K$25>0),0,$AM1)-$AP1)),2)))),2)*IF(P1=0,0,1),0)*IF(O1*AL1-SUM(AP1:AR1,AU1)*0.2<0,0,1)","v":0},{"$f":"IF('Sakuma lapa'!$J$8=\"iepriekšējo mēnesi\",IF($C1=$C2,$AN1-$N2,0),$AN1-$N1)","v":0},{"$f":"($J1+$L1)*$AH1","v":0},{"$f":"($J1+$L1)*$AI1","v":0},null,{"$f":"ROUND(IF(($J1+$L1-$AP1-$AK1-$AL1-$AM1)*$AG1>0,($J1+$L1-$AP1-$AK1-$AL1-$AM1)*$AG1,0),2)","v":0},{"$f":"IF('Sakuma lapa'!$J$8=\"iepriekšējo mēnesi\",IF($C1=$C2,$AN1-$N2,0),$AN1-$N1)","v":0},{"$f":"($J1+$L1)*$AH1","v":0},{"$f":"($J1+$L1)*$AI1","v":0}]
[null,"Dati no EDS VSAOI deklarācijām",null,null,null,null,null,null,null,null,null,null,null,null,null,null,null,null,null,null,null,null,null,null,null,"Tehniskie identifikatori",null,null,null,null,null,"Dati no EDS nodokļu grāmatiņām, ņemot verā slimibās lapas B",null,null,null,null,null,null,null,"Revidenta veiktie aprēķini"]
[null,"DokId","Persona,kods,lapa","Persona2","Gads","Menesis","Sagatavotajs","Npk","Persona","Ienakumi","VSAOI","Precizetie ienakumi","Precizētie VSAOI","Ieturētais IIN","RN\npazīme","Riska nodeva","Nostrādātas stundas","Pensiju apdroš.","Solidaritātes nodoklis","Preciz.iem. pens.apdr.","Preciz.aprēķ. \nsolidar.nod.","Status","Darba veids","Ien.izm. skaidrā","Lapa","GM","GMS","GML","GMS","DGM","DGMS","Nod.\nGram.","IIN","DN SOC","DD SOC","Apgad.\nSkaits","Par apgād.","Atviegl.","Neapl.\nMin.","IIN","IIN \nstarpība","DN SOC","DD SOC"]

{"sheet":"VSAOI transakcijas","index":5,"n_rows":4,"n_cols":21,"rows_kept":4,"cut":false,"hidden":true,"merged":[[1,11,1,12],[1,18,1,20]]}
[]
[null,null,null,null,null,null,null,null,null,null,null,"Taksācijas periods",null,"EDS uzskaites",null,null,null,null,"VG"]
[]
[null,"Nodokļa veids","Transakcijas \ndatums","Aprēķins / \nMaksājums","Aprēķina \npamatojums","Saistības veids","Saistības \ndok. nr.","Summas \nveids","Summa","Maks.uzd. / saist.dok.nr.","Papildus informācija","No","Līdz","Termiņš","Gads","Men.","Nodoklis","EUR","Datums","VgGads","VgMen"]

{"sheet":"Vidējas likmes","index":6,"n_rows":3,"n_cols":12,"rows_kept":3,"cut":false,"hidden":false,"merged":[[1,1,1,2],[1,3,1,4]]}
[]
[null,"Profesijas/ profesijas grupas",null,"Darba ņēmēja",null,"Kopējie","Kopējās","Vidējā st. likme","Vidējā st.","80% no vidējās","Atbilstība 80% no vidējās","Atbilstība valsts"]
[null,"kods","nosaukums","pers. kods","uzvārds vārds","ienākumi","stundas","uzņēmumā","likme valstī","st. likmes valstī","st. likmei valstī","min. st. likmei"]

{"sheet":"Zinas par DN","index":7,"n_rows":3,"n_cols":12,"rows_kept":3,"cut":false,"hidden":true,"merged":[[1,1,1,11]]}
[]
[null,"Dati no EDS - Ziņas par darba ņēmējiem"]
[null,"DokId","Precizējums","Sagatavotājs","Personas kods","Persona\n(1-ais nosaukums)","Persona\n(deklaracijā, ja atšķiras)","Datums","Ziņu kods","Profesijas \nkods","Prof. darbības ierobežojums","Valsts \nkods"]

{"sheet":"VSAOI vertikāli","index":8,"n_rows":60,"n_cols":15,"rows_kept":60,"cut":false,"hidden":true,"merged":[]}
[]
[null,null,{"$f":"'Sakuma lapa'!E16","v":"00:00:00"},{"$f":"DATE(YEAR(C2),MONTH(C2)+2,0)","v":60},"1900-03-31","1900-04-30","1900-05-31","1900-06-30","1900-07-31","1900-08-31","1900-09-30","1900-10-31","1900-11-30","1900-12-31","KOPĀ gads"]
[null,"Bruto alga",{"$f":"SUMIFS('VSAOI data'!$J:$J,'VSAOI data'!$Z:$Z,YEAR(C$2)&MONTH(C$2))+SUMIFS('VSAOI data'!$L:$L,'VSAOI data'!$Z:$Z,YEAR(C$2)&MONTH(C$2))","v":0},{"$f":"SUMIFS('VSAOI data'!$J:$J,'VSAOI data'!$Z:$Z,YEAR(D$2)&MONTH(D$2))+SUMIFS('VSAOI data'!$L:$L,'VSAOI data'!$Z:$Z,YEAR(D$2)&MONTH(D$2))","v":0},{"$f":"SUMIFS('VSAOI data'!$J:$J,'VSAOI data'!$Z:$Z,YEAR(E$2)&MONTH(E$2))+SUMIFS('VSAOI data'!$L:$L,'VSAOI data'!$Z:$Z,YEAR(E$2)&MONTH(E$2))","v":0},{"$f":"SUMIFS('VSAOI data'!$J:$J,'VSAOI data'!$Z:$Z,YEAR(F$2)&MONTH(F$2))+SUMIFS('VSAOI data'!$L:$L,'VSAOI data'!$Z:$Z,YEAR(F$2)&MONTH(F$2))","v":0},{"$f":"SUMIFS('VSAOI data'!$J:$J,'VSAOI data'!$Z:$Z,YEAR(G$2)&MONTH(G$2))+SUMIFS('VSAOI data'!$L:$L,'VSAOI data'!$Z:$Z,YEAR(G$2)&MONTH(G$2))","v":0},{"$f":"SUMIFS('VSAOI data'!$J:$J,'VSAOI data'!$Z:$Z,YEAR(H$2)&MONTH(H$2))+SUMIFS('VSAOI data'!$L:$L,'VSAOI data'!$Z:$Z,YEAR(H$2)&MONTH(H$2))","v":0},{"$f":"SUMIFS('VSAOI data'!$J:$J,'VSAOI data'!$Z:$Z,YEAR(I$2)&MONTH(I$2))+SUMIFS('VSAOI data'!$L:$L,'VSAOI data'!$Z:$Z,YEAR(I$2)&MONTH(I$2))","v":0},{"$f":"SUMIFS('VSAOI data'!$J:$J,'VSAOI data'!$Z:$Z,YEAR(J$2)&MONTH(J$2))+SUMIFS('VSAOI data'!$L:$L,'VSAOI data'!$Z:$Z,YEAR(J$2)&MONTH(J$2))","v":0},{"$f":"SUMIFS('VSAOI data'!$J:$J,'VSAOI data'!$Z:$Z,YEAR(K$2)&MONTH(K$2))+SUMIFS('VSAOI data'!$L:$L,'VSAOI data'!$Z:$Z,YEAR(K$2)&MONTH(K$2))","v":0},{"$f":"SUMIFS('VSAOI data'!$J:$J,'VSAOI data'!$Z:$Z,YEAR(L$2)&MONTH(L$2))+SUMIFS('VSAOI data'!$L:$L,'VSAOI data'!$Z:$Z,YEAR(L$2)&MONTH(L$2))","v":0},{"$f":"SUMIFS('VSAOI data'!$J:$J,'VSAOI data'!$Z:$Z,YEAR(M$2)&MONTH(M$2))+SUMIFS('VSAOI data'!$L:$L,'VSAOI data'!$Z:$Z,YEAR(M$2)&MONTH(M$2))","v":0},{"$f":"SUMIFS('VSAOI data'!$J:$J,'VSAOI data'!$Z:$Z,YEAR(N$2)&MONTH(N$2))+SUMIFS('VSAOI data'!$L:$L,'VSAOI data'!$Z:$Z,YEAR(N$2)&MONTH(N$2))","v":0},{"$f":"SUM(C3:N3)","v":0}]
[null,"Aprēķinātās DD VSAOI",{"$f":"SUMIFS('VSAOI data'!$AQ:$AQ,'VSAOI data'!$AA:$AA,YEAR(C$2)&MONTH(C$2)&\"D*\")+SUMIFS('VSAOI data'!$AQ:$AQ,'VSAOI data'!$AA:$AA,YEAR(C$2)&MONTH(C$2)&\"C*\")+SUMIFS('VSAOI data'!$AQ:$AQ,'VSAOI data'!$AA:$AA,YEAR(C$2)&MONTH(C$2)&\"A*\")","v":0},{"$f":"SUMIFS('VSAOI data'!$AQ:$AQ,'VSAOI data'!$AA:$AA,YEAR(D$2)&MONTH(D$2)&\"D*\")+SUMIFS('VSAOI data'!$AQ:$AQ,'VSAOI data'!$AA:$AA,YEAR(D$2)&MONTH(D$2)&\"C*\")+SUMIFS('VSAOI data'!$AQ:$AQ,'VSAOI data'!$AA:$AA,YEAR(D$2)&MONTH(D$2)&\"A*\")","v":0},{"$f":"SUMIFS('VSAOI data'!$AQ:$AQ,'VSAOI data'!$AA:$AA,YEAR(E$2)&MONTH(E$2)&\"D*\")+SUMIFS('VSAOI data'!$AQ:$AQ,'VSAOI data'!$AA:$AA,YEAR(E$2)&MONTH(E$2)&\"C*\")+SUMIFS('VSAOI data'!$AQ:$AQ,'VSAOI data'!$AA:$AA,YEAR(E$2)&MONTH(E$2)&\"A*\")","v":0},{"$f":"SUMIFS('VSAOI data'!$AQ:$AQ,'VSAOI data'!$AA:$AA,YEAR(F$2)&MONTH(F$2)&\"D*\")+SUMIFS('VSAOI data'!$AQ:$AQ,'VSAOI data'!$AA:$AA,YEAR(F$2)&MONTH(F$2)&\"C*\")+SUMIFS('VSAOI data'!$AQ:$AQ,'VSAOI data'!$AA:$AA,YEAR(F$2)&MONTH(F$2)&\"A*\")","v":0},{"$f":"SUMIFS('VSAOI data'!$AQ:$AQ,'VSAOI data'!$AA:$AA,YEAR(G$2)&MONTH(G$2)&\"D*\")+SUMIFS('VSAOI data'!$AQ:$AQ,'VSAOI data'!$AA:$AA,YEAR(G$2)&MONTH(G$2)&\"C*\")+SUMIFS('VSAOI data'!$AQ:$AQ,'VSAOI data'!$AA:$AA,YEAR(G$2)&MONTH(G$2)&\"A*\")","v":0},{"$f":"SUMIFS('VSAOI data'!$AQ:$AQ,'VSAOI data'!$AA:$AA,YEAR(H$2)&MONTH(H$2)&\"D*\")+SUMIFS('VSAOI data'!$AQ:$AQ,'VSAOI data'!$AA:$AA,YEAR(H$2)&MONTH(H$2)&\"C*\")+SUMIFS('VSAOI data'!$AQ:$AQ,'VSAOI data'!$AA:$AA,YEAR(H$2)&MONTH(H$2)&\"A*\")","v":0},{"$f":"SUMIFS('VSAOI data'!$AQ:$AQ,'VSAOI data'!$AA:$AA,YEAR(I$2)&MONTH(I$2)&\"D*\")+SUMIFS('VSAOI data'!$AQ:$AQ,'VSAOI data'!$AA:$AA,YEAR(I$2)&MONTH(I$2)&\"C*\")+SUMIFS('VSAOI data'!$AQ:$AQ,'VSAOI data'!$AA:$AA,YEAR(I$2)&MONTH(I$2)&\"A*\")","v":0},{"$f":"SUMIFS('VSAOI data'!$AQ:$AQ,'VSAOI data'!$AA:$AA,YEAR(J$2)&MONTH(J$2)&\"D*\")+SUMIFS('VSAOI data'!$AQ:$AQ,'VSAOI data'!$AA:$AA,YEAR(J$2)&MONTH(J$2)&\"C*\")+SUMIFS('VSAOI data'!$AQ:$AQ,'VSAOI data'!$AA:$AA,YEAR(J$2)&MONTH(J$2)&\"A*\")","v":0},{"$f":"SUMIFS('VSAOI data'!$AQ:$AQ,'VSAOI data'!$AA:$AA,YEAR(K$2)&MONTH(K$2)&\"D*\")+SUMIFS('VSAOI data'!$AQ:$AQ,'VSAOI data'!$AA:$AA,YEAR(K$2)&MONTH(K$2)&\"C*\")+SUMIFS('VSAOI data'!$AQ:$AQ,'VSAOI data'!$AA:$AA,YEAR(K$2)&MONTH(K$2)&\"A*\")","v":0},{"$f":"SUMIFS('VSAOI data'!$AQ:$AQ,'VSAOI data'!$AA:$AA,YEAR(L$2)&MONTH(L$2)&\"D*\")+SUMIFS('VSAOI data'!$AQ:$AQ,'VSAOI data'!$AA:$AA,YEAR(L$2)&MONTH(L$2)&\"C*\")+SUMIFS('VSAOI data'!$AQ:$AQ,'VSAOI data'!$AA:$AA,YEAR(L$2)&MONTH(L$2)&\"A*\")","v":0},{"$f":"SUMIFS('VSAOI data'!$AQ:$AQ,'VSAOI data'!$AA:$AA,YEAR(M$2)&MONTH(M$2)&\"D*\")+SUMIFS('VSAOI data'!$AQ:$AQ,'VSAOI data'!$AA:$AA,YEAR(M$2)&MONTH(M$2)&\"C*\")+SUMIFS('VSAOI data'!$AQ:$AQ,'VSAOI data'!$AA:$AA,YEAR(M$2)&MONTH(M$2)&\"A*\")","v":0},{"$f":"SUMIFS('VSAOI data'!$AQ:$AQ,'VSAOI data'!$AA:$AA,YEAR(N$2)&MONTH(N$2)&\"D*\")+SUMIFS('VSAOI data'!$AQ:$AQ,'VSAOI data'!$AA:$AA,YEAR(N$2)&MONTH(N$2)&\"C*\")+SUMIFS('VSAOI data'!$AQ:$AQ,'VSAOI data'!$AA:$AA,YEAR(N$2)&MONTH(N$2)&\"A*\")","v":0},{"$f":"SUM(C4:N4)","v":0}]
[null,"Aprēķinātās DŅ VSAOI",{"$f":"SUMIFS('VSAOI data'!$AP:$AP,'VSAOI data'!$AA:$AA,YEAR(C$2)&MONTH(C$2)&\"D*\")+SUMIFS('VSAOI data'!$AP:$AP,'VSAOI data'!$AA:$AA,YEAR(C$2)&MONTH(C$2)&\"C*\")+SUMIFS('VSAOI data'!$AP:$AP,'VSAOI data'!$AA:$AA,YEAR(C$2)&MONTH(C$2)&\"A*\")","v":0},{"$f":"SUMIFS('VSAOI data'!$AP:$AP,'VSAOI data'!$AA:$AA,YEAR(D$2)&MONTH(D$2)&\"D*\")+SUMIFS('VSAOI data'!$AP:$AP,'VSAOI data'!$AA:$AA,YEAR(D$2)&MONTH(D$2)&\"C*\")+SUMIFS('VSAOI data'!$AP:$AP,'VSAOI data'!$AA:$AA,YEAR(D$2)&MONTH(D$2)&\"A*\")","v":0},{"$f":"SUMIFS('VSAOI data'!$AP:$AP,'VSAOI data'!$AA:$AA,YEAR(E$2)&MONTH(E$2)&\"D*\")+SUMIFS('VSAOI data'!$AP:$AP,'VSAOI data'!$AA:$AA,YEAR(E$2)&MONTH(E$2)&\"C*\")+SUMIFS('VSAOI data'!$AP:$AP,'VSAOI data'!$AA:$AA,YEAR(E$2)&MONTH(E$2)&\"A*\")","v":0},{"$f":"SUMIFS('VSAOI data'!$AP:$AP,'VSAOI data'!$AA:$AA,YEAR(F$2)&MONTH(F$2)&\"D*\")+SUMIFS('VSAOI data'!$AP:$AP,'VSAOI data'!$AA:$AA,YEAR(F$2)&MONTH(F$2)&\"C*\")+SUMIFS('VSAOI data'!$AP:$AP,'VSAOI data'!$AA:$AA,YEAR(F$2)&MONTH(F$2)&\"A*\")","v":0},{"$f":"SUMIFS('VSAOI data'!$AP:$AP,'VSAOI data'!$AA:$AA,YEAR(G$2)&MONTH(G$2)&\"D*\")+SUMIFS('VSAOI data'!$AP:$AP,'VSAOI data'!$AA:$AA,YEAR(G$2)&MONTH(G$2)&\"C*\")+SUMIFS('VSAOI data'!$AP:$AP,'VSAOI data'!$AA:$AA,YEAR(G$2)&MONTH(G$2)&\"A*\")","v":0},{"$f":"SUMIFS('VSAOI data'!$AP:$AP,'VSAOI data'!$AA:$AA,YEAR(H$2)&MONTH(H$2)&\"D*\")+SUMIFS('VSAOI data'!$AP:$AP,'VSAOI data'!$AA:$AA,YEAR(H$2)&MONTH(H$2)&\"C*\")+SUMIFS('VSAOI data'!$AP:$AP,'VSAOI data'!$AA:$AA,YEAR(H$2)&MONTH(H$2)&\"A*\")","v":0},{"$f":"SUMIFS('VSAOI data'!$AP:$AP,'VSAOI data'!$AA:$AA,YEAR(I$2)&MONTH(I$2)&\"D*\")+SUMIFS('VSAOI data'!$AP:$AP,'VSAOI data'!$AA:$AA,YEAR(I$2)&MONTH(I$2)&\"C*\")+SUMIFS('VSAOI data'!$AP:$AP,'VSAOI data'!$AA:$AA,YEAR(I$2)&MONTH(I$2)&\"A*\")","v":0},{"$f":"SUMIFS('VSAOI data'!$AP:$AP,'VSAOI data'!$AA:$AA,YEAR(J$2)&MONTH(J$2)&\"D*\")+SUMIFS('VSAOI data'!$AP:$AP,'VSAOI data'!$AA:$AA,YEAR(J$2)&MONTH(J$2)&\"C*\")+SUMIFS('VSAOI data'!$AP:$AP,'VSAOI data'!$AA:$AA,YEAR(J$2)&MONTH(J$2)&\"A*\")","v":0},{"$f":"SUMIFS('VSAOI data'!$AP:$AP,'VSAOI data'!$AA:$AA,YEAR(K$2)&MONTH(K$2)&\"D*\")+SUMIFS('VSAOI data'!$AP:$AP,'VSAOI data'!$AA:$AA,YEAR(K$2)&MONTH(K$2)&\"C*\")+SUMIFS('VSAOI data'!$AP:$AP,'VSAOI data'!$AA:$AA,YEAR(K$2)&MONTH(K$2)&\"A*\")","v":0},{"$f":"SUMIFS('VSAOI data'!$AP:$AP,'VSAOI data'!$AA:$AA,YEAR(L$2)&MONTH(L$2)&\"D*\")+SUMIFS('VSAOI data'!$AP:$AP,'VSAOI data'!$AA:$AA,YEAR(L$2)&MONTH(L$2)&\"C*\")+SUMIFS('VSAOI data'!$AP:$AP,'VSAOI data'!$AA:$AA,YEAR(L$2)&MONTH(L$2)&\"A*\")","v":0},{"$f":"SUMIFS('VSAOI data'!$AP:$AP,'VSAOI data'!$AA:$AA,YEAR(M$2)&MONTH(M$2)&\"D*\")+SUMIFS('VSAOI data'!$AP:$AP,'VSAOI data'!$AA:$AA,YEAR(M$2)&MONTH(M$2)&\"C*\")+SUMIFS('VSAOI data'!$AP:$AP,'VSAOI data'!$AA:$AA,YEAR(M$2)&MONTH(M$2)&\"A*\")","v":0},{"$f":"SUMIFS('VSAOI data'!$AP:$AP,'VSAOI data'!$AA:$AA,YEAR(N$2)&MONTH(N$2)&\"D*\")+SUMIFS('VSAOI data'!$AP:$AP,'VSAOI data'!$AA:$AA,YEAR(N$2)&MONTH(N$2)&\"C*\")+SUMIFS('VSAOI data'!$AP:$AP,'VSAOI data'!$AA:$AA,YEAR(N$2)&MONTH(N$2)&\"A*\")","v":0},0]
[null,"starpības",{"$f":"C7-SUM(C4:C5)","v":0},{"$f":"D7-SUM(D4:D5)","v":0},0,0,0,0,0,0,0,0,0,0,0]
[null,"KOPĀ VSAOI no VID EDS",{"$f":"SUMIFS('VSAOI data'!$K:$K,'VSAOI data'!$Z:$Z,YEAR(C$2)&MONTH(C$2))+SUMIFS('VSAOI data'!$M:$M,'VSAOI data'!$Z:$Z,YEAR(C$2)&MONTH(C$2))","v":0},{"$f":"SUMIFS('VSAOI data'!$K:$K,'VSAOI data'!$Z:$Z,YEAR(D$2)&MONTH(D$2))+SUMIFS('VSAOI data'!$M:$M,'VSAOI data'!$Z:$Z,YEAR(D$2)&MONTH(D$2))","v":0},{"$f":"SUMIFS('VSAOI data'!$K:$K,'VSAOI data'!$Z:$Z,YEAR(E$2)&MONTH(E$2))+SUMIFS('VSAOI data'!$M:$M,'VSAOI data'!$Z:$Z,YEAR(E$2)&MONTH(E$2))","v":0},{"$f":"SUMIFS('VSAOI data'!$K:$K,'VSAOI data'!$Z:$Z,YEAR(F$2)&MONTH(F$2))+SUMIFS('VSAOI data'!$M:$M,'VSAOI data'!$Z:$Z,YEAR(F$2)&MONTH(F$2))","v":0},{"$f":"SUMIFS('VSAOI data'!$K:$K,'VSAOI data'!$Z:$Z,YEAR(G$2)&MONTH(G$2))+SUMIFS('VSAOI data'!$M:$M,'VSAOI data'!$Z:$Z,YEAR(G$2)&MONTH(G$2))","v":0},{"$f":"SUMIFS('VSAOI data'!$K:$K,'VSAOI data'!$Z:$Z,YEAR(H$2)&MONTH(H$2))+SUMIFS('VSAOI data'!$M:$M,'VSAOI data'!$Z:$Z,YEAR(H$2)&MONTH(H$2))","v":0},{"$f":"SUMIFS('VSAOI data'!$K:$K,'VSAOI data'!$Z:$Z,YEAR(I$2)&MONTH(I$2))+SUMIFS('VSAOI data'!$M:$M,'VSAOI data'!$Z:$Z,YEAR(I$2)&MONTH(I$2))","v":0},{"$f":"SUMIFS('VSAOI data'!$K:$K,'VSAOI data'!$Z:$Z,YEAR(J$2)&MONTH(J$2))+SUMIFS('VSAOI data'!$M:$M,'VSAOI data'!$Z:$Z,YEAR(J$2)&MONTH(J$2))","v":0},{"$f":"SUMIFS('VSAOI data'!$K:$K,'VSAOI data'!$Z:$Z,YEAR(K$2)&MONTH(K$2))+SUMIFS('VSAOI data'!$M:$M,'VSAOI data'!$Z:$Z,YEAR(K$2)&MONTH(K$2))","v":0},{"$f":"SUMIFS('VSAOI data'!$K:$K,'VSAOI data'!$Z:$Z,YEAR(L$2)&MONTH(L$2))+SUMIFS('VSAOI data'!$M:$M,'VSAOI data'!$Z:$Z,YEAR(L$2)&MONTH(L$2))","v":0},{"$f":"SUMIFS('VSAOI data'!$K:$K,'VSAOI data'!$Z:$Z,YEAR(M$2)&MONTH(M$2))+SUMIFS('VSAOI data'!$M:$M,'VSAOI data'!$Z:$Z,YEAR(M$2)&MONTH(M$2))","v":0},{"$f":"SUMIFS('VSAOI data'!$K:$K,'VSAOI data'!$Z:$Z,YEAR(N$2)&MONTH(N$2))+SUMIFS('VSAOI data'!$M:$M,'VSAOI data'!$Z:$Z,YEAR(N$2)&MONTH(N$2))","v":0},0]
[null,"Darbinieku skaits ",{"$f":"SUM(C9:C10)","v":0},{"$f":"SUM(D9:D10)","v":0},0,0,0,0,0,0,0,0,0,0]
[null,"ar nodokļu grāmatiņu",{"$f":"COUNTIFS('VSAOI data'!$AB:$AB,YEAR(C$2)&MONTH(C$2)&\"Tab*Ir\")-COUNTIFS('VSAOI data'!$AB:$AB,YEAR(C$2)&MONTH(C$2)&\"Tab4*Ir\")","v":0},{"$f":"COUNTIFS('VSAOI data'!$AB:$AB,YEAR(D$2)&MONTH(D$2)&\"Tab*Ir\")-COUNTIFS('VSAOI data'!$AB:$AB,YEAR(D$2)&MONTH(D$2)&\"Tab4*Ir\")","v":0},{"$f":"COUNTIFS('VSAOI data'!$AB:$AB,YEAR(E$2)&MONTH(E$2)&\"Tab*Ir\")-COUNTIFS('VSAOI data'!$AB:$AB,YEAR(E$2)&MONTH(E$2)&\"Tab4*Ir\")","v":0},{"$f":"COUNTIFS('VSAOI data'!$AB:$AB,YEAR(F$2)&MONTH(F$2)&\"Tab*Ir\")-COUNTIFS('VSAOI data'!$AB:$AB,YEAR(F$2)&MONTH(F$2)&\"Tab4*Ir\")","v":0},{"$f":"COUNTIFS('VSAOI data'!$AB:$AB,YEAR(G$2)&MONTH(G$2)&\"Tab*Ir\")-COUNTIFS('VSAOI data'!$AB:$AB,YEAR(G$2)&MONTH(G$2)&\"Tab4*Ir\")","v":0},{"$f":"COUNTIFS('VSAOI data'!$AB:$AB,YEAR(H$2)&MONTH(H$2)&\"Tab*Ir\")-COUNTIFS('VSAOI data'!$AB:$AB,YEAR(H$2)&MONTH(H$2)&\"Tab4*Ir\")","v":0},{"$f":"COUNTIFS('VSAOI data'!$AB:$AB,YEAR(I$2)&MONTH(I$2)&\"Tab*Ir\")-COUNTIFS('VSAOI data'!$AB:$AB,YEAR(I$2)&MONTH(I$2)&\"Tab4*Ir\")","v":0},{"$f":"COUNTIFS('VSAOI data'!$AB:$AB,YEAR(J$2)&MONTH(J$2)&\"Tab*Ir\")-COUNTIFS('VSAOI data'!$AB:$AB,YEAR(J$2)&MONTH(J$2)&\"Tab4*Ir\")","v":0},{"$f":"COUNTIFS('VSAOI data'!$AB:$AB,YEAR(K$2)&MONTH(K$2)&\"Tab*Ir\")-COUNTIFS('VSAOI data'!$AB:$AB,YEAR(K$2)&MONTH(K$2)&\"Tab4*Ir\")","v":0},{"$f":"COUNTIFS('VSAOI data'!$AB:$AB,YEAR(L$2)&MONTH(L$2)&\"Tab*Ir\")-COUNTIFS('VSAOI data'!$AB:$AB,YEAR(L$2)&MONTH(L$2)&\"Tab4*Ir\")","v":0},{"$f":"COUNTIFS('VSAOI data'!$AB:$AB,YEAR(M$2)&MONTH(M$2)&\"Tab*Ir\")-COUNTIFS('VSAOI data'!$AB:$AB,YEAR(M$2)&MONTH(M$2)&\"Tab4*Ir\")","v":0},{"$f":"COUNTIFS('VSAOI data'!$AB:$AB,YEAR(N$2)&MONTH(N$2)&\"Tab*Ir\")-COUNTIFS('VSAOI data'!$AB:$AB,YEAR(N$2)&MONTH(N$2)&\"Tab4*Ir\")","v":0}]
[null,"bez nodokļu grāmatiņas",{"$f":"COUNTIFS('VSAOI data'!$AB:$AB,YEAR(C$2)&MONTH(C$2)&\"Tab*Nav\")-COUNTIFS('VSAOI data'!$AB:$AB,YEAR(C$2)&MONTH(C$2)&\"Tab4*Nav\")","v":0},{"$f":"COUNTIFS('VSAOI data'!$AB:$AB,YEAR(D$2)&MONTH(D$2)&\"Tab*Nav\")-COUNTIFS('VSAOI data'!$AB:$AB,YEAR(D$2)&MONTH(D$2)&\"Tab4*Nav\")","v":0},{"$f":"COUNTIFS('VSAOI data'!$AB:$AB,YEAR(E$2)&MONTH(E$2)&\"Tab*Nav\")-COUNTIFS('VSAOI data'!$AB:$AB,YEAR(E$2)&MONTH(E$2)&\"Tab4*Nav\")","v":0},{"$f":"COUNTIFS('VSAOI data'!$AB:$AB,YEAR(F$2)&MONTH(F$2)&\"Tab*Nav\")-COUNTIFS('VSAOI data'!$AB:$AB,YEAR(F$2)&MONTH(F$2)&\"Tab4*Nav\")","v":0},{"$f":"COUNTIFS('VSAOI data'!$AB:$AB,YEAR(G$2)&MONTH(G$2)&\"Tab*Nav\")-COUNTIFS('VSAOI data'!$AB:$AB,YEAR(G$2)&MONTH(G$2)&\"Tab4*Nav\")","v":0},{"$f":"COUNTIFS('VSAOI data'!$AB:$AB,YEAR(H$2)&MONTH(H$2)&\"Tab*Nav\")-COUNTIFS('VSAOI data'!$AB:$AB,YEAR(H$2)&MONTH(H$2)&\"Tab4*Nav\")","v":0},{"$f":"COUNTIFS('VSAOI data'!$AB:$AB,YEAR(I$2)&MONTH(I$2)&\"Tab*Nav\")-COUNTIFS('VSAOI data'!$AB:$AB,YEAR(I$2)&MONTH(I$2)&\"Tab4*Nav\")","v":0},{"$f":"COUNTIFS('VSAOI data'!$AB:$AB,YEAR(J$2)&MONTH(J$2)&\"Tab*Nav\")-COUNTIFS('VSAOI data'!$AB:$AB,YEAR(J$2)&MONTH(J$2)&\"Tab4*Nav\")","v":0},{"$f":"COUNTIFS('VSAOI data'!$AB:$AB,YEAR(K$2)&MONTH(K$2)&\"Tab*Nav\")-COUNTIFS('VSAOI data'!$AB:$AB,YEAR(K$2)&MONTH(K$2)&\"Tab4*Nav\")","v":0},{"$f":"COUNTIFS('VSAOI data'!$AB:$AB,YEAR(L$2)&MONTH(L$2)&\"Tab*Nav\")-COUNTIFS('VSAOI data'!$AB:$AB,YEAR(L$2)&MONTH(L$2)&\"Tab4*Nav\")","v":0},{"$f":"COUNTIFS('VSAOI data'!$AB:$AB,YEAR(M$2)&MONTH(M$2)&\"Tab*Nav\")-COUNTIFS('VSAOI data'!$AB:$AB,YEAR(M$2)&MONTH(M$2)&\"Tab4*Nav\")","v":0},{"$f":"COUNTIFS('VSAOI data'!$AB:$AB,YEAR(N$2)&MONTH(N$2)&\"Tab*Nav\")-COUNTIFS('VSAOI data'!$AB:$AB,YEAR(N$2)&MONTH(N$2)&\"Tab4*Nav\")","v":0}]
[null,"Apgādājamo skaits",{"$f":"SUMIFS('VSAOI data'!$AJ:$AJ,'VSAOI data'!$AA:$AA,YEAR(C$2)&MONTH(C$2)&\"D*\")+SUMIFS('VSAOI data'!$AJ:$AJ,'VSAOI data'!$AA:$AA,YEAR(C$2)&MONTH(C$2)&\"C*\")+SUMIFS('VSAOI data'!$AJ:$AJ,'VSAOI data'!$AA:$AA,YEAR(C$2)&MONTH(C$2)&\"A*\")","v":0},{"$f":"SUMIFS('VSAOI data'!$AJ:$AJ,'VSAOI data'!$AA:$AA,YEAR(D$2)&MONTH(D$2)&\"D*\")+SUMIFS('VSAOI data'!$AJ:$AJ,'VSAOI data'!$AA:$AA,YEAR(D$2)&MONTH(D$2)&\"C*\")+SUMIFS('VSAOI data'!$AJ:$AJ,'VSAOI data'!$AA:$AA,YEAR(D$2)&MONTH(D$2)&\"A*\")","v":0},{"$f":"SUMIFS('VSAOI data'!$AJ:$AJ,'VSAOI data'!$AA:$AA,YEAR(E$2)&MONTH(E$2)&\"D*\")+SUMIFS('VSAOI data'!$AJ:$AJ,'VSAOI data'!$AA:$AA,YEAR(E$2)&MONTH(E$2)&\"C*\")+SUMIFS('VSAOI data'!$AJ:$AJ,'VSAOI data'!$AA:$AA,YEAR(E$2)&MONTH(E$2)&\"A*\")","v":0},{"$f":"SUMIFS('VSAOI data'!$AJ:$AJ,'VSAOI data'!$AA:$AA,YEAR(F$2)&MONTH(F$2)&\"D*\")+SUMIFS('VSAOI data'!$AJ:$AJ,'VSAOI data'!$AA:$AA,YEAR(F$2)&MONTH(F$2)&\"C*\")+SUMIFS('VSAOI data'!$AJ:$AJ,'VSAOI data'!$AA:$AA,YEAR(F$2)&MONTH(F$2)&\"A*\")","v":0},{"$f":"SUMIFS('VSAOI data'!$AJ:$AJ,'VSAOI data'!$AA:$AA,YEAR(G$2)&MONTH(G$2)&\"D*\")+SUMIFS('VSAOI data'!$AJ:$AJ,'VSAOI data'!$AA:$AA,YEAR(G$2)&MONTH(G$2)&\"C*\")+SUMIFS('VSAOI data'!$AJ:$AJ,'VSAOI data'!$AA:$AA,YEAR(G$2)&MONTH(G$2)&\"A*\")","v":0},{"$f":"SUMIFS('VSAOI data'!$AJ:$AJ,'VSAOI data'!$AA:$AA,YEAR(H$2)&MONTH(H$2)&\"D*\")+SUMIFS('VSAOI data'!$AJ:$AJ,'VSAOI data'!$AA:$AA,YEAR(H$2)&MONTH(H$2)&\"C*\")+SUMIFS('VSAOI data'!$AJ:$AJ,'VSAOI data'!$AA:$AA,YEAR(H$2)&MONTH(H$2)&\"A*\")","v":0},{"$f":"SUMIFS('VSAOI data'!$AJ:$AJ,'VSAOI data'!$AA:$AA,YEAR(I$2)&MONTH(I$2)&\"D*\")+SUMIFS('VSAOI data'!$AJ:$AJ,'VSAOI data'!$AA:$AA,YEAR(I$2)&MONTH(I$2)&\"C*\")+SUMIFS('VSAOI data'!$AJ:$AJ,'VSAOI data'!$AA:$AA,YEAR(I$2)&MONTH(I$2)&\"A*\")","v":0},{"$f":"SUMIFS('VSAOI data'!$AJ:$AJ,'VSAOI data'!$AA:$AA,YEAR(J$2)&MONTH(J$2)&\"D*\")+SUMIFS('VSAOI data'!$AJ:$AJ,'VSAOI data'!$AA:$AA,YEAR(J$2)&MONTH(J$2)&\"C*\")+SUMIFS('VSAOI data'!$AJ:$AJ,'VSAOI data'!$AA:$AA,YEAR(J$2)&MONTH(J$2)&\"A*\")","v":0},{"$f":"SUMIFS('VSAOI data'!$AJ:$AJ,'VSAOI data'!$AA:$AA,YEAR(K$2)&MONTH(K$2)&\"D*\")+SUMIFS('VSAOI data'!$AJ:$AJ,'VSAOI data'!$AA:$AA,YEAR(K$2)&MONTH(K$2)&\"C*\")+SUMIFS('VSAOI data'!$AJ:$AJ,'VSAOI data'!$AA:$AA,YEAR(K$2)&MONTH(K$2)&\"A*\")","v":0},{"$f":"SUMIFS('VSAOI data'!$AJ:$AJ,'VSAOI data'!$AA:$AA,YEAR(L$2)&MONTH(L$2)&\"D*\")+SUMIFS('VSAOI data'!$AJ:$AJ,'VSAOI data'!$AA:$AA,YEAR(L$2)&MONTH(L$2)&\"C*\")+SUMIFS('VSAOI data'!$AJ:$AJ,'VSAOI data'!$AA:$AA,YEAR(L$2)&MONTH(L$2)&\"A*\")","v":0},{"$f":"SUMIFS('VSAOI data'!$AJ:$AJ,'VSAOI data'!$AA:$AA,YEAR(M$2)&MONTH(M$2)&\"D*\")+SUMIFS('VSAOI data'!$AJ:$AJ,'VSAOI data'!$AA:$AA,YEAR(M$2)&MONTH(M$2)&\"C*\")+SUMIFS('VSAOI data'!$AJ:$AJ,'VSAOI data'!$AA:$AA,YEAR(M$2)&MONTH(M$2)&\"A*\")","v":0},{"$f":"SUMIFS('VSAOI data'!$AJ:$AJ,'VSAOI data'!$AA:$AA,YEAR(N$2)&MONTH(N$2)&\"D*\")+SUMIFS('VSAOI data'!$AJ:$AJ,'VSAOI data'!$AA:$AA,YEAR(N$2)&MONTH(N$2)&\"C*\")+SUMIFS('VSAOI data'!$AJ:$AJ,'VSAOI data'!$AA:$AA,YEAR(N$2)&MONTH(N$2)&\"A*\")","v":0}]
[null,{"$f":"\"Ieturētais IIN par \"&'Sakuma lapa'!$J$8","v":"Ieturētais IIN par pārskata mēnesi"},{"$f":"SUMIFS('VSAOI data'!$N:$N,'VSAOI data'!$Z:$Z,YEAR(C$2)&MONTH(C$2))","v":0},{"$f":"SUMIFS('VSAOI data'!$N:$N,'VSAOI data'!$Z:$Z,YEAR(D$2)&MONTH(D$2))","v":0},{"$f":"SUMIFS('VSAOI data'!$N:$N,'VSAOI data'!$Z:$Z,YEAR(E$2)&MONTH(E$2))","v":0},{"$f":"SUMIFS('VSAOI data'!$N:$N,'VSAOI data'!$Z:$Z,YEAR(F$2)&MONTH(F$2))","v":0},{"$f":"SUMIFS('VSAOI data'!$N:$N,'VSAOI data'!$Z:$Z,YEAR(G$2)&MONTH(G$2))","v":0},{"$f":"SUMIFS('VSAOI data'!$N:$N,'VSAOI data'!$Z:$Z,YEAR(H$2)&MONTH(H$2))","v":0},{"$f":"SUMIFS('VSAOI data'!$N:$N,'VSAOI data'!$Z:$Z,YEAR(I$2)&MONTH(I$2))","v":0},{"$f":"SUMIFS('VSAOI data'!$N:$N,'VSAOI data'!$Z:$Z,YEAR(J$2)&MONTH(J$2))","v":0},{"$f":"SUMIFS('VSAOI data'!$N:$N,'VSAOI data'!$Z:$Z,YEAR(K$2)&MONTH(K$2))","v":0},{"$f":"SUMIFS('VSAOI data'!$N:$N,'VSAOI data'!$Z:$Z,YEAR(L$2)&MONTH(L$2))","v":0},{"$f":"SUMIFS('VSAOI data'!$N:$N,'VSAOI data'!$Z:$Z,YEAR(M$2)&MONTH(M$2))","v":0},{"$f":"SUMIFS('VSAOI data'!$N:$N,'VSAOI data'!$Z:$Z,YEAR(N$2)&MONTH(N$2))","v":0},0]
[null,"Pārrēķinātais IIN par tekošo mēnesi",{"$f":"SUMIFS('VSAOI data'!$AN:$AN,'VSAOI data'!$AA:$AA,YEAR(C$2)&MONTH(C$2)&\"D*\")+SUMIFS('VSAOI data'!$AN:$AN,'VSAOI data'!$AA:$AA,YEAR(C$2)&MONTH(C$2)&\"C*\")+SUMIFS('VSAOI data'!$AN:$AN,'VSAOI data'!$AA:$AA,YEAR(C$2)&MONTH(C$2)&\"A*\")","v":0},{"$f":"SUMIFS('VSAOI data'!$AN:$AN,'VSAOI data'!$AA:$AA,YEAR(D$2)&MONTH(D$2)&\"D*\")+SUMIFS('VSAOI data'!$AN:$AN,'VSAOI data'!$AA:$AA,YEAR(D$2)&MONTH(D$2)&\"C*\")+SUMIFS('VSAOI data'!$AN:$AN,'VSAOI data'!$AA:$AA,YEAR(D$2)&MONTH(D$2)&\"A*\")","v":0},{"$f":"SUMIFS('VSAOI data'!$AN:$AN,'VSAOI data'!$AA:$AA,YEAR(E$2)&MONTH(E$2)&\"D*\")+SUMIFS('VSAOI data'!$AN:$AN,'VSAOI data'!$AA:$AA,YEAR(E$2)&MONTH(E$2)&\"C*\")+SUMIFS('VSAOI data'!$AN:$AN,'VSAOI data'!$AA:$AA,YEAR(E$2)&MONTH(E$2)&\"A*\")","v":0},{"$f":"SUMIFS('VSAOI data'!$AN:$AN,'VSAOI data'!$AA:$AA,YEAR(F$2)&MONTH(F$2)&\"D*\")+SUMIFS('VSAOI data'!$AN:$AN,'VSAOI data'!$AA:$AA,YEAR(F$2)&MONTH(F$2)&\"C*\")+SUMIFS('VSAOI data'!$AN:$AN,'VSAOI data'!$AA:$AA,YEAR(F$2)&MONTH(F$2)&\"A*\")","v":0},{"$f":"SUMIFS('VSAOI data'!$AN:$AN,'VSAOI data'!$AA:$AA,YEAR(G$2)&MONTH(G$2)&\"D*\")+SUMIFS('VSAOI data'!$AN:$AN,'VSAOI data'!$AA:$AA,YEAR(G$2)&MONTH(G$2)&\"C*\")+SUMIFS('VSAOI data'!$AN:$AN,'VSAOI data'!$AA:$AA,YEAR(G$2)&MONTH(G$2)&\"A*\")","v":0},{"$f":"SUMIFS('VSAOI data'!$AN:$AN,'VSAOI data'!$AA:$AA,YEAR(H$2)&MONTH(H$2)&\"D*\")+SUMIFS('VSAOI data'!$AN:$AN,'VSAOI data'!$AA:$AA,YEAR(H$2)&MONTH(H$2)&\"C*\")+SUMIFS('VSAOI data'!$AN:$AN,'VSAOI data'!$AA:$AA,YEAR(H$2)&MONTH(H$2)&\"A*\")","v":0},{"$f":"SUMIFS('VSAOI data'!$AN:$AN,'VSAOI data'!$AA:$AA,YEAR(I$2)&MONTH(I$2)&\"D*\")+SUMIFS('VSAOI data'!$AN:$AN,'VSAOI data'!$AA:$AA,YEAR(I$2)&MONTH(I$2)&\"C*\")+SUMIFS('VSAOI data'!$AN:$AN,'VSAOI data'!$AA:$AA,YEAR(I$2)&MONTH(I$2)&\"A*\")","v":0},{"$f":"SUMIFS('VSAOI data'!$AN:$AN,'VSAOI data'!$AA:$AA,YEAR(J$2)&MONTH(J$2)&\"D*\")+SUMIFS('VSAOI data'!$AN:$AN,'VSAOI data'!$AA:$AA,YEAR(J$2)&MONTH(J$2)&\"C*\")+SUMIFS('VSAOI data'!$AN:$AN,'VSAOI data'!$AA:$AA,YEAR(J$2)&MONTH(J$2)&\"A*\")","v":0},{"$f":"SUMIFS('VSAOI data'!$AN:$AN,'VSAOI data'!$AA:$AA,YEAR(K$2)&MONTH(K$2)&\"D*\")+SUMIFS('VSAOI data'!$AN:$AN,'VSAOI data'!$AA:$AA,YEAR(K$2)&MONTH(K$2)&\"C*\")+SUMIFS('VSAOI data'!$AN:$AN,'VSAOI data'!$AA:$AA,YEAR(K$2)&MONTH(K$2)&\"A*\")","v":0},{"$f":"SUMIFS('VSAOI data'!$AN:$AN,'VSAOI data'!$AA:$AA,YEAR(L$2)&MONTH(L$2)&\"D*\")+SUMIFS('VSAOI data'!$AN:$AN,'VSAOI data'!$AA:$AA,YEAR(L$2)&MONTH(L$2)&\"C*\")+SUMIFS('VSAOI data'!$AN:$AN,'VSAOI data'!$AA:$AA,YEAR(L$2)&MONTH(L$2)&\"A*\")","v":0},{"$f":"SUMIFS('VSAOI data'!$AN:$AN,'VSAOI data'!$AA:$AA,YEAR(M$2)&MONTH(M$2)&\"D*\")+SUMIFS('VSAOI data'!$AN:$AN,'VSAOI data'!$AA:$AA,YEAR(M$2)&MONTH(M$2)&\"C*\")+SUMIFS('VSAOI data'!$AN:$AN,'VSAOI data'!$AA:$AA,YEAR(M$2)&MONTH(M$2)&\"A*\")","v":0},{"$f":"SUMIFS('VSAOI data'!$AN:$AN,'VSAOI data'!$AA:$AA,YEAR(N$2)&MONTH(N$2)&\"D*\")+SUMIFS('VSAOI data'!$AN:$AN,'VSAOI data'!$AA:$AA,YEAR(N$2)&MONTH(N$2)&\"C*\")+SUMIFS('VSAOI data'!$AN:$AN,'VSAOI data'!$AA:$AA,YEAR(N$2)&MONTH(N$2)&\"A*\")","v":0},0]
[null,"starpības",{"$f":"IF(AND('Sakuma lapa'!$J$8=\"iepriekšējo mēnesi\",YEAR(C2)<=2020),IF(D3>0,C13-D12,0),IF(C3>0,C13-C12,0))","v":0},{"$f":"IF(AND('Sakuma lapa'!$J$8=\"iepriekšējo mēnesi\",YEAR(D2)<=2020),IF(E3>0,D13-E12,0),IF(D3>0,D13-D12,0))","v":0},{"$f":"IF(AND('Sakuma lapa'!$J$8=\"iepriekšējo mēnesi\",YEAR(E2)<=2020),IF(F3>0,E13-F12,0),IF(E3>0,E13-E12,0))","v":0},{"$f":"IF(AND('Sakuma lapa'!$J$8=\"iepriekšējo mēnesi\",YEAR(F2)<=2020),IF(G3>0,F13-G12,0),IF(F3>0,F13-F12,0))","v":0},{"$f":"IF(AND('Sakuma lapa'!$J$8=\"iepriekšējo mēnesi\",YEAR(G2)<=2020),IF(H3>0,G13-H12,0),IF(G3>0,G13-G12,0))","v":0},{"$f":"IF(AND('Sakuma lapa'!$J$8=\"iepriekšējo mēnesi\",YEAR(H2)<=2020),IF(I3>0,H13-I12,0),IF(H3>0,H13-H12,0))","v":0},{"$f":"IF(AND('Sakuma lapa'!$J$8=\"iepriekšējo mēnesi\",YEAR(I2)<=2020),IF(J3>0,I13-J12,0),IF(I3>0,I13-I12,0))","v":0},{"$f":"IF(AND('Sakuma lapa'!$J$8=\"iepriekšējo mēnesi\",YEAR(J2)<=2020),IF(K3>0,J13-K12,0),IF(J3>0,J13-J12,0))","v":0},{"$f":"IF(AND('Sakuma lapa'!$J$8=\"iepriekšējo mēnesi\",YEAR(K2)<=2020),IF(L3>0,K13-L12,0),IF(K3>0,K13-K12,0))","v":0},{"$f":"IF(AND('Sakuma lapa'!$J$8=\"iepriekšējo mēnesi\",YEAR(L2)<=2020),IF(M3>0,L13-M12,0),IF(L3>0,L13-L12,0))","v":0},{"$f":"IF(AND('Sakuma lapa'!$J$8=\"iepriekšējo mēnesi\",YEAR(M2)<=2020),IF(N3>0,M13-N12,0),IF(M3>0,M13-M12,0))","v":0},{"$f":"IF(AND('Sakuma lapa'!$J$8=\"iepriekšējo mēnesi\",YEAR(N2)<=2020),IF(O3>0,N13-O12,0),IF(N3>0,N13-N12,0))","v":0},0]
[null,"Riska nodeva",{"$f":"SUMIFS('VSAOI data'!$P:$P,'VSAOI data'!$Z:$Z,YEAR(C$2)&MONTH(C$2))","v":0},{"$f":"SUMIFS('VSAOI data'!$P:$P,'VSAOI data'!$Z:$Z,YEAR(D$2)&MONTH(D$2))","v":0},{"$f":"SUMIFS('VSAOI data'!$P:$P,'VSAOI data'!$Z:$Z,YEAR(E$2)&MONTH(E$2))","v":0},{"$f":"SUMIFS('VSAOI data'!$P:$P,'VSAOI data'!$Z:$Z,YEAR(F$2)&MONTH(F$2))","v":0},{"$f":"SUMIFS('VSAOI data'!$P:$P,'VSAOI data'!$Z:$Z,YEAR(G$2)&MONTH(G$2))","v":0},{"$f":"SUMIFS('VSAOI data'!$P:$P,'VSAOI data'!$Z:$Z,YEAR(H$2)&MONTH(H$2))","v":0},{"$f":"SUMIFS('VSAOI data'!$P:$P,'VSAOI data'!$Z:$Z,YEAR(I$2)&MONTH(I$2))","v":0},{"$f":"SUMIFS('VSAOI data'!$P:$P,'VSAOI data'!$Z:$Z,YEAR(J$2)&MONTH(J$2))","v":0},{"$f":"SUMIFS('VSAOI data'!$P:$P,'VSAOI data'!$Z:$Z,YEAR(K$2)&MONTH(K$2))","v":0},{"$f":"SUMIFS('VSAOI data'!$P:$P,'VSAOI data'!$Z:$Z,YEAR(L$2)&MONTH(L$2))","v":0},{"$f":"SUMIFS('VSAOI data'!$P:$P,'VSAOI data'!$Z:$Z,YEAR(M$2)&MONTH(M$2))","v":0},{"$f":"SUMIFS('VSAOI data'!$P:$P,'VSAOI data'!$Z:$Z,YEAR(N$2)&MONTH(N$2))","v":0},0]
[null,"Nostrādātās stundas",{"$f":"SUMIFS('VSAOI data'!$Q:$Q,'VSAOI data'!$Z:$Z,YEAR(C$2)&MONTH(C$2))","v":0},{"$f":"SUMIFS('VSAOI data'!$Q:$Q,'VSAOI data'!$Z:$Z,YEAR(D$2)&MONTH(D$2))","v":0},{"$f":"SUMIFS('VSAOI data'!$Q:$Q,'VSAOI data'!$Z:$Z,YEAR(E$2)&MONTH(E$2))","v":0},{"$f":"SUMIFS('VSAOI data'!$Q:$Q,'VSAOI data'!$Z:$Z,YEAR(F$2)&MONTH(F$2))","v":0},{"$f":"SUMIFS('VSAOI data'!$Q:$Q,'VSAOI data'!$Z:$Z,YEAR(G$2)&MONTH(G$2))","v":0},{"$f":"SUMIFS('VSAOI data'!$Q:$Q,'VSAOI data'!$Z:$Z,YEAR(H$2)&MONTH(H$2))","v":0},{"$f":"SUMIFS('VSAOI data'!$Q:$Q,'VSAOI data'!$Z:$Z,YEAR(I$2)&MONTH(I$2))","v":0},{"$f":"SUMIFS('VSAOI data'!$Q:$Q,'VSAOI data'!$Z:$Z,YEAR(J$2)&MONTH(J$2))","v":0},{"$f":"SUMIFS('VSAOI data'!$Q:$Q,'VSAOI data'!$Z:$Z,YEAR(K$2)&MONTH(K$2))","v":0},{"$f":"SUMIFS('VSAOI data'!$Q:$Q,'VSAOI data'!$Z:$Z,YEAR(L$2)&MONTH(L$2))","v":0},{"$f":"SUMIFS('VSAOI data'!$Q:$Q,'VSAOI data'!$Z:$Z,YEAR(M$2)&MONTH(M$2))","v":0},{"$f":"SUMIFS('VSAOI data'!$Q:$Q,'VSAOI data'!$Z:$Z,YEAR(N$2)&MONTH(N$2))","v":0},0]
[null,"Atlaistie",{"$f":"COUNTIFS('VSAOI data'!$AB:$AB,YEAR(C$2)&MONTH(C$2)&\"Tab4G*\")","v":0},{"$f":"COUNTIFS('VSAOI data'!$AB:$AB,YEAR(D$2)&MONTH(D$2)&\"Tab4G*\")","v":0},{"$f":"COUNTIFS('VSAOI data'!$AB:$AB,YEAR(E$2)&MONTH(E$2)&\"Tab4G*\")","v":0},{"$f":"COUNTIFS('VSAOI data'!$AB:$AB,YEAR(F$2)&MONTH(F$2)&\"Tab4G*\")","v":0},{"$f":"COUNTIFS('VSAOI data'!$AB:$AB,YEAR(G$2)&MONTH(G$2)&\"Tab4G*\")","v":0},{"$f":"COUNTIFS('VSAOI data'!$AB:$AB,YEAR(H$2)&MONTH(H$2)&\"Tab4G*\")","v":0},{"$f":"COUNTIFS('VSAOI data'!$AB:$AB,YEAR(I$2)&MONTH(I$2)&\"Tab4G*\")","v":0},{"$f":"COUNTIFS('VSAOI data'!$AB:$AB,YEAR(J$2)&MONTH(J$2)&\"Tab4G*\")","v":0},{"$f":"COUNTIFS('VSAOI data'!$AB:$AB,YEAR(K$2)&MONTH(K$2)&\"Tab4G*\")","v":0},{"$f":"COUNTIFS('VSAOI data'!$AB:$AB,YEAR(L$2)&MONTH(L$2)&\"Tab4G*\")","v":0},{"$f":"COUNTIFS('VSAOI data'!$AB:$AB,YEAR(M$2)&MONTH(M$2)&\"Tab4G*\")","v":0},{"$f":"COUNTIFS('VSAOI data'!$AB:$AB,YEAR(N$2)&MONTH(N$2)&\"Tab4G*\")","v":0}]
[null,"Vidējā mēneša alga",{"$f":"IFERROR((SUMIFS('VSAOI data'!$J:$J,'VSAOI data'!$AC:$AC,YEAR(C$2)&MONTH(C$2))+SUMIFS('VSAOI data'!$L:$L,'VSAOI data'!$AC:$AC,YEAR(C$2)&MONTH(C$2)))/COUNTIFS('VSAOI data'!$AC:$AC,YEAR(C$2)&MONTH(C$2)),\"-\")","v":"-"},{"$f":"IFERROR((SUMIFS('VSAOI data'!$J:$J,'VSAOI data'!$AC:$AC,YEAR(D$2)&MONTH(D$2))+SUMIFS('VSAOI data'!$L:$L,'VSAOI data'!$AC:$AC,YEAR(D$2)&MONTH(D$2)))/COUNTIFS('VSAOI data'!$AC:$AC,YEAR(D$2)&MONTH(D$2)),\"-\")","v":"-"},{"$f":"IFERROR((SUMIFS('VSAOI data'!$J:$J,'VSAOI data'!$AC:$AC,YEAR(E$2)&MONTH(E$2))+SUMIFS('VSAOI data'!$L:$L,'VSAOI data'!$AC:$AC,YEAR(E$2)&MONTH(E$2)))/COUNTIFS('VSAOI data'!$AC:$AC,YEAR(E$2)&MONTH(E$2)),\"-\")","v":"-"},{"$f":"IFERROR((SUMIFS('VSAOI data'!$J:$J,'VSAOI data'!$AC:$AC,YEAR(F$2)&MONTH(F$2))+SUMIFS('VSAOI data'!$L:$L,'VSAOI data'!$AC:$AC,YEAR(F$2)&MONTH(F$2)))/COUNTIFS('VSAOI data'!$AC:$AC,YEAR(F$2)&MONTH(F$2)),\"-\")","v":"-"},{"$f":"IFERROR((SUMIFS('VSAOI data'!$J:$J,'VSAOI data'!$AC:$AC,YEAR(G$2)&MONTH(G$2))+SUMIFS('VSAOI data'!$L:$L,'VSAOI data'!$AC:$AC,YEAR(G$2)&MONTH(G$2)))/COUNTIFS('VSAOI data'!$AC:$AC,YEAR(G$2)&MONTH(G$2)),\"-\")","v":"-"},{"$f":"IFERROR((SUMIFS('VSAOI data'!$J:$J,'VSAOI data'!$AC:$AC,YEAR(H$2)&MONTH(H$2))+SUMIFS('VSAOI data'!$L:$L,'VSAOI data'!$AC:$AC,YEAR(H$2)&MONTH(H$2)))/COUNTIFS('VSAOI data'!$AC:$AC,YEAR(H$2)&MONTH(H$2)),\"-\")","v":"-"},{"$f":"IFERROR((SUMIFS('VSAOI data'!$J:$J,'VSAOI data'!$AC:$AC,YEAR(I$2)&MONTH(I$2))+SUMIFS('VSAOI data'!$L:$L,'VSAOI data'!$AC:$AC,YEAR(I$2)&MONTH(I$2)))/COUNTIFS('VSAOI data'!$AC:$AC,YEAR(I$2)&MONTH(I$2)),\"-\")","v":"-"},{"$f":"IFERROR((SUMIFS('VSAOI data'!$J:$J,'VSAOI data'!$AC:$AC,YEAR(J$2)&MONTH(J$2))+SUMIFS('VSAOI data'!$L:$L,'VSAOI data'!$AC:$AC,YEAR(J$2)&MONTH(J$2)))/COUNTIFS('VSAOI data'!$AC:$AC,YEAR(J$2)&MONTH(J$2)),\"-\")","v":"-"},{"$f":"IFERROR((SUMIFS('VSAOI data'!$J:$J,'VSAOI data'!$AC:$AC,YEAR(K$2)&MONTH(K$2))+SUMIFS('VSAOI data'!$L:$L,'VSAOI data'!$AC:$AC,YEAR(K$2)&MONTH(K$2)))/COUNTIFS('VSAOI data'!$AC:$AC,YEAR(K$2)&MONTH(K$2)),\"-\")","v":"-"},{"$f":"IFERROR((SUMIFS('VSAOI data'!$J:$J,'VSAOI data'!$AC:$AC,YEAR(L$2)&MONTH(L$2))+SUMIFS('VSAOI data'!$L:$L,'VSAOI data'!$AC:$AC,YEAR(L$2)&MONTH(L$2)))/COUNTIFS('VSAOI data'!$AC:$AC,YEAR(L$2)&MONTH(L$2)),\"-\")","v":"-"},{"$f":"IFERROR((SUMIFS('VSAOI data'!$J:$J,'VSAOI data'!$AC:$AC,YEAR(M$2)&MONTH(M$2))+SUMIFS('VSAOI data'!$L:$L,'VSAOI data'!$AC:$AC,YEAR(M$2)&MONTH(M$2)))/COUNTIFS('VSAOI data'!$AC:$AC,YEAR(M$2)&MONTH(M$2)),\"-\")","v":"-"},{"$f":"IFERROR((SUMIFS('VSAOI data'!$J:$J,'VSAOI data'!$AC:$AC,YEAR(N$2)&MONTH(N$2))+SUMIFS('VSAOI data'!$L:$L,'VSAOI data'!$AC:$AC,YEAR(N$2)&MONTH(N$2)))/COUNTIFS('VSAOI data'!$AC:$AC,YEAR(N$2)&MONTH(N$2)),\"-\")","v":"-"}]
[null,"Vidējā stundas likme",{"$f":"IFERROR((SUMIFS('VSAOI data'!$J:$J,'VSAOI data'!$AC:$AC,YEAR(C$2)&MONTH(C$2))+SUMIFS('VSAOI data'!$L:$L,'VSAOI data'!$AC:$AC,YEAR(C$2)&MONTH(C$2)))/SUMIFS('VSAOI data'!$Q:$Q,'VSAOI data'!$AC:$AC,YEAR(C$2)&MONTH(C$2)),\"-\")","v":"-"},{"$f":"IFERROR((SUMIFS('VSAOI data'!$J:$J,'VSAOI data'!$AC:$AC,YEAR(D$2)&MONTH(D$2))+SUMIFS('VSAOI data'!$L:$L,'VSAOI data'!$AC:$AC,YEAR(D$2)&MONTH(D$2)))/SUMIFS('VSAOI data'!$Q:$Q,'VSAOI data'!$AC:$AC,YEAR(D$2)&MONTH(D$2)),\"-\")","v":"-"},{"$f":"IFERROR((SUMIFS('VSAOI data'!$J:$J,'VSAOI data'!$AC:$AC,YEAR(E$2)&MONTH(E$2))+SUMIFS('VSAOI data'!$L:$L,'VSAOI data'!$AC:$AC,YEAR(E$2)&MONTH(E$2)))/SUMIFS('VSAOI data'!$Q:$Q,'VSAOI data'!$AC:$AC,YEAR(E$2)&MONTH(E$2)),\"-\")","v":"-"},{"$f":"IFERROR((SUMIFS('VSAOI data'!$J:$J,'VSAOI data'!$AC:$AC,YEAR(F$2)&MONTH(F$2))+SUMIFS('VSAOI data'!$L:$L,'VSAOI data'!$AC:$AC,YEAR(F$2)&MONTH(F$2)))/SUMIFS('VSAOI data'!$Q:$Q,'VSAOI data'!$AC:$AC,YEAR(F$2)&MONTH(F$2)),\"-\")","v":"-"},{"$f":"IFERROR((SUMIFS('VSAOI data'!$J:$J,'VSAOI data'!$AC:$AC,YEAR(G$2)&MONTH(G$2))+SUMIFS('VSAOI data'!$L:$L,'VSAOI data'!$AC:$AC,YEAR(G$2)&MONTH(G$2)))/SUMIFS('VSAOI data'!$Q:$Q,'VSAOI data'!$AC:$AC,YEAR(G$2)&MONTH(G$2)),\"-\")","v":"-"},{"$f":"IFERROR((SUMIFS('VSAOI data'!$J:$J,'VSAOI data'!$AC:$AC,YEAR(H$2)&MONTH(H$2))+SUMIFS('VSAOI data'!$L:$L,'VSAOI data'!$AC:$AC,YEAR(H$2)&MONTH(H$2)))/SUMIFS('VSAOI data'!$Q:$Q,'VSAOI data'!$AC:$AC,YEAR(H$2)&MONTH(H$2)),\"-\")","v":"-"},{"$f":"IFERROR((SUMIFS('VSAOI data'!$J:$J,'VSAOI data'!$AC:$AC,YEAR(I$2)&MONTH(I$2))+SUMIFS('VSAOI data'!$L:$L,'VSAOI data'!$AC:$AC,YEAR(I$2)&MONTH(I$2)))/SUMIFS('VSAOI data'!$Q:$Q,'VSAOI data'!$AC:$AC,YEAR(I$2)&MONTH(I$2)),\"-\")","v":"-"},{"$f":"IFERROR((SUMIFS('VSAOI data'!$J:$J,'VSAOI data'!$AC:$AC,YEAR(J$2)&MONTH(J$2))+SUMIFS('VSAOI data'!$L:$L,'VSAOI data'!$AC:$AC,YEAR(J$2)&MONTH(J$2)))/SUMIFS('VSAOI data'!$Q:$Q,'VSAOI data'!$AC:$AC,YEAR(J$2)&MONTH(J$2)),\"-\")","v":"-"},{"$f":"IFERROR((SUMIFS('VSAOI data'!$J:$J,'VSAOI data'!$AC:$AC,YEAR(K$2)&MONTH(K$2))+SUMIFS('VSAOI data'!$L:$L,'VSAOI data'!$AC:$AC,YEAR(K$2)&MONTH(K$2)))/SUMIFS('VSAOI data'!$Q:$Q,'VSAOI data'!$AC:$AC,YEAR(K$2)&MONTH(K$2)),\"-\")","v":"-"},{"$f":"IFERROR((SUMIFS('VSAOI data'!$J:$J,'VSAOI data'!$AC:$AC,YEAR(L$2)&MONTH(L$2))+SUMIFS('VSAOI data'!$L:$L,'VSAOI data'!$AC:$AC,YEAR(L$2)&MONTH(L$2)))/SUMIFS('VSAOI data'!$Q:$Q,'VSAOI data'!$AC:$AC,YEAR(L$2)&MONTH(L$2)),\"-\")","v":"-"},{"$f":"IFERROR((SUMIFS('VSAOI data'!$J:$J,'VSAOI data'!$AC:$AC,YEAR(M$2)&MONTH(M$2))+SUMIFS('VSAOI data'!$L:$L,'VSAOI data'!$AC:$AC,YEAR(M$2)&MONTH(M$2)))/SUMIFS('VSAOI data'!$Q:$Q,'VSAOI data'!$AC:$AC,YEAR(M$2)&MONTH(M$2)),\"-\")","v":"-"},{"$f":"IFERROR((SUMIFS('VSAOI data'!$J:$J,'VSAOI data'!$AC:$AC,YEAR(N$2)&MONTH(N$2))+SUMIFS('VSAOI data'!$L:$L,'VSAOI data'!$AC:$AC,YEAR(N$2)&MONTH(N$2)))/SUMIFS('VSAOI data'!$Q:$Q,'VSAOI data'!$AC:$AC,YEAR(N$2)&MONTH(N$2)),\"-\")","v":"-"}]
[]
[null,"Ienākumi izmaksāti skaidrā naudā",{"$f":"SUMIFS('VSAOI data'!$J:$J,'VSAOI data'!$Z:$Z,YEAR(C$2)&MONTH(C$2),'VSAOI data'!$X:$X,1)+SUMIFS('VSAOI data'!$L:$L,'VSAOI data'!$Z:$Z,YEAR(C$2)&MONTH(C$2),'VSAOI data'!$X:$X,1)","v":0},{"$f":"SUMIFS('VSAOI data'!$J:$J,'VSAOI data'!$Z:$Z,YEAR(D$2)&MONTH(D$2),'VSAOI data'!$X:$X,1)+SUMIFS('VSAOI data'!$L:$L,'VSAOI data'!$Z:$Z,YEAR(D$2)&MONTH(D$2),'VSAOI data'!$X:$X,1)","v":0},{"$f":"SUMIFS('VSAOI data'!$J:$J,'VSAOI data'!$Z:$Z,YEAR(E$2)&MONTH(E$2),'VSAOI data'!$X:$X,1)+SUMIFS('VSAOI data'!$L:$L,'VSAOI data'!$Z:$Z,YEAR(E$2)&MONTH(E$2),'VSAOI data'!$X:$X,1)","v":0},{"$f":"SUMIFS('VSAOI data'!$J:$J,'VSAOI data'!$Z:$Z,YEAR(F$2)&MONTH(F$2),'VSAOI data'!$X:$X,1)+SUMIFS('VSAOI data'!$L:$L,'VSAOI data'!$Z:$Z,YEAR(F$2)&MONTH(F$2),'VSAOI data'!$X:$X,1)","v":0},{"$f":"SUMIFS('VSAOI data'!$J:$J,'VSAOI data'!$Z:$Z,YEAR(G$2)&MONTH(G$2),'VSAOI data'!$X:$X,1)+SUMIFS('VSAOI data'!$L:$L,'VSAOI data'!$Z:$Z,YEAR(G$2)&MONTH(G$2),'VSAOI data'!$X:$X,1)","v":0},{"$f":"SUMIFS('VSAOI data'!$J:$J,'VSAOI data'!$Z:$Z,YEAR(H$2)&MONTH(H$2),'VSAOI data'!$X:$X,1)+SUMIFS('VSAOI data'!$L:$L,'VSAOI data'!$Z:$Z,YEAR(H$2)&MONTH(H$2),'VSAOI data'!$X:$X,1)","v":0},{"$f":"SUMIFS('VSAOI data'!$J:$J,'VSAOI data'!$Z:$Z,YEAR(I$2)&MONTH(I$2),'VSAOI data'!$X:$X,1)+SUMIFS('VSAOI data'!$L:$L,'VSAOI data'!$Z:$Z,YEAR(I$2)&MONTH(I$2),'VSAOI data'!$X:$X,1)","v":0},{"$f":"SUMIFS('VSAOI data'!$J:$J,'VSAOI data'!$Z:$Z,YEAR(J$2)&MONTH(J$2),'VSAOI data'!$X:$X,1)+SUMIFS('VSAOI data'!$L:$L,'VSAOI data'!$Z:$Z,YEAR(J$2)&MONTH(J$2),'VSAOI data'!$X:$X,1)","v":0},{"$f":"SUMIFS('VSAOI data'!$J:$J,'VSAOI data'!$Z:$Z,YEAR(K$2)&MONTH(K$2),'VSAOI data'!$X:$X,1)+SUMIFS('VSAOI data'!$L:$L,'VSAOI data'!$Z:$Z,YEAR(K$2)&MONTH(K$2),'VSAOI data'!$X:$X,1)","v":0},{"$f":"SUMIFS('VSAOI data'!$J:$J,'VSAOI data'!$Z:$Z,YEAR(L$2)&MONTH(L$2),'VSAOI data'!$X:$X,1)+SUMIFS('VSAOI data'!$L:$L,'VSAOI data'!$Z:$Z,YEAR(L$2)&MONTH(L$2),'VSAOI data'!$X:$X,1)","v":0},{"$f":"SUMIFS('VSAOI data'!$J:$J,'VSAOI data'!$Z:$Z,YEAR(M$2)&MONTH(M$2),'VSAOI data'!$X:$X,1)+SUMIFS('VSAOI data'!$L:$L,'VSAOI data'!$Z:$Z,YEAR(M$2)&MONTH(M$2),'VSAOI data'!$X:$X,1)","v":0},{"$f":"SUMIFS('VSAOI data'!$J:$J,'VSAOI data'!$Z:$Z,YEAR(N$2)&MONTH(N$2),'VSAOI data'!$X:$X,1)+SUMIFS('VSAOI data'!$L:$L,'VSAOI data'!$Z:$Z,YEAR(N$2)&MONTH(N$2),'VSAOI data'!$X:$X,1)","v":0},{"$f":"SUM(C21:N21)","v":0}]
[]
[null,"VG - Bruto alga",null,null,null,null,null,null,null,null,null,null,null,null,{"$f":"SUM(C23:N23)","v":0}]
[null,"VG - Aprēķinātās DD VSAOI",null,null,null,null,null,null,null,null,null,null,null,null,0]
[null,"VG - Aprēķinātās DŅ VSAOI",null,null,null,null,null,null,null,null,null,null,null,null,0]
[null,"VG - Ieturētais IIN ",null,null,null,null,null,null,null,null,null,null,null,null,0]
[null,"VG - Riska nodeva",null,null,null,null,null,null,null,null,null,null,null,null,0]
[]
[null,"Novirze - Bruto alga",{"$f":"C3-C23","v":0},{"$f":"D3-D23","v":0},0,0,0,0,0,0,0,0,0,0,{"$f":"SUM(C29:N29)","v":0}]
[null,"Novirze - Aprēķinātās DD VSAOI",{"$f":"C4-C24","v":0},{"$f":"D4-D24","v":0},0,0,0,0,0,0,0,0,0,0,0]
[null,"Novirze - Aprēķinātās DŅ VSAOI",{"$f":"C5-C25","v":0},{"$f":"D5-D25","v":0},0,0,0,0,0,0,0,0,0,0,0]
[null,"Novirze - Ieturētais IIN",{"$f":"C12-C26","v":0},{"$f":"D12-D26","v":0},0,0,0,0,0,0,0,0,0,0,0]
[null,"Novirze - Riska nodeva",{"$f":"C15-C27","v":0},{"$f":"D15-D27","v":0},0,0,0,0,0,0,0,0,0,0,0]
[]
[]
[]
[null,"(+ parāds, - pārmaksa)"]
[null,"VSAOI - VG sakuma atlikums",null,{"$f":"SUM(C38:C41)","v":0},0,0,0,0,0,0,0,0,0,0,{"$f":"SUM(N38:N41)","v":0}]
[null,"Aprēķins - Deklarācijas",{"$f":"-SUMIFS('VSAOI transakcijas'!$R:$R,'VSAOI transakcijas'!$D:$D,\"Aprēķins\",'VSAOI transakcijas'!$H:$H,\"Pamatsumma\",'VSAOI transakcijas'!$S:$S,\">=\"&DATE(YEAR(C2),MONTH(C2),1),'VSAOI transakcijas'!$S:$S,\"<=\"&'Sakuma lapa'!$F$16,'VSAOI transakcijas'!$O:$O,YEAR(DATE(YEAR(C2),MONTH(C2)+2,0)),'VSAOI transakcijas'!$P:$P,RIGHT(\"0\"&MONTH(DATE(YEAR(C2),MONTH(C2)+2,0)),2),'VSAOI transakcijas'!$Q:$Q,\"VSAOI\",'VSAOI transakcijas'!$K:$K,\"<>\"&\"FIFO*\",'VSAOI transakcijas'!$K:$K,\"<>\"&\"Iemaksas atbrīvošana\",'VSAOI transakcijas'!$E:$E,\"Deklarācija/pārskats\")","v":0},{"$f":"-SUMIFS('VSAOI transakcijas'!$R:$R,'VSAOI transakcijas'!$D:$D,\"Aprēķins\",'VSAOI transakcijas'!$H:$H,\"Pamatsumma\",'VSAOI transakcijas'!$S:$S,\">=\"&DATE(YEAR(D2),MONTH(D2),1),'VSAOI transakcijas'!$S:$S,\"<=\"&'Sakuma lapa'!$F$16,'VSAOI transakcijas'!$O:$O,YEAR(DATE(YEAR(D2),MONTH(D2)+2,0)),'VSAOI transakcijas'!$P:$P,RIGHT(\"0\"&MONTH(DATE(YEAR(D2),MONTH(D2)+2,0)),2),'VSAOI transakcijas'!$Q:$Q,\"VSAOI\",'VSAOI transakcijas'!$K:$K,\"<>\"&\"FIFO*\",'VSAOI transakcijas'!$K:$K,\"<>\"&\"Iemaksas atbrīvošana\",'VSAOI transakcijas'!$E:$E,\"Deklarācija/pārskats\")","v":0},{"$f":"-SUMIFS('VSAOI transakcijas'!$R:$R,'VSAOI transakcijas'!$D:$D,\"Aprēķins\",'VSAOI transakcijas'!$H:$H,\"Pamatsumma\",'VSAOI transakcijas'!$S:$S,\">=\"&DATE(YEAR(E2),MONTH(E2),1),'VSAOI transakcijas'!$S:$S,\"<=\"&'Sakuma lapa'!$F$16,'VSAOI transakcijas'!$O:$O,YEAR(DATE(YEAR(E2),MONTH(E2)+2,0)),'VSAOI transakcijas'!$P:$P,RIGHT(\"0\"&MONTH(DATE(YEAR(E2),MONTH(E2)+2,0)),2),'VSAOI transakcijas'!$Q:$Q,\"VSAOI\",'VSAOI transakcijas'!$K:$K,\"<>\"&\"FIFO*\",'VSAOI transakcijas'!$K:$K,\"<>\"&\"Iemaksas atbrīvošana\",'VSAOI transakcijas'!$E:$E,\"Deklarācija/pārskats\")","v":0},{"$f":"-SUMIFS('VSAOI transakcijas'!$R:$R,'VSAOI transakcijas'!$D:$D,\"Aprēķins\",'VSAOI transakcijas'!$H:$H,\"Pamatsumma\",'VSAOI transakcijas'!$S:$S,\">=\"&DATE(YEAR(F2),MONTH(F2),1),'VSAOI transakcijas'!$S:$S,\"<=\"&'Sakuma lapa'!$F$16,'VSAOI transakcijas'!$O:$O,YEAR(DATE(YEAR(F2),MONTH(F2)+2,0)),'VSAOI transakcijas'!$P:$P,RIGHT(\"0\"&MONTH(DATE(YEAR(F2),MONTH(F2)+2,0)),2),'VSAOI transakcijas'!$Q:$Q,\"VSAOI\",'VSAOI transakcijas'!$K:$K,\"<>\"&\"FIFO*\",'VSAOI transakcijas'!$K:$K,\"<>\"&\"Iemaksas atbrīvošana\",'VSAOI transakcijas'!$E:$E,\"Deklarācija/pārskats\")","v":0},{"$f":"-SUMIFS('VSAOI transakcijas'!$R:$R,'VSAOI transakcijas'!$D:$D,\"Aprēķins\",'VSAOI transakcijas'!$H:$H,\"Pamatsumma\",'VSAOI transakcijas'!$S:$S,\">=\"&DATE(YEAR(G2),MONTH(G2),1),'VSAOI transakcijas'!$S:$S,\"<=\"&'Sakuma lapa'!$F$16,'VSAOI transakcijas'!$O:$O,YEAR(DATE(YEAR(G2),MONTH(G2)+2,0)),'VSAOI transakcijas'!$P:$P,RIGHT(\"0\"&MONTH(DATE(YEAR(G2),MONTH(G2)+2,0)),2),'VSAOI transakcijas'!$Q:$Q,\"VSAOI\",'VSAOI transakcijas'!$K:$K,\"<>\"&\"FIFO*\",'VSAOI transakcijas'!$K:$K,\"<>\"&\"Iemaksas atbrīvošana\",'VSAOI transakcijas'!$E:$E,\"Deklarācija/pārskats\")","v":0},{"$f":"-SUMIFS('VSAOI transakcijas'!$R:$R,'VSAOI transakcijas'!$D:$D,\"Aprēķins\",'VSAOI transakcijas'!$H:$H,\"Pamatsumma\",'VSAOI transakcijas'!$S:$S,\">=\"&DATE(YEAR(H2),MONTH(H2),1),'VSAOI transakcijas'!$S:$S,\"<=\"&'Sakuma lapa'!$F$16,'VSAOI transakcijas'!$O:$O,YEAR(DATE(YEAR(H2),MONTH(H2)+2,0)),'VSAOI transakcijas'!$P:$P,RIGHT(\"0\"&MONTH(DATE(YEAR(H2),MONTH(H2)+2,0)),2),'VSAOI transakcijas'!$Q:$Q,\"VSAOI\",'VSAOI transakcijas'!$K:$K,\"<>\"&\"FIFO*\",'VSAOI transakcijas'!$K:$K,\"<>\"&\"Iemaksas atbrīvošana\",'VSAOI transakcijas'!$E:$E,\"Deklarācija/pārskats\")","v":0},{"$f":"-SUMIFS('VSAOI transakcijas'!$R:$R,'VSAOI transakcijas'!$D:$D,\"Aprēķins\",'VSAOI transakcijas'!$H:$H,\"Pamatsumma\",'VSAOI transakcijas'!$S:$S,\">=\"&DATE(YEAR(I2),MONTH(I2),1),'VSAOI transakcijas'!$S:$S,\"<=\"&'Sakuma lapa'!$F$16,'VSAOI transakcijas'!$O:$O,YEAR(DATE(YEAR(I2),MONTH(I2)+2,0)),'VSAOI transakcijas'!$P:$P,RIGHT(\"0\"&MONTH(DATE(YEAR(I2),MONTH(I2)+2,0)),2),'VSAOI transakcijas'!$Q:$Q,\"VSAOI\",'VSAOI transakcijas'!$K:$K,\"<>\"&\"FIFO*\",'VSAOI transakcijas'!$K:$K,\"<>\"&\"Iemaksas atbrīvošana\",'VSAOI transakcijas'!$E:$E,\"Deklarācija/pārskats\")","v":0},{"$f":"-SUMIFS('VSAOI transakcijas'!$R:$R,'VSAOI transakcijas'!$D:$D,\"Aprēķins\",'VSAOI transakcijas'!$H:$H,\"Pamatsumma\",'VSAOI transakcijas'!$S:$S,\">=\"&DATE(YEAR(J2),MONTH(J2),1),'VSAOI transakcijas'!$S:$S,\"<=\"&'Sakuma lapa'!$F$16,'VSAOI transakcijas'!$O:$O,YEAR(DATE(YEAR(J2),MONTH(J2)+2,0)),'VSAOI transakcijas'!$P:$P,RIGHT(\"0\"&MONTH(DATE(YEAR(J2),MONTH(J2)+2,0)),2),'VSAOI transakcijas'!$Q:$Q,\"VSAOI\",'VSAOI transakcijas'!$K:$K,\"<>\"&\"FIFO*\",'VSAOI transakcijas'!$K:$K,\"<>\"&\"Iemaksas atbrīvošana\",'VSAOI transakcijas'!$E:$E,\"Deklarācija/pārskats\")","v":0},{"$f":"-SUMIFS('VSAOI transakcijas'!$R:$R,'VSAOI transakcijas'!$D:$D,\"Aprēķins\",'VSAOI transakcijas'!$H:$H,\"Pamatsumma\",'VSAOI transakcijas'!$S:$S,\">=\"&DATE(YEAR(K2),MONTH(K2),1),'VSAOI transakcijas'!$S:$S,\"<=\"&'Sakuma lapa'!$F$16,'VSAOI transakcijas'!$O:$O,YEAR(DATE(YEAR(K2),MONTH(K2)+2,0)),'VSAOI transakcijas'!$P:$P,RIGHT(\"0\"&MONTH(DATE(YEAR(K2),MONTH(K2)+2,0)),2),'VSAOI transakcijas'!$Q:$Q,\"VSAOI\",'VSAOI transakcijas'!$K:$K,\"<>\"&\"FIFO*\",'VSAOI transakcijas'!$K:$K,\"<>\"&\"Iemaksas atbrīvošana\",'VSAOI transakcijas'!$E:$E,\"Deklarācija/pārskats\")","v":0},{"$f":"-SUMIFS('VSAOI transakcijas'!$R:$R,'VSAOI transakcijas'!$D:$D,\"Aprēķins\",'VSAOI transakcijas'!$H:$H,\"Pamatsumma\",'VSAOI transakcijas'!$S:$S,\">=\"&DATE(YEAR(L2),MONTH(L2),1),'VSAOI transakcijas'!$S:$S,\"<=\"&'Sakuma lapa'!$F$16,'VSAOI transakcijas'!$O:$O,YEAR(DATE(YEAR(L2),MONTH(L2)+2,0)),'VSAOI transakcijas'!$P:$P,RIGHT(\"0\"&MONTH(DATE(YEAR(L2),MONTH(L2)+2,0)),2),'VSAOI transakcijas'!$Q:$Q,\"VSAOI\",'VSAOI transakcijas'!$K:$K,\"<>\"&\"FIFO*\",'VSAOI transakcijas'!$K:$K,\"<>\"&\"Iemaksas atbrīvošana\",'VSAOI transakcijas'!$E:$E,\"Deklarācija/pārskats\")","v":0},{"$f":"-SUMIFS('VSAOI transakcijas'!$R:$R,'VSAOI transakcijas'!$D:$D,\"Aprēķins\",'VSAOI transakcijas'!$H:$H,\"Pamatsumma\",'VSAOI transakcijas'!$S:$S,\">=\"&DATE(YEAR(M2),MONTH(M2),1),'VSAOI transakcijas'!$S:$S,\"<=\"&'Sakuma lapa'!$F$16,'VSAOI transakcijas'!$O:$O,YEAR(DATE(YEAR(M2),MONTH(M2)+2,0)),'VSAOI transakcijas'!$P:$P,RIGHT(\"0\"&MONTH(DATE(YEAR(M2),MONTH(M2)+2,0)),2),'VSAOI transakcijas'!$Q:$Q,\"VSAOI\",'VSAOI transakcijas'!$K:$K,\"<>\"&\"FIFO*\",'VSAOI transakcijas'!$K:$K,\"<>\"&\"Iemaksas atbrīvošana\",'VSAOI transakcijas'!$E:$E,\"Deklarācija/pārskats\")","v":0},{"$f":"-SUMIFS('VSAOI transakcijas'!$R:$R,'VSAOI transakcijas'!$D:$D,\"Aprēķins\",'VSAOI transakcijas'!$H:$H,\"Pamatsumma\",'VSAOI transakcijas'!$S:$S,\">=\"&DATE(YEAR(N2),MONTH(N2),1),'VSAOI transakcijas'!$S:$S,\"<=\"&'Sakuma lapa'!$F$16,'VSAOI transakcijas'!$O:$O,YEAR(DATE(YEAR(N2),MONTH(N2)+2,0)),'VSAOI transakcijas'!$P:$P,RIGHT(\"0\"&MONTH(DATE(YEAR(N2),MONTH(N2)+2,0)),2),'VSAOI transakcijas'!$Q:$Q,\"VSAOI\",'VSAOI transakcijas'!$K:$K,\"<>\"&\"FIFO*\",'VSAOI transakcijas'!$K:$K,\"<>\"&\"Iemaksas atbrīvošana\",'VSAOI transakcijas'!$E:$E,\"Deklarācija/pārskats\")","v":0},{"$f":"SUM(C39:N39)","v":0}]
[null,"Aprēķins - Citi",{"$f":"-SUMIFS('VSAOI transakcijas'!$R:$R,'VSAOI transakcijas'!$D:$D,\"Aprēķins\",'VSAOI transakcijas'!$H:$H,\"Pamatsumma\",'VSAOI transakcijas'!$S:$S,\">=\"&DATE(YEAR(C2),MONTH(C2),1),'VSAOI transakcijas'!$S:$S,\"<=\"&'Sakuma lapa'!$F$16,'VSAOI transakcijas'!$O:$O,YEAR(DATE(YEAR(C2),MONTH(C2)+2,0)),'VSAOI transakcijas'!$P:$P,RIGHT(\"0\"&MONTH(DATE(YEAR(C2),MONTH(C2)+2,0)),2),'VSAOI transakcijas'!$Q:$Q,\"VSAOI\",'VSAOI transakcijas'!$K:$K,\"<>\"&\"FIFO*\",'VSAOI transakcijas'!$K:$K,\"<>\"&\"Iemaksas atbrīvošana\",'VSAOI transakcijas'!$E:$E,\"<>\"&\"Deklarācija/pārskats\")","v":0},{"$f":"-SUMIFS('VSAOI transakcijas'!$R:$R,'VSAOI transakcijas'!$D:$D,\"Aprēķins\",'VSAOI transakcijas'!$H:$H,\"Pamatsumma\",'VSAOI transakcijas'!$S:$S,\">=\"&DATE(YEAR(D2),MONTH(D2),1),'VSAOI transakcijas'!$S:$S,\"<=\"&'Sakuma lapa'!$F$16,'VSAOI transakcijas'!$O:$O,YEAR(DATE(YEAR(D2),MONTH(D2)+2,0)),'VSAOI transakcijas'!$P:$P,RIGHT(\"0\"&MONTH(DATE(YEAR(D2),MONTH(D2)+2,0)),2),'VSAOI transakcijas'!$Q:$Q,\"VSAOI\",'VSAOI transakcijas'!$K:$K,\"<>\"&\"FIFO*\",'VSAOI transakcijas'!$K:$K,\"<>\"&\"Iemaksas atbrīvošana\",'VSAOI transakcijas'!$E:$E,\"<>\"&\"Deklarācija/pārskats\")","v":0},{"$f":"-SUMIFS('VSAOI transakcijas'!$R:$R,'VSAOI transakcijas'!$D:$D,\"Aprēķins\",'VSAOI transakcijas'!$H:$H,\"Pamatsumma\",'VSAOI transakcijas'!$S:$S,\">=\"&DATE(YEAR(E2),MONTH(E2),1),'VSAOI transakcijas'!$S:$S,\"<=\"&'Sakuma lapa'!$F$16,'VSAOI transakcijas'!$O:$O,YEAR(DATE(YEAR(E2),MONTH(E2)+2,0)),'VSAOI transakcijas'!$P:$P,RIGHT(\"0\"&MONTH(DATE(YEAR(E2),MONTH(E2)+2,0)),2),'VSAOI transakcijas'!$Q:$Q,\"VSAOI\",'VSAOI transakcijas'!$K:$K,\"<>\"&\"FIFO*\",'VSAOI transakcijas'!$K:$K,\"<>\"&\"Iemaksas atbrīvošana\",'VSAOI transakcijas'!$E:$E,\"<>\"&\"Deklarācija/pārskats\")","v":0},{"$f":"-SUMIFS('VSAOI transakcijas'!$R:$R,'VSAOI transakcijas'!$D:$D,\"Aprēķins\",'VSAOI transakcijas'!$H:$H,\"Pamatsumma\",'VSAOI transakcijas'!$S:$S,\">=\"&DATE(YEAR(F2),MONTH(F2),1),'VSAOI transakcijas'!$S:$S,\"<=\"&'Sakuma lapa'!$F$16,'VSAOI transakcijas'!$O:$O,YEAR(DATE(YEAR(F2),MONTH(F2)+2,0)),'VSAOI transakcijas'!$P:$P,RIGHT(\"0\"&MONTH(DATE(YEAR(F2),MONTH(F2)+2,0)),2),'VSAOI transakcijas'!$Q:$Q,\"VSAOI\",'VSAOI transakcijas'!$K:$K,\"<>\"&\"FIFO*\",'VSAOI transakcijas'!$K:$K,\"<>\"&\"Iemaksas atbrīvošana\",'VSAOI transakcijas'!$E:$E,\"<>\"&\"Deklarācija/pārskats\")","v":0},{"$f":"-SUMIFS('VSAOI transakcijas'!$R:$R,'VSAOI transakcijas'!$D:$D,\"Aprēķins\",'VSAOI transakcijas'!$H:$H,\"Pamatsumma\",'VSAOI transakcijas'!$S:$S,\">=\"&DATE(YEAR(G2),MONTH(G2),1),'VSAOI transakcijas'!$S:$S,\"<=\"&'Sakuma lapa'!$F$16,'VSAOI transakcijas'!$O:$O,YEAR(DATE(YEAR(G2),MONTH(G2)+2,0)),'VSAOI transakcijas'!$P:$P,RIGHT(\"0\"&MONTH(DATE(YEAR(G2),MONTH(G2)+2,0)),2),'VSAOI transakcijas'!$Q:$Q,\"VSAOI\",'VSAOI transakcijas'!$K:$K,\"<>\"&\"FIFO*\",'VSAOI transakcijas'!$K:$K,\"<>\"&\"Iemaksas atbrīvošana\",'VSAOI transakcijas'!$E:$E,\"<>\"&\"Deklarācija/pārskats\")","v":0},{"$f":"-SUMIFS('VSAOI transakcijas'!$R:$R,'VSAOI transakcijas'!$D:$D,\"Aprēķins\",'VSAOI transakcijas'!$H:$H,\"Pamatsumma\",'VSAOI transakcijas'!$S:$S,\">=\"&DATE(YEAR(H2),MONTH(H2),1),'VSAOI transakcijas'!$S:$S,\"<=\"&'Sakuma lapa'!$F$16,'VSAOI transakcijas'!$O:$O,YEAR(DATE(YEAR(H2),MONTH(H2)+2,0)),'VSAOI transakcijas'!$P:$P,RIGHT(\"0\"&MONTH(DATE(YEAR(H2),MONTH(H2)+2,0)),2),'VSAOI transakcijas'!$Q:$Q,\"VSAOI\",'VSAOI transakcijas'!$K:$K,\"<>\"&\"FIFO*\",'VSAOI transakcijas'!$K:$K,\"<>\"&\"Iemaksas atbrīvošana\",'VSAOI transakcijas'!$E:$E,\"<>\"&\"Deklarācija/pārskats\")","v":0},{"$f":"-SUMIFS('VSAOI transakcijas'!$R:$R,'VSAOI transakcijas'!$D:$D,\"Aprēķins\",'VSAOI transakcijas'!$H:$H,\"Pamatsumma\",'VSAOI transakcijas'!$S:$S,\">=\"&DATE(YEAR(I2),MONTH(I2),1),'VSAOI transakcijas'!$S:$S,\"<=\"&'Sakuma lapa'!$F$16,'VSAOI transakcijas'!$O:$O,YEAR(DATE(YEAR(I2),MONTH(I2)+2,0)),'VSAOI transakcijas'!$P:$P,RIGHT(\"0\"&MONTH(DATE(YEAR(I2),MONTH(I2)+2,0)),2),'VSAOI transakcijas'!$Q:$Q,\"VSAOI\",'VSAOI transakcijas'!$K:$K,\"<>\"&\"FIFO*\",'VSAOI transakcijas'!$K:$K,\"<>\"&\"Iemaksas atbrīvošana\",'VSAOI transakcijas'!$E:$E,\"<>\"&\"Deklarācija/pārskats\")","v":0},{"$f":"-SUMIFS('VSAOI transakcijas'!$R:$R,'VSAOI transakcijas'!$D:$D,\"Aprēķins\",'VSAOI transakcijas'!$H:$H,\"Pamatsumma\",'VSAOI transakcijas'!$S:$S,\">=\"&DATE(YEAR(J2),MONTH(J2),1),'VSAOI transakcijas'!$S:$S,\"<=\"&'Sakuma lapa'!$F$16,'VSAOI transakcijas'!$O:$O,YEAR(DATE(YEAR(J2),MONTH(J2)+2,0)),'VSAOI transakcijas'!$P:$P,RIGHT(\"0\"&MONTH(DATE(YEAR(J2),MONTH(J2)+2,0)),2),'VSAOI transakcijas'!$Q:$Q,\"VSAOI\",'VSAOI transakcijas'!$K:$K,\"<>\"&\"FIFO*\",'VSAOI transakcijas'!$K:$K,\"<>\"&\"Iemaksas atbrīvošana\",'VSAOI transakcijas'!$E:$E,\"<>\"&\"Deklarācija/pārskats\")","v":0},{"$f":"-SUMIFS('VSAOI transakcijas'!$R:$R,'VSAOI transakcijas'!$D:$D,\"Aprēķins\",'VSAOI transakcijas'!$H:$H,\"Pamatsumma\",'VSAOI transakcijas'!$S:$S,\">=\"&DATE(YEAR(K2),MONTH(K2),1),'VSAOI transakcijas'!$S:$S,\"<=\"&'Sakuma lapa'!$F$16,'VSAOI transakcijas'!$O:$O,YEAR(DATE(YEAR(K2),MONTH(K2)+2,0)),'VSAOI transakcijas'!$P:$P,RIGHT(\"0\"&MONTH(DATE(YEAR(K2),MONTH(K2)+2,0)),2),'VSAOI transakcijas'!$Q:$Q,\"VSAOI\",'VSAOI transakcijas'!$K:$K,\"<>\"&\"FIFO*\",'VSAOI transakcijas'!$K:$K,\"<>\"&\"Iemaksas atbrīvošana\",'VSAOI transakcijas'!$E:$E,\"<>\"&\"Deklarācija/pārskats\")","v":0},{"$f":"-SUMIFS('VSAOI transakcijas'!$R:$R,'VSAOI transakcijas'!$D:$D,\"Aprēķins\",'VSAOI transakcijas'!$H:$H,\"Pamatsumma\",'VSAOI transakcijas'!$S:$S,\">=\"&DATE(YEAR(L2),MONTH(L2),1),'VSAOI transakcijas'!$S:$S,\"<=\"&'Sakuma lapa'!$F$16,'VSAOI transakcijas'!$O:$O,YEAR(DATE(YEAR(L2),MONTH(L2)+2,0)),'VSAOI transakcijas'!$P:$P,RIGHT(\"0\"&MONTH(DATE(YEAR(L2),MONTH(L2)+2,0)),2),'VSAOI transakcijas'!$Q:$Q,\"VSAOI\",'VSAOI transakcijas'!$K:$K,\"<>\"&\"FIFO*\",'VSAOI transakcijas'!$K:$K,\"<>\"&\"Iemaksas atbrīvošana\",'VSAOI transakcijas'!$E:$E,\"<>\"&\"Deklarācija/pārskats\")","v":0},{"$f":"-SUMIFS('VSAOI transakcijas'!$R:$R,'VSAOI transakcijas'!$D:$D,\"Aprēķins\",'VSAOI transakcijas'!$H:$H,\"Pamatsumma\",'VSAOI transakcijas'!$S:$S,\">=\"&DATE(YEAR(M2),MONTH(M2),1),'VSAOI transakcijas'!$S:$S,\"<=\"&'Sakuma lapa'!$F$16,'VSAOI transakcijas'!$O:$O,YEAR(DATE(YEAR(M2),MONTH(M2)+2,0)),'VSAOI transakcijas'!$P:$P,RIGHT(\"0\"&MONTH(DATE(YEAR(M2),MONTH(M2)+2,0)),2),'VSAOI transakcijas'!$Q:$Q,\"VSAOI\",'VSAOI transakcijas'!$K:$K,\"<>\"&\"FIFO*\",'VSAOI transakcijas'!$K:$K,\"<>\"&\"Iemaksas atbrīvošana\",'VSAOI transakcijas'!$E:$E,\"<>\"&\"Deklarācija/pārskats\")","v":0},{"$f":"-SUMIFS('VSAOI transakcijas'!$R:$R,'VSAOI transakcijas'!$D:$D,\"Aprēķins\",'VSAOI transakcijas'!$H:$H,\"Pamatsumma\",'VSAOI transakcijas'!$S:$S,\">=\"&DATE(YEAR(N2),MONTH(N2),1),'VSAOI transakcijas'!$S:$S,\"<=\"&'Sakuma lapa'!$F$16,'VSAOI transakcijas'!$O:$O,YEAR(DATE(YEAR(N2),MONTH(N2)+2,0)),'VSAOI transakcijas'!$P:$P,RIGHT(\"0\"&MONTH(DATE(YEAR(N2),MONTH(N2)+2,0)),2),'VSAOI transakcijas'!$Q:$Q,\"VSAOI\",'VSAOI transakcijas'!$K:$K,\"<>\"&\"FIFO*\",'VSAOI transakcijas'!$K:$K,\"<>\"&\"Iemaksas atbrīvošana\",'VSAOI transakcijas'!$E:$E,\"<>\"&\"Deklarācija/pārskats\")","v":0},{"$f":"SUM(C40:N40)","v":0}]
[null,"Iemaksa/Atmaksa/Pārvietošana",{"$f":"-SUMIFS('VSAOI transakcijas'!$R:$R,'VSAOI transakcijas'!$D:$D,\"Iemaksa\",'VSAOI transakcijas'!$H:$H,\"Pamatsumma\",'VSAOI transakcijas'!$S:$S,\">=\"&DATE(YEAR(C2),MONTH(C2),1),'VSAOI transakcijas'!$S:$S,\"<=\"&'Sakuma lapa'!$F$16,'VSAOI transakcijas'!$O:$O,YEAR(DATE(YEAR(C2),MONTH(C2)+1,0)),'VSAOI transakcijas'!$P:$P,RIGHT(\"0\"&MONTH(DATE(YEAR(C2),MONTH(C2)+1,0)),2),'VSAOI transakcijas'!$Q:$Q,\"VSAOI\")\n-SUMIFS('VSAOI transakcijas'!$R:$R,'VSAOI transakcijas'!$D:$D,\"Atmaksa\",'VSAOI transakcijas'!$H:$H,\"Pamatsumma\",'VSAOI transakcijas'!$S:$S,\">=\"&DATE(YEAR(C2),MONTH(C2),1),'VSAOI transakcijas'!$S:$S,\"<=\"&'Sakuma lapa'!$F$16,'VSAOI transakcijas'!$O:$O,YEAR(DATE(YEAR(C2),MONTH(C2)+1,0)),'VSAOI transakcijas'!$P:$P,RIGHT(\"0\"&MONTH(DATE(YEAR(C2),MONTH(C2)+1,0)),2),'VSAOI transakcijas'!$Q:$Q,\"VSAOI\")\n-SUMIFS('VSAOI transakcijas'!$R:$R,'VSAOI transakcijas'!$D:$D,\"Aprēķins\",'VSAOI transakcijas'!$H:$H,\"Pamatsumma\",'VSAOI transakcijas'!$S:$S,\">=\"&DATE(YEAR(C2),MONTH(C2),1),'VSAOI transakcijas'!$S:$S,\"<=\"&'Sakuma lapa'!$F$16,'VSAOI transakcijas'!$O:$O,YEAR(DATE(YEAR(C2),MONTH(C2)+1,0)),'VSAOI transakcijas'!$P:$P,RIGHT(\"0\"&MONTH(DATE(YEAR(C2),MONTH(C2)+1,0)),2),'VSAOI transakcijas'!$Q:$Q,\"VSAOI\",'VSAOI transakcijas'!$K:$K,\"FIFO*\")\n-SUMIFS('VSAOI transakcijas'!$R:$R,'VSAOI transakcijas'!$D:$D,\"Aprēķins\",'VSAOI transakcijas'!$H:$H,\"Pamatsumma\",'VSAOI transakcijas'!$S:$S,\">=\"&DATE(YEAR(C2),MONTH(C2),1),'VSAOI transakcijas'!$S:$S,\"<=\"&'Sakuma lapa'!$F$16,'VSAOI transakcijas'!$O:$O,YEAR(DATE(YEAR(C2),MONTH(C2)+1,0)),'VSAOI transakcijas'!$P:$P,RIGHT(\"0\"&MONTH(DATE(YEAR(C2),MONTH(C2)+1,0)),2),'VSAOI transakcijas'!$Q:$Q,\"VSAOI\",'VSAOI transakcijas'!$K:$K,\"Iemaksas atbrīvošana\")\n-SUMIFS('VSAOI transakcijas'!$R:$R,'VSAOI transakcijas'!$H:$H,\"Nokavējuma nauda\",'VSAOI transakcijas'!$S:$S,\">=\"&DATE(YEAR(C2),MONTH(C2),1),'VSAOI transakcijas'!$S:$S,\"<=\"&'Sakuma lapa'!$F$16,'VSAOI transakcijas'!$O:$O,YEAR(DATE(YEAR(C2),MONTH(C2)+1,0)),'VSAOI transakcijas'!$P:$P,RIGHT(\"0\"&MONTH(DATE(YEAR(C2),MONTH(C2)+1,0)),2),'VSAOI transakcijas'!$Q:$Q,\"VSAOI\")","v":0},{"$f":"-SUMIFS('VSAOI transakcijas'!$R:$R,'VSAOI transakcijas'!$D:$D,\"Iemaksa\",'VSAOI transakcijas'!$H:$H,\"Pamatsumma\",'VSAOI transakcijas'!$S:$S,\">=\"&DATE(YEAR(D2),MONTH(D2),1),'VSAOI transakcijas'!$S:$S,\"<=\"&'Sakuma lapa'!$F$16,'VSAOI transakcijas'!$O:$O,YEAR(DATE(YEAR(D2),MONTH(D2)+1,0)),'VSAOI transakcijas'!$P:$P,RIGHT(\"0\"&MONTH(DATE(YEAR(D2),MONTH(D2)+1,0)),2),'VSAOI transakcijas'!$Q:$Q,\"VSAOI\")\n-SUMIFS('VSAOI transakcijas'!$R:$R,'VSAOI transakcijas'!$D:$D,\"Atmaksa\",'VSAOI transakcijas'!$H:$H,\"Pamatsumma\",'VSAOI transakcijas'!$S:$S,\">=\"&DATE(YEAR(D2),MONTH(D2),1),'VSAOI transakcijas'!$S:$S,\"<=\"&'Sakuma lapa'!$F$16,'VSAOI transakcijas'!$O:$O,YEAR(DATE(YEAR(D2),MONTH(D2)+1,0)),'VSAOI transakcijas'!$P:$P,RIGHT(\"0\"&MONTH(DATE(YEAR(D2),MONTH(D2)+1,0)),2),'VSAOI transakcijas'!$Q:$Q,\"VSAOI\")\n-SUMIFS('VSAOI transakcijas'!$R:$R,'VSAOI transakcijas'!$D:$D,\"Aprēķins\",'VSAOI transakcijas'!$H:$H,\"Pamatsumma\",'VSAOI transakcijas'!$S:$S,\">=\"&DATE(YEAR(D2),MONTH(D2),1),'VSAOI transakcijas'!$S:$S,\"<=\"&'Sakuma lapa'!$F$16,'VSAOI transakcijas'!$O:$O,YEAR(DATE(YEAR(D2),MONTH(D2)+1,0)),'VSAOI transakcijas'!$P:$P,RIGHT(\"0\"&MONTH(DATE(YEAR(D2),MONTH(D2)+1,0)),2),'VSAOI transakcijas'!$Q:$Q,\"VSAOI\",'VSAOI transakcijas'!$K:$K,\"FIFO*\")\n-SUMIFS('VSAOI transakcijas'!$R:$R,'VSAOI transakcijas'!$D:$D,\"Aprēķins\",'VSAOI transakcijas'!$H:$H,\"Pamatsumma\",'VSAOI transakcijas'!$S:$S,\">=\"&DATE(YEAR(D2),MONTH(D2),1),'VSAOI transakcijas'!$S:$S,\"<=\"&'Sakuma lapa'!$F$16,'VSAOI transakcijas'!$O:$O,YEAR(DATE(YEAR(D2),MONTH(D2)+1,0)),'VSAOI transakcijas'!$P:$P,RIGHT(\"0\"&MONTH(DATE(YEAR(D2),MONTH(D2)+1,0)),2),'VSAOI transakcijas'!$Q:$Q,\"VSAOI\",'VSAOI transakcijas'!$K:$K,\"Iemaksas atbrīvošana\")\n-SUMIFS('VSAOI transakcijas'!$R:$R,'VSAOI transakcijas'!$H:$H,\"Nokavējuma nauda\",'VSAOI transakcijas'!$S:$S,\">=\"&DATE(YEAR(D2),MONTH(D2),1),'VSAOI transakcijas'!$S:$S,\"<=\"&'Sakuma lapa'!$F$16,'VSAOI transakcijas'!$O:$O,YEAR(DATE(YEAR(D2),MONTH(D2)+1,0)),'VSAOI transakcijas'!$P:$P,RIGHT(\"0\"&MONTH(DATE(YEAR(D2),MONTH(D2)+1,0)),2),'VSAOI transakcijas'!$Q:$Q,\"VSAOI\")","v":0},{"$f":"-SUMIFS('VSAOI transakcijas'!$R:$R,'VSAOI transakcijas'!$D:$D,\"Iemaksa\",'VSAOI transakcijas'!$H:$H,\"Pamatsumma\",'VSAOI transakcijas'!$S:$S,\">=\"&DATE(YEAR(E2),MONTH(E2),1),'VSAOI transakcijas'!$S:$S,\"<=\"&'Sakuma lapa'!$F$16,'VSAOI transakcijas'!$O:$O,YEAR(DATE(YEAR(E2),MONTH(E2)+1,0)),'VSAOI transakcijas'!$P:$P,RIGHT(\"0\"&MONTH(DATE(YEAR(E2),MONTH(E2)+1,0)),2),'VSAOI transakcijas'!$Q:$Q,\"VSAOI\")\n-SUMIFS('VSAOI transakcijas'!$R:$R,'VSAOI transakcijas'!$D:$D,\"Atmaksa\",'VSAOI transakcijas'!$H:$H,\"Pamatsumma\",'VSAOI transakcijas'!$S:$S,\">=\"&DATE(YEAR(E2),MONTH(E2),1),'VSAOI transakcijas'!$S:$S,\"<=\"&'Sakuma lapa'!$F$16,'VSAOI transakcijas'!$O:$O,YEAR(DATE(YEAR(E2),MONTH(E2)+1,0)),'VSAOI transakcijas'!$P:$P,RIGHT(\"0\"&MONTH(DATE(YEAR(E2),MONTH(E2)+1,0)),2),'VSAOI transakcijas'!$Q:$Q,\"VSAOI\")\n-SUMIFS('VSAOI transakcijas'!$R:$R,'VSAOI transakcijas'!$D:$D,\"Aprēķins\",'VSAOI transakcijas'!$H:$H,\"Pamatsumma\",'VSAOI transakcijas'!$S:$S,\">=\"&DATE(YEAR(E2),MONTH(E2),1),'VSAOI transakcijas'!$S:$S,\"<=\"&'Sakuma lapa'!$F$16,'VSAOI transakcijas'!$O:$O,YEAR(DATE(YEAR(E2),MONTH(E2)+1,0)),'VSAOI transakcijas'!$P:$P,RIGHT(\"0\"&MONTH(DATE(YEAR(E2),MONTH(E2)+1,0)),2),'VSAOI transakcijas'!$Q:$Q,\"VSAOI\",'VSAOI transakcijas'!$K:$K,\"FIFO*\")\n-SUMIFS('VSAOI transakcijas'!$R:$R,'VSAOI transakcijas'!$D:$D,\"Aprēķins\",'VSAOI transakcijas'!$H:$H,\"Pamatsumma\",'VSAOI transakcijas'!$S:$S,\">=\"&DATE(YEAR(E2),MONTH(E2),1),'VSAOI transakcijas'!$S:$S,\"<=\"&'Sakuma lapa'!$F$16,'VSAOI transakcijas'!$O:$O,YEAR(DATE(YEAR(E2),MONTH(E2)+1,0)),'VSAOI transakcijas'!$P:$P,RIGHT(\"0\"&MONTH(DATE(YEAR(E2),MONTH(E2)+1,0)),2),'VSAOI transakcijas'!$Q:$Q,\"VSAOI\",'VSAOI transakcijas'!$K:$K,\"Iemaksas atbrīvošana\")\n-SUMIFS('VSAOI transakcijas'!$R:$R,'VSAOI transakcijas'!$H:$H,\"Nokavējuma nauda\",'VSAOI transakcijas'!$S:$S,\">=\"&DATE(YEAR(E2),MONTH(E2),1),'VSAOI transakcijas'!$S:$S,\"<=\"&'Sakuma lapa'!$F$16,'VSAOI transakcijas'!$O:$O,YEAR(DATE(YEAR(E2),MONTH(E2)+1,0)),'VSAOI transakcijas'!$P:$P,RIGHT(\"0\"&MONTH(DATE(YEAR(E2),MONTH(E2)+1,0)),2),'VSAOI transakcijas'!$Q:$Q,\"VSAOI\")","v":0},{"$f":"-SUMIFS('VSAOI transakcijas'!$R:$R,'VSAOI transakcijas'!$D:$D,\"Iemaksa\",'VSAOI transakcijas'!$H:$H,\"Pamatsumma\",'VSAOI transakcijas'!$S:$S,\">=\"&DATE(YEAR(F2),MONTH(F2),1),'VSAOI transakcijas'!$S:$S,\"<=\"&'Sakuma lapa'!$F$16,'VSAOI transakcijas'!$O:$O,YEAR(DATE(YEAR(F2),MONTH(F2)+1,0)),'VSAOI transakcijas'!$P:$P,RIGHT(\"0\"&MONTH(DATE(YEAR(F2),MONTH(F2)+1,0)),2),'VSAOI transakcijas'!$Q:$Q,\"VSAOI\")\n-SUMIFS('VSAOI transakcijas'!$R:$R,'VSAOI transakcijas'!$D:$D,\"Atmaksa\",'VSAOI transakcijas'!$H:$H,\"Pamatsumma\",'VSAOI transakcijas'!$S:$S,\">=\"&DATE(YEAR(F2),MONTH(F2),1),'VSAOI transakcijas'!$S:$S,\"<=\"&'Sakuma lapa'!$F$16,'VSAOI transakcijas'!$O:$O,YEAR(DATE(YEAR(F2),MONTH(F2)+1,0)),'VSAOI transakcijas'!$P:$P,RIGHT(\"0\"&MONTH(DATE(YEAR(F2),MONTH(F2)+1,0)),2),'VSAOI transakcijas'!$Q:$Q,\"VSAOI\")\n-SUMIFS('VSAOI transakcijas'!$R:$R,'VSAOI transakcijas'!$D:$D,\"Aprēķins\",'VSAOI transakcijas'!$H:$H,\"Pamatsumma\",'VSAOI transakcijas'!$S:$S,\">=\"&DATE(YEAR(F2),MONTH(F2),1),'VSAOI transakcijas'!$S:$S,\"<=\"&'Sakuma lapa'!$F$16,'VSAOI transakcijas'!$O:$O,YEAR(DATE(YEAR(F2),MONTH(F2)+1,0)),'VSAOI transakcijas'!$P:$P,RIGHT(\"0\"&MONTH(DATE(YEAR(F2),MONTH(F2)+1,0)),2),'VSAOI transakcijas'!$Q:$Q,\"VSAOI\",'VSAOI transakcijas'!$K:$K,\"FIFO*\")\n-SUMIFS('VSAOI transakcijas'!$R:$R,'VSAOI transakcijas'!$D:$D,\"Aprēķins\",'VSAOI transakcijas'!$H:$H,\"Pamatsumma\",'VSAOI transakcijas'!$S:$S,\">=\"&DATE(YEAR(F2),MONTH(F2),1),'VSAOI transakcijas'!$S:$S,\"<=\"&'Sakuma lapa'!$F$16,'VSAOI transakcijas'!$O:$O,YEAR(DATE(YEAR(F2),MONTH(F2)+1,0)),'VSAOI transakcijas'!$P:$P,RIGHT(\"0\"&MONTH(DATE(YEAR(F2),MONTH(F2)+1,0)),2),'VSAOI transakcijas'!$Q:$Q,\"VSAOI\",'VSAOI transakcijas'!$K:$K,\"Iemaksas atbrīvošana\")\n-SUMIFS('VSAOI transakcijas'!$R:$R,'VSAOI transakcijas'!$H:$H,\"Nokavējuma nauda\",'VSAOI transakcijas'!$S:$S,\">=\"&DATE(YEAR(F2),MONTH(F2),1),'VSAOI transakcijas'!$S:$S,\"<=\"&'Sakuma lapa'!$F$16,'VSAOI transakcijas'!$O:$O,YEAR(DATE(YEAR(F2),MONTH(F2)+1,0)),'VSAOI transakcijas'!$P:$P,RIGHT(\"0\"&MONTH(DATE(YEAR(F2),MONTH(F2)+1,0)),2),'VSAOI transakcijas'!$Q:$Q,\"VSAOI\")","v":0},{"$f":"-SUMIFS('VSAOI transakcijas'!$R:$R,'VSAOI transakcijas'!$D:$D,\"Iemaksa\",'VSAOI transakcijas'!$H:$H,\"Pamatsumma\",'VSAOI transakcijas'!$S:$S,\">=\"&DATE(YEAR(G2),MONTH(G2),1),'VSAOI transakcijas'!$S:$S,\"<=\"&'Sakuma lapa'!$F$16,'VSAOI transakcijas'!$O:$O,YEAR(DATE(YEAR(G2),MONTH(G2)+1,0)),'VSAOI transakcijas'!$P:$P,RIGHT(\"0\"&MONTH(DATE(YEAR(G2),MONTH(G2)+1,0)),2),'VSAOI transakcijas'!$Q:$Q,\"VSAOI\")\n-SUMIFS('VSAOI transakcijas'!$R:$R,'VSAOI transakcijas'!$D:$D,\"Atmaksa\",'VSAOI transakcijas'!$H:$H,\"Pamatsumma\",'VSAOI transakcijas'!$S:$S,\">=\"&DATE(YEAR(G2),MONTH(G2),1),'VSAOI transakcijas'!$S:$S,\"<=\"&'Sakuma lapa'!$F$16,'VSAOI transakcijas'!$O:$O,YEAR(DATE(YEAR(G2),MONTH(G2)+1,0)),'VSAOI transakcijas'!$P:$P,RIGHT(\"0\"&MONTH(DATE(YEAR(G2),MONTH(G2)+1,0)),2),'VSAOI transakcijas'!$Q:$Q,\"VSAOI\")\n-SUMIFS('VSAOI transakcijas'!$R:$R,'VSAOI transakcijas'!$D:$D,\"Aprēķins\",'VSAOI transakcijas'!$H:$H,\"Pamatsumma\",'VSAOI transakcijas'!$S:$S,\">=\"&DATE(YEAR(G2),MONTH(G2),1),'VSAOI transakcijas'!$S:$S,\"<=\"&'Sakuma lapa'!$F$16,'VSAOI transakcijas'!$O:$O,YEAR(DATE(YEAR(G2),MONTH(G2)+1,0)),'VSAOI transakcijas'!$P:$P,RIGHT(\"0\"&MONTH(DATE(YEAR(G2),MONTH(G2)+1,0)),2),'VSAOI transakcijas'!$Q:$Q,\"VSAOI\",'VSAOI transakcijas'!$K:$K,\"FIFO*\")\n-SUMIFS('VSAOI transakcijas'!$R:$R,'VSAOI transakcijas'!$D:$D,\"Aprēķins\",'VSAOI transakcijas'!$H:$H,\"Pamatsumma\",'VSAOI transakcijas'!$S:$S,\">=\"&DATE(YEAR(G2),MONTH(G2),1),'VSAOI transakcijas'!$S:$S,\"<=\"&'Sakuma lapa'!$F$16,'VSAOI transakcijas'!$O:$O,YEAR(DATE(YEAR(G2),MONTH(G2)+1,0)),'VSAOI transakcijas'!$P:$P,RIGHT(\"0\"&MONTH(DATE(YEAR(G2),MONTH(G2)+1,0)),2),'VSAOI transakcijas'!$Q:$Q,\"VSAOI\",'VSAOI transakcijas'!$K:$K,\"Iemaksas atbrīvošana\")\n-SUMIFS('VSAOI transakcijas'!$R:$R,'VSAOI transakcijas'!$H:$H,\"Nokavējuma nauda\",'VSAOI transakcijas'!$S:$S,\">=\"&DATE(YEAR(G2),MONTH(G2),1),'VSAOI transakcijas'!$S:$S,\"<=\"&'Sakuma lapa'!$F$16,'VSAOI transakcijas'!$O:$O,YEAR(DATE(YEAR(G2),MONTH(G2)+1,0)),'VSAOI transakcijas'!$P:$P,RIGHT(\"0\"&MONTH(DATE(YEAR(G2),MONTH(G2)+1,0)),2),'VSAOI transakcijas'!$Q:$Q,\"VSAOI\")","v":0},{"$f":"-SUMIFS('VSAOI transakcijas'!$R:$R,'VSAOI transakcijas'!$D:$D,\"Iemaksa\",'VSAOI transakcijas'!$H:$H,\"Pamatsumma\",'VSAOI transakcijas'!$S:$S,\">=\"&DATE(YEAR(H2),MONTH(H2),1),'VSAOI transakcijas'!$S:$S,\"<=\"&'Sakuma lapa'!$F$16,'VSAOI transakcijas'!$O:$O,YEAR(DATE(YEAR(H2),MONTH(H2)+1,0)),'VSAOI transakcijas'!$P:$P,RIGHT(\"0\"&MONTH(DATE(YEAR(H2),MONTH(H2)+1,0)),2),'VSAOI transakcijas'!$Q:$Q,\"VSAOI\")\n-SUMIFS('VSAOI transakcijas'!$R:$R,'VSAOI transakcijas'!$D:$D,\"Atmaksa\",'VSAOI transakcijas'!$H:$H,\"Pamatsumma\",'VSAOI transakcijas'!$S:$S,\">=\"&DATE(YEAR(H2),MONTH(H2),1),'VSAOI transakcijas'!$S:$S,\"<=\"&'Sakuma lapa'!$F$16,'VSAOI transakcijas'!$O:$O,YEAR(DATE(YEAR(H2),MONTH(H2)+1,0)),'VSAOI transakcijas'!$P:$P,RIGHT(\"0\"&MONTH(DATE(YEAR(H2),MONTH(H2)+1,0)),2),'VSAOI transakcijas'!$Q:$Q,\"VSAOI\")\n-SUMIFS('VSAOI transakcijas'!$R:$R,'VSAOI transakcijas'!$D:$D,\"Aprēķins\",'VSAOI transakcijas'!$H:$H,\"Pamatsumma\",'VSAOI transakcijas'!$S:$S,\">=\"&DATE(YEAR(H2),MONTH(H2),1),'VSAOI transakcijas'!$S:$S,\"<=\"&'Sakuma lapa'!$F$16,'VSAOI transakcijas'!$O:$O,YEAR(DATE(YEAR(H2),MONTH(H2)+1,0)),'VSAOI transakcijas'!$P:$P,RIGHT(\"0\"&MONTH(DATE(YEAR(H2),MONTH(H2)+1,0)),2),'VSAOI transakcijas'!$Q:$Q,\"VSAOI\",'VSAOI transakcijas'!$K:$K,\"FIFO*\")\n-SUMIFS('VSAOI transakcijas'!$R:$R,'VSAOI transakcijas'!$D:$D,\"Aprēķins\",'VSAOI transakcijas'!$H:$H,\"Pamatsumma\",'VSAOI transakcijas'!$S:$S,\">=\"&DATE(YEAR(H2),MONTH(H2),1),'VSAOI transakcijas'!$S:$S,\"<=\"&'Sakuma lapa'!$F$16,'VSAOI transakcijas'!$O:$O,YEAR(DATE(YEAR(H2),MONTH(H2)+1,0)),'VSAOI transakcijas'!$P:$P,RIGHT(\"0\"&MONTH(DATE(YEAR(H2),MONTH(H2)+1,0)),2),'VSAOI transakcijas'!$Q:$Q,\"VSAOI\",'VSAOI transakcijas'!$K:$K,\"Iemaksas atbrīvošana\")\n-SUMIFS('VSAOI transakcijas'!$R:$R,'VSAOI transakcijas'!$H:$H,\"Nokavējuma nauda\",'VSAOI transakcijas'!$S:$S,\">=\"&DATE(YEAR(H2),MONTH(H2),1),'VSAOI transakcijas'!$S:$S,\"<=\"&'Sakuma lapa'!$F$16,'VSAOI transakcijas'!$O:$O,YEAR(DATE(YEAR(H2),MONTH(H2)+1,0)),'VSAOI transakcijas'!$P:$P,RIGHT(\"0\"&MONTH(DATE(YEAR(H2),MONTH(H2)+1,0)),2),'VSAOI transakcijas'!$Q:$Q,\"VSAOI\")","v":0},{"$f":"-SUMIFS('VSAOI transakcijas'!$R:$R,'VSAOI transakcijas'!$D:$D,\"Iemaksa\",'VSAOI transakcijas'!$H:$H,\"Pamatsumma\",'VSAOI transakcijas'!$S:$S,\">=\"&DATE(YEAR(I2),MONTH(I2),1),'VSAOI transakcijas'!$S:$S,\"<=\"&'Sakuma lapa'!$F$16,'VSAOI transakcijas'!$O:$O,YEAR(DATE(YEAR(I2),MONTH(I2)+1,0)),'VSAOI transakcijas'!$P:$P,RIGHT(\"0\"&MONTH(DATE(YEAR(I2),MONTH(I2)+1,0)),2),'VSAOI transakcijas'!$Q:$Q,\"VSAOI\")\n-SUMIFS('VSAOI transakcijas'!$R:$R,'VSAOI transakcijas'!$D:$D,\"Atmaksa\",'VSAOI transakcijas'!$H:$H,\"Pamatsumma\",'VSAOI transakcijas'!$S:$S,\">=\"&DATE(YEAR(I2),MONTH(I2),1),'VSAOI transakcijas'!$S:$S,\"<=\"&'Sakuma lapa'!$F$16,'VSAOI transakcijas'!$O:$O,YEAR(DATE(YEAR(I2),MONTH(I2)+1,0)),'VSAOI transakcijas'!$P:$P,RIGHT(\"0\"&MONTH(DATE(YEAR(I2),MONTH(I2)+1,0)),2),'VSAOI transakcijas'!$Q:$Q,\"VSAOI\")\n-SUMIFS('VSAOI transakcijas'!$R:$R,'VSAOI transakcijas'!$D:$D,\"Aprēķins\",'VSAOI transakcijas'!$H:$H,\"Pamatsumma\",'VSAOI transakcijas'!$S:$S,\">=\"&DATE(YEAR(I2),MONTH(I2),1),'VSAOI transakcijas'!$S:$S,\"<=\"&'Sakuma lapa'!$F$16,'VSAOI transakcijas'!$O:$O,YEAR(DATE(YEAR(I2),MONTH(I2)+1,0)),'VSAOI transakcijas'!$P:$P,RIGHT(\"0\"&MONTH(DATE(YEAR(I2),MONTH(I2)+1,0)),2),'VSAOI transakcijas'!$Q:$Q,\"VSAOI\",'VSAOI transakcijas'!$K:$K,\"FIFO*\")\n-SUMIFS('VSAOI transakcijas'!$R:$R,'VSAOI transakcijas'!$D:$D,\"Aprēķins\",'VSAOI transakcijas'!$H:$H,\"Pamatsumma\",'VSAOI transakcijas'!$S:$S,\">=\"&DATE(YEAR(I2),MONTH(I2),1),'VSAOI transakcijas'!$S:$S,\"<=\"&'Sakuma lapa'!$F$16,'VSAOI transakcijas'!$O:$O,YEAR(DATE(YEAR(I2),MONTH(I2)+1,0)),'VSAOI transakcijas'!$P:$P,RIGHT(\"0\"&MONTH(DATE(YEAR(I2),MONTH(I2)+1,0)),2),'VSAOI transakcijas'!$Q:$Q,\"VSAOI\",'VSAOI transakcijas'!$K:$K,\"Iemaksas atbrīvošana\")\n-SUMIFS('VSAOI transakcijas'!$R:$R,'VSAOI transakcijas'!$H:$H,\"Nokavējuma nauda\",'VSAOI transakcijas'!$S:$S,\">=\"&DATE(YEAR(I2),MONTH(I2),1),'VSAOI transakcijas'!$S:$S,\"<=\"&'Sakuma lapa'!$F$16,'VSAOI transakcijas'!$O:$O,YEAR(DATE(YEAR(I2),MONTH(I2)+1,0)),'VSAOI transakcijas'!$P:$P,RIGHT(\"0\"&MONTH(DATE(YEAR(I2),MONTH(I2)+1,0)),2),'VSAOI transakcijas'!$Q:$Q,\"VSAOI\")","v":0},{"$f":"-SUMIFS('VSAOI transakcijas'!$R:$R,'VSAOI transakcijas'!$D:$D,\"Iemaksa\",'VSAOI transakcijas'!$H:$H,\"Pamatsumma\",'VSAOI transakcijas'!$S:$S,\">=\"&DATE(YEAR(J2),MONTH(J2),1),'VSAOI transakcijas'!$S:$S,\"<=\"&'Sakuma lapa'!$F$16,'VSAOI transakcijas'!$O:$O,YEAR(DATE(YEAR(J2),MONTH(J2)+1,0)),'VSAOI transakcijas'!$P:$P,RIGHT(\"0\"&MONTH(DATE(YEAR(J2),MONTH(J2)+1,0)),2),'VSAOI transakcijas'!$Q:$Q,\"VSAOI\")\n-SUMIFS('VSAOI transakcijas'!$R:$R,'VSAOI transakcijas'!$D:$D,\"Atmaksa\",'VSAOI transakcijas'!$H:$H,\"Pamatsumma\",'VSAOI transakcijas'!$S:$S,\">=\"&DATE(YEAR(J2),MONTH(J2),1),'VSAOI transakcijas'!$S:$S,\"<=\"&'Sakuma lapa'!$F$16,'VSAOI transakcijas'!$O:$O,YEAR(DATE(YEAR(J2),MONTH(J2)+1,0)),'VSAOI transakcijas'!$P:$P,RIGHT(\"0\"&MONTH(DATE(YEAR(J2),MONTH(J2)+1,0)),2),'VSAOI transakcijas'!$Q:$Q,\"VSAOI\")\n-SUMIFS('VSAOI transakcijas'!$R:$R,'VSAOI transakcijas'!$D:$D,\"Aprēķins\",'VSAOI transakcijas'!$H:$H,\"Pamatsumma\",'VSAOI transakcijas'!$S:$S,\">=\"&DATE(YEAR(J2),MONTH(J2),1),'VSAOI transakcijas'!$S:$S,\"<=\"&'Sakuma lapa'!$F$16,'VSAOI transakcijas'!$O:$O,YEAR(DATE(YEAR(J2),MONTH(J2)+1,0)),'VSAOI transakcijas'!$P:$P,RIGHT(\"0\"&MONTH(DATE(YEAR(J2),MONTH(J2)+1,0)),2),'VSAOI transakcijas'!$Q:$Q,\"VSAOI\",'VSAOI transakcijas'!$K:$K,\"FIFO*\")\n-SUMIFS('VSAOI transakcijas'!$R:$R,'VSAOI transakcijas'!$D:$D,\"Aprēķins\",'VSAOI transakcijas'!$H:$H,\"Pamatsumma\",'VSAOI transakcijas'!$S:$S,\">=\"&DATE(YEAR(J2),MONTH(J2),1),'VSAOI transakcijas'!$S:$S,\"<=\"&'Sakuma lapa'!$F$16,'VSAOI transakcijas'!$O:$O,YEAR(DATE(YEAR(J2),MONTH(J2)+1,0)),'VSAOI transakcijas'!$P:$P,RIGHT(\"0\"&MONTH(DATE(YEAR(J2),MONTH(J2)+1,0)),2),'VSAOI transakcijas'!$Q:$Q,\"VSAOI\",'VSAOI transakcijas'!$K:$K,\"Iemaksas atbrīvošana\")\n-SUMIFS('VSAOI transakcijas'!$R:$R,'VSAOI transakcijas'!$H:$H,\"Nokavējuma nauda\",'VSAOI transakcijas'!$S:$S,\">=\"&DATE(YEAR(J2),MONTH(J2),1),'VSAOI transakcijas'!$S:$S,\"<=\"&'Sakuma lapa'!$F$16,'VSAOI transakcijas'!$O:$O,YEAR(DATE(YEAR(J2),MONTH(J2)+1,0)),'VSAOI transakcijas'!$P:$P,RIGHT(\"0\"&MONTH(DATE(YEAR(J2),MONTH(J2)+1,0)),2),'VSAOI transakcijas'!$Q:$Q,\"VSAOI\")","v":0},{"$f":"-SUMIFS('VSAOI transakcijas'!$R:$R,'VSAOI transakcijas'!$D:$D,\"Iemaksa\",'VSAOI transakcijas'!$H:$H,\"Pamatsumma\",'VSAOI transakcijas'!$S:$S,\">=\"&DATE(YEAR(K2),MONTH(K2),1),'VSAOI transakcijas'!$S:$S,\"<=\"&'Sakuma lapa'!$F$16,'VSAOI transakcijas'!$O:$O,YEAR(DATE(YEAR(K2),MONTH(K2)+1,0)),'VSAOI transakcijas'!$P:$P,RIGHT(\"0\"&MONTH(DATE(YEAR(K2),MONTH(K2)+1,0)),2),'VSAOI transakcijas'!$Q:$Q,\"VSAOI\")\n-SUMIFS('VSAOI transakcijas'!$R:$R,'VSAOI transakcijas'!$D:$D,\"Atmaksa\",'VSAOI transakcijas'!$H:$H,\"Pamatsumma\",'VSAOI transakcijas'!$S:$S,\">=\"&DATE(YEAR(K2),MONTH(K2),1),'VSAOI transakcijas'!$S:$S,\"<=\"&'Sakuma lapa'!$F$16,'VSAOI transakcijas'!$O:$O,YEAR(DATE(YEAR(K2),MONTH(K2)+1,0)),'VSAOI transakcijas'!$P:$P,RIGHT(\"0\"&MONTH(DATE(YEAR(K2),MONTH(K2)+1,0)),2),'VSAOI transakcijas'!$Q:$Q,\"VSAOI\")\n-SUMIFS('VSAOI transakcijas'!$R:$R,'VSAOI transakcijas'!$D:$D,\"Aprēķins\",'VSAOI transakcijas'!$H:$H,\"Pamatsumma\",'VSAOI transakcijas'!$S:$S,\">=\"&DATE(YEAR(K2),MONTH(K2),1),'VSAOI transakcijas'!$S:$S,\"<=\"&'Sakuma lapa'!$F$16,'VSAOI transakcijas'!$O:$O,YEAR(DATE(YEAR(K2),MONTH(K2)+1,0)),'VSAOI transakcijas'!$P:$P,RIGHT(\"0\"&MONTH(DATE(YEAR(K2),MONTH(K2)+1,0)),2),'VSAOI transakcijas'!$Q:$Q,\"VSAOI\",'VSAOI transakcijas'!$K:$K,\"FIFO*\")\n-SUMIFS('VSAOI transakcijas'!$R:$R,'VSAOI transakcijas'!$D:$D,\"Aprēķins\",'VSAOI transakcijas'!$H:$H,\"Pamatsumma\",'VSAOI transakcijas'!$S:$S,\">=\"&DATE(YEAR(K2),MONTH(K2),1),'VSAOI transakcijas'!$S:$S,\"<=\"&'Sakuma lapa'!$F$16,'VSAOI transakcijas'!$O:$O,YEAR(DATE(YEAR(K2),MONTH(K2)+1,0)),'VSAOI transakcijas'!$P:$P,RIGHT(\"0\"&MONTH(DATE(YEAR(K2),MONTH(K2)+1,0)),2),'VSAOI transakcijas'!$Q:$Q,\"VSAOI\",'VSAOI transakcijas'!$K:$K,\"Iemaksas atbrīvošana\")\n-SUMIFS('VSAOI transakcijas'!$R:$R,'VSAOI transakcijas'!$H:$H,\"Nokavējuma nauda\",'VSAOI transakcijas'!$S:$S,\">=\"&DATE(YEAR(K2),MONTH(K2),1),'VSAOI transakcijas'!$S:$S,\"<=\"&'Sakuma lapa'!$F$16,'VSAOI transakcijas'!$O:$O,YEAR(DATE(YEAR(K2),MONTH(K2)+1,0)),'VSAOI transakcijas'!$P:$P,RIGHT(\"0\"&MONTH(DATE(YEAR(K2),MONTH(K2)+1,0)),2),'VSAOI transakcijas'!$Q:$Q,\"VSAOI\")","v":0},{"$f":"-SUMIFS('VSAOI transakcijas'!$R:$R,'VSAOI transakcijas'!$D:$D,\"Iemaksa\",'VSAOI transakcijas'!$H:$H,\"Pamatsumma\",'VSAOI transakcijas'!$S:$S,\">=\"&DATE(YEAR(L2),MONTH(L2),1),'VSAOI transakcijas'!$S:$S,\"<=\"&'Sakuma lapa'!$F$16,'VSAOI transakcijas'!$O:$O,YEAR(DATE(YEAR(L2),MONTH(L2)+1,0)),'VSAOI transakcijas'!$P:$P,RIGHT(\"0\"&MONTH(DATE(YEAR(L2),MONTH(L2)+1,0)),2),'VSAOI transakcijas'!$Q:$Q,\"VSAOI\")\n-SUMIFS('VSAOI transakcijas'!$R:$R,'VSAOI transakcijas'!$D:$D,\"Atmaksa\",'VSAOI transakcijas'!$H:$H,\"Pamatsumma\",'VSAOI transakcijas'!$S:$S,\">=\"&DATE(YEAR(L2),MONTH(L2),1),'VSAOI transakcijas'!$S:$S,\"<=\"&'Sakuma lapa'!$F$16,'VSAOI transakcijas'!$O:$O,YEAR(DATE(YEAR(L2),MONTH(L2)+1,0)),'VSAOI transakcijas'!$P:$P,RIGHT(\"0\"&MONTH(DATE(YEAR(L2),MONTH(L2)+1,0)),2),'VSAOI transakcijas'!$Q:$Q,\"VSAOI\")\n-SUMIFS('VSAOI transakcijas'!$R:$R,'VSAOI transakcijas'!$D:$D,\"Aprēķins\",'VSAOI transakcijas'!$H:$H,\"Pamatsumma\",'VSAOI transakcijas'!$S:$S,\">=\"&DATE(YEAR(L2),MONTH(L2),1),'VSAOI transakcijas'!$S:$S,\"<=\"&'Sakuma lapa'!$F$16,'VSAOI transakcijas'!$O:$O,YEAR(DATE(YEAR(L2),MONTH(L2)+1,0)),'VSAOI transakcijas'!$P:$P,RIGHT(\"0\"&MONTH(DATE(YEAR(L2),MONTH(L2)+1,0)),2),'VSAOI transakcijas'!$Q:$Q,\"VSAOI\",'VSAOI transakcijas'!$K:$K,\"FIFO*\")\n-SUMIFS('VSAOI transakcijas'!$R:$R,'VSAOI transakcijas'!$D:$D,\"Aprēķins\",'VSAOI transakcijas'!$H:$H,\"Pamatsumma\",'VSAOI transakcijas'!$S:$S,\">=\"&DATE(YEAR(L2),MONTH(L2),1),'VSAOI transakcijas'!$S:$S,\"<=\"&'Sakuma lapa'!$F$16,'VSAOI transakcijas'!$O:$O,YEAR(DATE(YEAR(L2),MONTH(L2)+1,0)),'VSAOI transakcijas'!$P:$P,RIGHT(\"0\"&MONTH(DATE(YEAR(L2),MONTH(L2)+1,0)),2),'VSAOI transakcijas'!$Q:$Q,\"VSAOI\",'VSAOI transakcijas'!$K:$K,\"Iemaksas atbrīvošana\")\n-SUMIFS('VSAOI transakcijas'!$R:$R,'VSAOI transakcijas'!$H:$H,\"Nokavējuma nauda\",'VSAOI transakcijas'!$S:$S,\">=\"&DATE(YEAR(L2),MONTH(L2),1),'VSAOI transakcijas'!$S:$S,\"<=\"&'Sakuma lapa'!$F$16,'VSAOI transakcijas'!$O:$O,YEAR(DATE(YEAR(L2),MONTH(L2)+1,0)),'VSAOI transakcijas'!$P:$P,RIGHT(\"0\"&MONTH(DATE(YEAR(L2),MONTH(L2)+1,0)),2),'VSAOI transakcijas'!$Q:$Q,\"VSAOI\")","v":0},{"$f":"-SUMIFS('VSAOI transakcijas'!$R:$R,'VSAOI transakcijas'!$D:$D,\"Iemaksa\",'VSAOI transakcijas'!$H:$H,\"Pamatsumma\",'VSAOI transakcijas'!$S:$S,\">=\"&DATE(YEAR(M2),MONTH(M2),1),'VSAOI transakcijas'!$S:$S,\"<=\"&'Sakuma lapa'!$F$16,'VSAOI transakcijas'!$O:$O,YEAR(DATE(YEAR(M2),MONTH(M2)+1,0)),'VSAOI transakcijas'!$P:$P,RIGHT(\"0\"&MONTH(DATE(YEAR(M2),MONTH(M2)+1,0)),2),'VSAOI transakcijas'!$Q:$Q,\"VSAOI\")\n-SUMIFS('VSAOI transakcijas'!$R:$R,'VSAOI transakcijas'!$D:$D,\"Atmaksa\",'VSAOI transakcijas'!$H:$H,\"Pamatsumma\",'VSAOI transakcijas'!$S:$S,\">=\"&DATE(YEAR(M2),MONTH(M2),1),'VSAOI transakcijas'!$S:$S,\"<=\"&'Sakuma lapa'!$F$16,'VSAOI transakcijas'!$O:$O,YEAR(DATE(YEAR(M2),MONTH(M2)+1,0)),'VSAOI transakcijas'!$P:$P,RIGHT(\"0\"&MONTH(DATE(YEAR(M2),MONTH(M2)+1,0)),2),'VSAOI transakcijas'!$Q:$Q,\"VSAOI\")\n-SUMIFS('VSAOI transakcijas'!$R:$R,'VSAOI transakcijas'!$D:$D,\"Aprēķins\",'VSAOI transakcijas'!$H:$H,\"Pamatsumma\",'VSAOI transakcijas'!$S:$S,\">=\"&DATE(YEAR(M2),MONTH(M2),1),'VSAOI transakcijas'!$S:$S,\"<=\"&'Sakuma lapa'!$F$16,'VSAOI transakcijas'!$O:$O,YEAR(DATE(YEAR(M2),MONTH(M2)+1,0)),'VSAOI transakcijas'!$P:$P,RIGHT(\"0\"&MONTH(DATE(YEAR(M2),MONTH(M2)+1,0)),2),'VSAOI transakcijas'!$Q:$Q,\"VSAOI\",'VSAOI transakcijas'!$K:$K,\"FIFO*\")\n-SUMIFS('VSAOI transakcijas'!$R:$R,'VSAOI transakcijas'!$D:$D,\"Aprēķins\",'VSAOI transakcijas'!$H:$H,\"Pamatsumma\",'VSAOI transakcijas'!$S:$S,\">=\"&DATE(YEAR(M2),MONTH(M2),1),'VSAOI transakcijas'!$S:$S,\"<=\"&'Sakuma lapa'!$F$16,'VSAOI transakcijas'!$O:$O,YEAR(DATE(YEAR(M2),MONTH(M2)+1,0)),'VSAOI transakcijas'!$P:$P,RIGHT(\"0\"&MONTH(DATE(YEAR(M2),MONTH(M2)+1,0)),2),'VSAOI transakcijas'!$Q:$Q,\"VSAOI\",'VSAOI transakcijas'!$K:$K,\"Iemaksas atbrīvošana\")\n-SUMIFS('VSAOI transakcijas'!$R:$R,'VSAOI transakcijas'!$H:$H,\"Nokavējuma nauda\",'VSAOI transakcijas'!$S:$S,\">=\"&DATE(YEAR(M2),MONTH(M2),1),'VSAOI transakcijas'!$S:$S,\"<=\"&'Sakuma lapa'!$F$16,'VSAOI transakcijas'!$O:$O,YEAR(DATE(YEAR(M2),MONTH(M2)+1,0)),'VSAOI transakcijas'!$P:$P,RIGHT(\"0\"&MONTH(DATE(YEAR(M2),MONTH(M2)+1,0)),2),'VSAOI transakcijas'!$Q:$Q,\"VSAOI\")","v":0},{"$f":"-SUMIFS('VSAOI transakcijas'!$R:$R,'VSAOI transakcijas'!$D:$D,\"Iemaksa\",'VSAOI transakcijas'!$H:$H,\"Pamatsumma\",'VSAOI transakcijas'!$S:$S,\">=\"&DATE(YEAR(N2),MONTH(N2),1),'VSAOI transakcijas'!$S:$S,\"<=\"&'Sakuma lapa'!$F$16,'VSAOI transakcijas'!$O:$O,YEAR(DATE(YEAR(N2),MONTH(N2)+1,0)),'VSAOI transakcijas'!$P:$P,RIGHT(\"0\"&MONTH(DATE(YEAR(N2),MONTH(N2)+1,0)),2),'VSAOI transakcijas'!$Q:$Q,\"VSAOI\")\n-SUMIFS('VSAOI transakcijas'!$R:$R,'VSAOI transakcijas'!$D:$D,\"Atmaksa\",'VSAOI transakcijas'!$H:$H,\"Pamatsumma\",'VSAOI transakcijas'!$S:$S,\">=\"&DATE(YEAR(N2),MONTH(N2),1),'VSAOI transakcijas'!$S:$S,\"<=\"&'Sakuma lapa'!$F$16,'VSAOI transakcijas'!$O:$O,YEAR(DATE(YEAR(N2),MONTH(N2)+1,0)),'VSAOI transakcijas'!$P:$P,RIGHT(\"0\"&MONTH(DATE(YEAR(N2),MONTH(N2)+1,0)),2),'VSAOI transakcijas'!$Q:$Q,\"VSAOI\")\n-SUMIFS('VSAOI transakcijas'!$R:$R,'VSAOI transakcijas'!$D:$D,\"Aprēķins\",'VSAOI transakcijas'!$H:$H,\"Pamatsumma\",'VSAOI transakcijas'!$S:$S,\">=\"&DATE(YEAR(N2),MONTH(N2),1),'VSAOI transakcijas'!$S:$S,\"<=\"&'Sakuma lapa'!$F$16,'VSAOI transakcijas'!$O:$O,YEAR(DATE(YEAR(N2),MONTH(N2)+1,0)),'VSAOI transakcijas'!$P:$P,RIGHT(\"0\"&MONTH(DATE(YEAR(N2),MONTH(N2)+1,0)),2),'VSAOI transakcijas'!$Q:$Q,\"VSAOI\",'VSAOI transakcijas'!$K:$K,\"FIFO*\")\n-SUMIFS('VSAOI transakcijas'!$R:$R,'VSAOI transakcijas'!$D:$D,\"Aprēķins\",'VSAOI transakcijas'!$H:$H,\"Pamatsumma\",'VSAOI transakcijas'!$S:$S,\">=\"&DATE(YEAR(N2),MONTH(N2),1),'VSAOI transakcijas'!$S:$S,\"<=\"&'Sakuma lapa'!$F$16,'VSAOI transakcijas'!$O:$O,YEAR(DATE(YEAR(N2),MONTH(N2)+1,0)),'VSAOI transakcijas'!$P:$P,RIGHT(\"0\"&MONTH(DATE(YEAR(N2),MONTH(N2)+1,0)),2),'VSAOI transakcijas'!$Q:$Q,\"VSAOI\",'VSAOI transakcijas'!$K:$K,\"Iemaksas atbrīvošana\")\n-SUMIFS('VSAOI transakcijas'!$R:$R,'VSAOI transakcijas'!$H:$H,\"Nokavējuma nauda\",'VSAOI transakcijas'!$S:$S,\">=\"&DATE(YEAR(N2),MONTH(N2),1),'VSAOI transakcijas'!$S:$S,\"<=\"&'Sakuma lapa'!$F$16,'VSAOI transakcijas'!$O:$O,YEAR(DATE(YEAR(N2),MONTH(N2)+1,0)),'VSAOI transakcijas'!$P:$P,RIGHT(\"0\"&MONTH(DATE(YEAR(N2),MONTH(N2)+1,0)),2),'VSAOI transakcijas'!$Q:$Q,\"VSAOI\")","v":0},{"$f":"SUM(C41:N41)","v":0}]
[null,"VG  beigu atlikums"]
[null,"VG beigu atlikuma starpība",{"$f":"IF(C42=\"\",\"-\",C42-D38)","v":"-"},"-","-","-","-","-","-","-","-","-","-","-"]
[null,"Starpība starp deklarācijām un TransParsk",{"$f":"C7-C39","v":0},0,0,0,0,0,0,0,0,0,0,0,{"$f":"SUM(C44:N44)","v":0}]
[]
[null,"IIN - VG sakuma atlikums",null,{"$f":"SUM(C46:C49)","v":0},0,0,0,0,0,0,0,0,0,0,{"$f":"SUM(N46:N49)","v":0}]
[null,"Aprēķins - Deklarācijas",{"$f":"-SUMIFS('VSAOI transakcijas'!$R:$R,'VSAOI transakcijas'!$D:$D,\"Aprēķins\",'VSAOI transakcijas'!$H:$H,\"Pamatsumma\",'VSAOI transakcijas'!$S:$S,\">=\"&DATE(YEAR(C2),MONTH(C2),1),'VSAOI transakcijas'!$S:$S,\"<=\"&'Sakuma lapa'!$F$16,'VSAOI transakcijas'!$O:$O,YEAR(DATE(YEAR(C2),MONTH(C2)+2,0)),'VSAOI transakcijas'!$P:$P,RIGHT(\"0\"&MONTH(DATE(YEAR(C2),MONTH(C2)+2,0)),2),'VSAOI transakcijas'!$Q:$Q,\"IIN\",'VSAOI transakcijas'!$K:$K,\"<>\"&\"FIFO*\",'VSAOI transakcijas'!$K:$K,\"<>\"&\"Iemaksas atbrīvošana\",'VSAOI transakcijas'!$E:$E,\"Deklarācija/pārskats\")","v":0},{"$f":"-SUMIFS('VSAOI transakcijas'!$R:$R,'VSAOI transakcijas'!$D:$D,\"Aprēķins\",'VSAOI transakcijas'!$H:$H,\"Pamatsumma\",'VSAOI transakcijas'!$S:$S,\">=\"&DATE(YEAR(D2),MONTH(D2),1),'VSAOI transakcijas'!$S:$S,\"<=\"&'Sakuma lapa'!$F$16,'VSAOI transakcijas'!$O:$O,YEAR(DATE(YEAR(D2),MONTH(D2)+2,0)),'VSAOI transakcijas'!$P:$P,RIGHT(\"0\"&MONTH(DATE(YEAR(D2),MONTH(D2)+2,0)),2),'VSAOI transakcijas'!$Q:$Q,\"IIN\",'VSAOI transakcijas'!$K:$K,\"<>\"&\"FIFO*\",'VSAOI transakcijas'!$K:$K,\"<>\"&\"Iemaksas atbrīvošana\")","v":0},{"$f":"-SUMIFS('VSAOI transakcijas'!$R:$R,'VSAOI transakcijas'!$D:$D,\"Aprēķins\",'VSAOI transakcijas'!$H:$H,\"Pamatsumma\",'VSAOI transakcijas'!$S:$S,\">=\"&DATE(YEAR(E2),MONTH(E2),1),'VSAOI transakcijas'!$S:$S,\"<=\"&'Sakuma lapa'!$F$16,'VSAOI transakcijas'!$O:$O,YEAR(DATE(YEAR(E2),MONTH(E2)+2,0)),'VSAOI transakcijas'!$P:$P,RIGHT(\"0\"&MONTH(DATE(YEAR(E2),MONTH(E2)+2,0)),2),'VSAOI transakcijas'!$Q:$Q,\"IIN\",'VSAOI transakcijas'!$K:$K,\"<>\"&\"FIFO*\",'VSAOI transakcijas'!$K:$K,\"<>\"&\"Iemaksas atbrīvošana\")","v":0},{"$f":"-SUMIFS('VSAOI transakcijas'!$R:$R,'VSAOI transakcijas'!$D:$D,\"Aprēķins\",'VSAOI transakcijas'!$H:$H,\"Pamatsumma\",'VSAOI transakcijas'!$S:$S,\">=\"&DATE(YEAR(F2),MONTH(F2),1),'VSAOI transakcijas'!$S:$S,\"<=\"&'Sakuma lapa'!$F$16,'VSAOI transakcijas'!$O:$O,YEAR(DATE(YEAR(F2),MONTH(F2)+2,0)),'VSAOI transakcijas'!$P:$P,RIGHT(\"0\"&MONTH(DATE(YEAR(F2),MONTH(F2)+2,0)),2),'VSAOI transakcijas'!$Q:$Q,\"IIN\",'VSAOI transakcijas'!$K:$K,\"<>\"&\"FIFO*\",'VSAOI transakcijas'!$K:$K,\"<>\"&\"Iemaksas atbrīvošana\")","v":0},{"$f":"-SUMIFS('VSAOI transakcijas'!$R:$R,'VSAOI transakcijas'!$D:$D,\"Aprēķins\",'VSAOI transakcijas'!$H:$H,\"Pamatsumma\",'VSAOI transakcijas'!$S:$S,\">=\"&DATE(YEAR(G2),MONTH(G2),1),'VSAOI transakcijas'!$S:$S,\"<=\"&'Sakuma lapa'!$F$16,'VSAOI transakcijas'!$O:$O,YEAR(DATE(YEAR(G2),MONTH(G2)+2,0)),'VSAOI transakcijas'!$P:$P,RIGHT(\"0\"&MONTH(DATE(YEAR(G2),MONTH(G2)+2,0)),2),'VSAOI transakcijas'!$Q:$Q,\"IIN\",'VSAOI transakcijas'!$K:$K,\"<>\"&\"FIFO*\",'VSAOI transakcijas'!$K:$K,\"<>\"&\"Iemaksas atbrīvošana\")","v":0},{"$f":"-SUMIFS('VSAOI transakcijas'!$R:$R,'VSAOI transakcijas'!$D:$D,\"Aprēķins\",'VSAOI transakcijas'!$H:$H,\"Pamatsumma\",'VSAOI transakcijas'!$S:$S,\">=\"&DATE(YEAR(H2),MONTH(H2),1),'VSAOI transakcijas'!$S:$S,\"<=\"&'Sakuma lapa'!$F$16,'VSAOI transakcijas'!$O:$O,YEAR(DATE(YEAR(H2),MONTH(H2)+2,0)),'VSAOI transakcijas'!$P:$P,RIGHT(\"0\"&MONTH(DATE(YEAR(H2),MONTH(H2)+2,0)),2),'VSAOI transakcijas'!$Q:$Q,\"IIN\",'VSAOI transakcijas'!$K:$K,\"<>\"&\"FIFO*\",'VSAOI transakcijas'!$K:$K,\"<>\"&\"Iemaksas atbrīvošana\")","v":0},{"$f":"-SUMIFS('VSAOI transakcijas'!$R:$R,'VSAOI transakcijas'!$D:$D,\"Aprēķins\",'VSAOI transakcijas'!$H:$H,\"Pamatsumma\",'VSAOI transakcijas'!$S:$S,\">=\"&DATE(YEAR(I2),MONTH(I2),1),'VSAOI transakcijas'!$S:$S,\"<=\"&'Sakuma lapa'!$F$16,'VSAOI transakcijas'!$O:$O,YEAR(DATE(YEAR(I2),MONTH(I2)+2,0)),'VSAOI transakcijas'!$P:$P,RIGHT(\"0\"&MONTH(DATE(YEAR(I2),MONTH(I2)+2,0)),2),'VSAOI transakcijas'!$Q:$Q,\"IIN\",'VSAOI transakcijas'!$K:$K,\"<>\"&\"FIFO*\",'VSAOI transakcijas'!$K:$K,\"<>\"&\"Iemaksas atbrīvošana\")","v":0},{"$f":"-SUMIFS('VSAOI transakcijas'!$R:$R,'VSAOI transakcijas'!$D:$D,\"Aprēķins\",'VSAOI transakcijas'!$H:$H,\"Pamatsumma\",'VSAOI transakcijas'!$S:$S,\">=\"&DATE(YEAR(J2),MONTH(J2),1),'VSAOI transakcijas'!$S:$S,\"<=\"&'Sakuma lapa'!$F$16,'VSAOI transakcijas'!$O:$O,YEAR(DATE(YEAR(J2),MONTH(J2)+2,0)),'VSAOI transakcijas'!$P:$P,RIGHT(\"0\"&MONTH(DATE(YEAR(J2),MONTH(J2)+2,0)),2),'VSAOI transakcijas'!$Q:$Q,\"IIN\",'VSAOI transakcijas'!$K:$K,\"<>\"&\"FIFO*\",'VSAOI transakcijas'!$K:$K,\"<>\"&\"Iemaksas atbrīvošana\")","v":0},{"$f":"-SUMIFS('VSAOI transakcijas'!$R:$R,'VSAOI transakcijas'!$D:$D,\"Aprēķins\",'VSAOI transakcijas'!$H:$H,\"Pamatsumma\",'VSAOI transakcijas'!$S:$S,\">=\"&DATE(YEAR(K2),MONTH(K2),1),'VSAOI transakcijas'!$S:$S,\"<=\"&'Sakuma lapa'!$F$16,'VSAOI transakcijas'!$O:$O,YEAR(DATE(YEAR(K2),MONTH(K2)+2,0)),'VSAOI transakcijas'!$P:$P,RIGHT(\"0\"&MONTH(DATE(YEAR(K2),MONTH(K2)+2,0)),2),'VSAOI transakcijas'!$Q:$Q,\"IIN\",'VSAOI transakcijas'!$K:$K,\"<>\"&\"FIFO*\",'VSAOI transakcijas'!$K:$K,\"<>\"&\"Iemaksas atbrīvošana\")","v":0},{"$f":"-SUMIFS('VSAOI transakcijas'!$R:$R,'VSAOI transakcijas'!$D:$D,\"Aprēķins\",'VSAOI transakcijas'!$H:$H,\"Pamatsumma\",'VSAOI transakcijas'!$S:$S,\">=\"&DATE(YEAR(L2),MONTH(L2),1),'VSAOI transakcijas'!$S:$S,\"<=\"&'Sakuma lapa'!$F$16,'VSAOI transakcijas'!$O:$O,YEAR(DATE(YEAR(L2),MONTH(L2)+2,0)),'VSAOI transakcijas'!$P:$P,RIGHT(\"0\"&MONTH(DATE(YEAR(L2),MONTH(L2)+2,0)),2),'VSAOI transakcijas'!$Q:$Q,\"IIN\",'VSAOI transakcijas'!$K:$K,\"<>\"&\"FIFO*\",'VSAOI transakcijas'!$K:$K,\"<>\"&\"Iemaksas atbrīvošana\")","v":0},{"$f":"-SUMIFS('VSAOI transakcijas'!$R:$R,'VSAOI transakcijas'!$D:$D,\"Aprēķins\",'VSAOI transakcijas'!$H:$H,\"Pamatsumma\",'VSAOI transakcijas'!$S:$S,\">=\"&DATE(YEAR(M2),MONTH(M2),1),'VSAOI transakcijas'!$S:$S,\"<=\"&'Sakuma lapa'!$F$16,'VSAOI transakcijas'!$O:$O,YEAR(DATE(YEAR(M2),MONTH(M2)+2,0)),'VSAOI transakcijas'!$P:$P,RIGHT(\"0\"&MONTH(DATE(YEAR(M2),MONTH(M2)+2,0)),2),'VSAOI transakcijas'!$Q:$Q,\"IIN\",'VSAOI transakcijas'!$K:$K,\"<>\"&\"FIFO*\",'VSAOI transakcijas'!$K:$K,\"<>\"&\"Iemaksas atbrīvošana\")","v":0},{"$f":"-SUMIFS('VSAOI transakcijas'!$R:$R,'VSAOI transakcijas'!$D:$D,\"Aprēķins\",'VSAOI transakcijas'!$H:$H,\"Pamatsumma\",'VSAOI transakcijas'!$S:$S,\">=\"&DATE(YEAR(N2),MONTH(N2),1),'VSAOI transakcijas'!$S:$S,\"<=\"&'Sakuma lapa'!$F$16,'VSAOI transakcijas'!$O:$O,YEAR(DATE(YEAR(N2),MONTH(N2)+2,0)),'VSAOI transakcijas'!$P:$P,RIGHT(\"0\"&MONTH(DATE(YEAR(N2),MONTH(N2)+2,0)),2),'VSAOI transakcijas'!$Q:$Q,\"IIN\",'VSAOI transakcijas'!$K:$K,\"<>\"&\"FIFO*\",'VSAOI transakcijas'!$K:$K,\"<>\"&\"Iemaksas atbrīvošana\")","v":0},{"$f":"SUM(C47:N47)","v":0}]
[null,"Aprēķins - Citi",{"$f":"-SUMIFS('VSAOI transakcijas'!$R:$R,'VSAOI transakcijas'!$D:$D,\"Aprēķins\",'VSAOI transakcijas'!$H:$H,\"Pamatsumma\",'VSAOI transakcijas'!$S:$S,\">=\"&DATE(YEAR(C2),MONTH(C2),1),'VSAOI transakcijas'!$S:$S,\"<=\"&'Sakuma lapa'!$F$16,'VSAOI transakcijas'!$O:$O,YEAR(DATE(YEAR(C2),MONTH(C2)+2,0)),'VSAOI transakcijas'!$P:$P,RIGHT(\"0\"&MONTH(DATE(YEAR(C2),MONTH(C2)+2,0)),2),'VSAOI transakcijas'!$Q:$Q,\"IIN\",'VSAOI transakcijas'!$K:$K,\"<>\"&\"FIFO*\",'VSAOI transakcijas'!$K:$K,\"<>\"&\"Iemaksas atbrīvošana\",'VSAOI transakcijas'!$E:$E,\"<>\"&\"Deklarācija/pārskats\")","v":0},{"$f":"-SUMIFS('VSAOI transakcijas'!$R:$R,'VSAOI transakcijas'!$D:$D,\"Aprēķins\",'VSAOI transakcijas'!$H:$H,\"Pamatsumma\",'VSAOI transakcijas'!$S:$S,\">=\"&DATE(YEAR(D2),MONTH(D2),1),'VSAOI transakcijas'!$S:$S,\"<=\"&'Sakuma lapa'!$F$16,'VSAOI transakcijas'!$O:$O,YEAR(DATE(YEAR(D2),MONTH(D2)+2,0)),'VSAOI transakcijas'!$P:$P,RIGHT(\"0\"&MONTH(DATE(YEAR(D2),MONTH(D2)+2,0)),2),'VSAOI transakcijas'!$Q:$Q,\"IIN\",'VSAOI transakcijas'!$K:$K,\"<>\"&\"FIFO*\",'VSAOI transakcijas'!$K:$K,\"<>\"&\"Iemaksas atbrīvošana\",'VSAOI transakcijas'!$E:$E,\"<>\"&\"Deklarācija/pārskats\")","v":0},{"$f":"-SUMIFS('VSAOI transakcijas'!$R:$R,'VSAOI transakcijas'!$D:$D,\"Aprēķins\",'VSAOI transakcijas'!$H:$H,\"Pamatsumma\",'VSAOI transakcijas'!$S:$S,\">=\"&DATE(YEAR(E2),MONTH(E2),1),'VSAOI transakcijas'!$S:$S,\"<=\"&'Sakuma lapa'!$F$16,'VSAOI transakcijas'!$O:$O,YEAR(DATE(YEAR(E2),MONTH(E2)+2,0)),'VSAOI transakcijas'!$P:$P,RIGHT(\"0\"&MONTH(DATE(YEAR(E2),MONTH(E2)+2,0)),2),'VSAOI transakcijas'!$Q:$Q,\"IIN\",'VSAOI transakcijas'!$K:$K,\"<>\"&\"FIFO*\",'VSAOI transakcijas'!$K:$K,\"<>\"&\"Iemaksas atbrīvošana\",'VSAOI transakcijas'!$E:$E,\"<>\"&\"Deklarācija/pārskats\")","v":0},{"$f":"-SUMIFS('VSAOI transakcijas'!$R:$R,'VSAOI transakcijas'!$D:$D,\"Aprēķins\",'VSAOI transakcijas'!$H:$H,\"Pamatsumma\",'VSAOI transakcijas'!$S:$S,\">=\"&DATE(YEAR(F2),MONTH(F2),1),'VSAOI transakcijas'!$S:$S,\"<=\"&'Sakuma lapa'!$F$16,'VSAOI transakcijas'!$O:$O,YEAR(DATE(YEAR(F2),MONTH(F2)+2,0)),'VSAOI transakcijas'!$P:$P,RIGHT(\"0\"&MONTH(DATE(YEAR(F2),MONTH(F2)+2,0)),2),'VSAOI transakcijas'!$Q:$Q,\"IIN\",'VSAOI transakcijas'!$K:$K,\"<>\"&\"FIFO*\",'VSAOI transakcijas'!$K:$K,\"<>\"&\"Iemaksas atbrīvošana\",'VSAOI transakcijas'!$E:$E,\"<>\"&\"Deklarācija/pārskats\")","v":0},{"$f":"-SUMIFS('VSAOI transakcijas'!$R:$R,'VSAOI transakcijas'!$D:$D,\"Aprēķins\",'VSAOI transakcijas'!$H:$H,\"Pamatsumma\",'VSAOI transakcijas'!$S:$S,\">=\"&DATE(YEAR(G2),MONTH(G2),1),'VSAOI transakcijas'!$S:$S,\"<=\"&'Sakuma lapa'!$F$16,'VSAOI transakcijas'!$O:$O,YEAR(DATE(YEAR(G2),MONTH(G2)+2,0)),'VSAOI transakcijas'!$P:$P,RIGHT(\"0\"&MONTH(DATE(YEAR(G2),MONTH(G2)+2,0)),2),'VSAOI transakcijas'!$Q:$Q,\"IIN\",'VSAOI transakcijas'!$K:$K,\"<>\"&\"FIFO*\",'VSAOI transakcijas'!$K:$K,\"<>\"&\"Iemaksas atbrīvošana\",'VSAOI transakcijas'!$E:$E,\"<>\"&\"Deklarācija/pārskats\")","v":0},{"$f":"-SUMIFS('VSAOI transakcijas'!$R:$R,'VSAOI transakcijas'!$D:$D,\"Aprēķins\",'VSAOI transakcijas'!$H:$H,\"Pamatsumma\",'VSAOI transakcijas'!$S:$S,\">=\"&DATE(YEAR(H2),MONTH(H2),1),'VSAOI transakcijas'!$S:$S,\"<=\"&'Sakuma lapa'!$F$16,'VSAOI transakcijas'!$O:$O,YEAR(DATE(YEAR(H2),MONTH(H2)+2,0)),'VSAOI transakcijas'!$P:$P,RIGHT(\"0\"&MONTH(DATE(YEAR(H2),MONTH(H2)+2,0)),2),'VSAOI transakcijas'!$Q:$Q,\"IIN\",'VSAOI transakcijas'!$K:$K,\"<>\"&\"FIFO*\",'VSAOI transakcijas'!$K:$K,\"<>\"&\"Iemaksas atbrīvošana\",'VSAOI transakcijas'!$E:$E,\"<>\"&\"Deklarācija/pārskats\")","v":0},{"$f":"-SUMIFS('VSAOI transakcijas'!$R:$R,'VSAOI transakcijas'!$D:$D,\"Aprēķins\",'VSAOI transakcijas'!$H:$H,\"Pamatsumma\",'VSAOI transakcijas'!$S:$S,\">=\"&DATE(YEAR(I2),MONTH(I2),1),'VSAOI transakcijas'!$S:$S,\"<=\"&'Sakuma lapa'!$F$16,'VSAOI transakcijas'!$O:$O,YEAR(DATE(YEAR(I2),MONTH(I2)+2,0)),'VSAOI transakcijas'!$P:$P,RIGHT(\"0\"&MONTH(DATE(YEAR(I2),MONTH(I2)+2,0)),2),'VSAOI transakcijas'!$Q:$Q,\"IIN\",'VSAOI transakcijas'!$K:$K,\"<>\"&\"FIFO*\",'VSAOI transakcijas'!$K:$K,\"<>\"&\"Iemaksas atbrīvošana\",'VSAOI transakcijas'!$E:$E,\"<>\"&\"Deklarācija/pārskats\")","v":0},{"$f":"-SUMIFS('VSAOI transakcijas'!$R:$R,'VSAOI transakcijas'!$D:$D,\"Aprēķins\",'VSAOI transakcijas'!$H:$H,\"Pamatsumma\",'VSAOI transakcijas'!$S:$S,\">=\"&DATE(YEAR(J2),MONTH(J2),1),'VSAOI transakcijas'!$S:$S,\"<=\"&'Sakuma lapa'!$F$16,'VSAOI transakcijas'!$O:$O,YEAR(DATE(YEAR(J2),MONTH(J2)+2,0)),'VSAOI transakcijas'!$P:$P,RIGHT(\"0\"&MONTH(DATE(YEAR(J2),MONTH(J2)+2,0)),2),'VSAOI transakcijas'!$Q:$Q,\"IIN\",'VSAOI transakcijas'!$K:$K,\"<>\"&\"FIFO*\",'VSAOI transakcijas'!$K:$K,\"<>\"&\"Iemaksas atbrīvošana\",'VSAOI transakcijas'!$E:$E,\"<>\"&\"Deklarācija/pārskats\")","v":0},{"$f":"-SUMIFS('VSAOI transakcijas'!$R:$R,'VSAOI transakcijas'!$D:$D,\"Aprēķins\",'VSAOI transakcijas'!$H:$H,\"Pamatsumma\",'VSAOI transakcijas'!$S:$S,\">=\"&DATE(YEAR(K2),MONTH(K2),1),'VSAOI transakcijas'!$S:$S,\"<=\"&'Sakuma lapa'!$F$16,'VSAOI transakcijas'!$O:$O,YEAR(DATE(YEAR(K2),MONTH(K2)+2,0)),'VSAOI transakcijas'!$P:$P,RIGHT(\"0\"&MONTH(DATE(YEAR(K2),MONTH(K2)+2,0)),2),'VSAOI transakcijas'!$Q:$Q,\"IIN\",'VSAOI transakcijas'!$K:$K,\"<>\"&\"FIFO*\",'VSAOI transakcijas'!$K:$K,\"<>\"&\"Iemaksas atbrīvošana\",'VSAOI transakcijas'!$E:$E,\"<>\"&\"Deklarācija/pārskats\")","v":0},{"$f":"-SUMIFS('VSAOI transakcijas'!$R:$R,'VSAOI transakcijas'!$D:$D,\"Aprēķins\",'VSAOI transakcijas'!$H:$H,\"Pamatsumma\",'VSAOI transakcijas'!$S:$S,\">=\"&DATE(YEAR(L2),MONTH(L2),1),'VSAOI transakcijas'!$S:$S,\"<=\"&'Sakuma lapa'!$F$16,'VSAOI transakcijas'!$O:$O,YEAR(DATE(YEAR(L2),MONTH(L2)+2,0)),'VSAOI transakcijas'!$P:$P,RIGHT(\"0\"&MONTH(DATE(YEAR(L2),MONTH(L2)+2,0)),2),'VSAOI transakcijas'!$Q:$Q,\"IIN\",'VSAOI transakcijas'!$K:$K,\"<>\"&\"FIFO*\",'VSAOI transakcijas'!$K:$K,\"<>\"&\"Iemaksas atbrīvošana\",'VSAOI transakcijas'!$E:$E,\"<>\"&\"Deklarācija/pārskats\")","v":0},{"$f":"-SUMIFS('VSAOI transakcijas'!$R:$R,'VSAOI transakcijas'!$D:$D,\"Aprēķins\",'VSAOI transakcijas'!$H:$H,\"Pamatsumma\",'VSAOI transakcijas'!$S:$S,\">=\"&DATE(YEAR(M2),MONTH(M2),1),'VSAOI transakcijas'!$S:$S,\"<=\"&'Sakuma lapa'!$F$16,'VSAOI transakcijas'!$O:$O,YEAR(DATE(YEAR(M2),MONTH(M2)+2,0)),'VSAOI transakcijas'!$P:$P,RIGHT(\"0\"&MONTH(DATE(YEAR(M2),MONTH(M2)+2,0)),2),'VSAOI transakcijas'!$Q:$Q,\"IIN\",'VSAOI transakcijas'!$K:$K,\"<>\"&\"FIFO*\",'VSAOI transakcijas'!$K:$K,\"<>\"&\"Iemaksas atbrīvošana\",'VSAOI transakcijas'!$E:$E,\"<>\"&\"Deklarācija/pārskats\")","v":0},{"$f":"-SUMIFS('VSAOI transakcijas'!$R:$R,'VSAOI transakcijas'!$D:$D,\"Aprēķins\",'VSAOI transakcijas'!$H:$H,\"Pamatsumma\",'VSAOI transakcijas'!$S:$S,\">=\"&DATE(YEAR(N2),MONTH(N2),1),'VSAOI transakcijas'!$S:$S,\"<=\"&'Sakuma lapa'!$F$16,'VSAOI transakcijas'!$O:$O,YEAR(DATE(YEAR(N2),MONTH(N2)+2,0)),'VSAOI transakcijas'!$P:$P,RIGHT(\"0\"&MONTH(DATE(YEAR(N2),MONTH(N2)+2,0)),2),'VSAOI transakcijas'!$Q:$Q,\"IIN\",'VSAOI transakcijas'!$K:$K,\"<>\"&\"FIFO*\",'VSAOI transakcijas'!$K:$K,\"<>\"&\"Iemaksas atbrīvošana\",'VSAOI transakcijas'!$E:$E,\"<>\"&\"Deklarācija/pārskats\")","v":0},{"$f":"SUM(C48:N48)","v":0}]
[null,"Iemaksa/Atmaksa/Pārvietošana",{"$f":"-SUMIFS('VSAOI transakcijas'!$R:$R,'VSAOI transakcijas'!$D:$D,\"Iemaksa\",'VSAOI transakcijas'!$H:$H,\"Pamatsumma\",'VSAOI transakcijas'!$S:$S,\">=\"&DATE(YEAR(C2),MONTH(C2),1),'VSAOI transakcijas'!$S:$S,\"<=\"&'Sakuma lapa'!$F$16,'VSAOI transakcijas'!$O:$O,YEAR(DATE(YEAR(C2),MONTH(C2)+1,0)),'VSAOI transakcijas'!$P:$P,RIGHT(\"0\"&MONTH(DATE(YEAR(C2),MONTH(C2)+1,0)),2),'VSAOI transakcijas'!$Q:$Q,\"IIN\")\n-SUMIFS('VSAOI transakcijas'!$R:$R,'VSAOI transakcijas'!$D:$D,\"Atmaksa\",'VSAOI transakcijas'!$H:$H,\"Pamatsumma\",'VSAOI transakcijas'!$S:$S,\">=\"&DATE(YEAR(C2),MONTH(C2),1),'VSAOI transakcijas'!$S:$S,\"<=\"&'Sakuma lapa'!$F$16,'VSAOI transakcijas'!$O:$O,YEAR(DATE(YEAR(C2),MONTH(C2)+1,0)),'VSAOI transakcijas'!$P:$P,RIGHT(\"0\"&MONTH(DATE(YEAR(C2),MONTH(C2)+1,0)),2),'VSAOI transakcijas'!$Q:$Q,\"IIN\")\n-SUMIFS('VSAOI transakcijas'!$R:$R,'VSAOI transakcijas'!$D:$D,\"Aprēķins\",'VSAOI transakcijas'!$H:$H,\"Pamatsumma\",'VSAOI transakcijas'!$S:$S,\">=\"&DATE(YEAR(C2),MONTH(C2),1),'VSAOI transakcijas'!$S:$S,\"<=\"&'Sakuma lapa'!$F$16,'VSAOI transakcijas'!$O:$O,YEAR(DATE(YEAR(C2),MONTH(C2)+1,0)),'VSAOI transakcijas'!$P:$P,RIGHT(\"0\"&MONTH(DATE(YEAR(C2),MONTH(C2)+1,0)),2),'VSAOI transakcijas'!$Q:$Q,\"IIN\",'VSAOI transakcijas'!$K:$K,\"FIFO*\")\n-SUMIFS('VSAOI transakcijas'!$R:$R,'VSAOI transakcijas'!$D:$D,\"Aprēķins\",'VSAOI transakcijas'!$H:$H,\"Pamatsumma\",'VSAOI transakcijas'!$S:$S,\">=\"&DATE(YEAR(C2),MONTH(C2),1),'VSAOI transakcijas'!$S:$S,\"<=\"&'Sakuma lapa'!$F$16,'VSAOI transakcijas'!$O:$O,YEAR(DATE(YEAR(C2),MONTH(C2)+1,0)),'VSAOI transakcijas'!$P:$P,RIGHT(\"0\"&MONTH(DATE(YEAR(C2),MONTH(C2)+1,0)),2),'VSAOI transakcijas'!$Q:$Q,\"IIN\",'VSAOI transakcijas'!$K:$K,\"Iemaksas atbrīvošana\")\n-SUMIFS('VSAOI transakcijas'!$R:$R,'VSAOI transakcijas'!$H:$H,\"Nokavējuma nauda\",'VSAOI transakcijas'!$S:$S,\">=\"&DATE(YEAR(C2),MONTH(C2),1),'VSAOI transakcijas'!$S:$S,\"<=\"&'Sakuma lapa'!$F$16,'VSAOI transakcijas'!$O:$O,YEAR(DATE(YEAR(C2),MONTH(C2)+1,0)),'VSAOI transakcijas'!$P:$P,RIGHT(\"0\"&MONTH(DATE(YEAR(C2),MONTH(C2)+1,0)),2),'VSAOI transakcijas'!$Q:$Q,\"IIN\")","v":0},{"$f":"-SUMIFS('VSAOI transakcijas'!$R:$R,'VSAOI transakcijas'!$D:$D,\"Iemaksa\",'VSAOI transakcijas'!$H:$H,\"Pamatsumma\",'VSAOI transakcijas'!$S:$S,\">=\"&DATE(YEAR(D2),MONTH(D2),1),'VSAOI transakcijas'!$S:$S,\"<=\"&'Sakuma lapa'!$F$16,'VSAOI transakcijas'!$O:$O,YEAR(DATE(YEAR(D2),MONTH(D2)+1,0)),'VSAOI transakcijas'!$P:$P,RIGHT(\"0\"&MONTH(DATE(YEAR(D2),MONTH(D2)+1,0)),2),'VSAOI transakcijas'!$Q:$Q,\"IIN\")\n-SUMIFS('VSAOI transakcijas'!$R:$R,'VSAOI transakcijas'!$D:$D,\"Atmaksa\",'VSAOI transakcijas'!$H:$H,\"Pamatsumma\",'VSAOI transakcijas'!$S:$S,\">=\"&DATE(YEAR(D2),MONTH(D2),1),'VSAOI transakcijas'!$S:$S,\"<=\"&'Sakuma lapa'!$F$16,'VSAOI transakcijas'!$O:$O,YEAR(DATE(YEAR(D2),MONTH(D2)+1,0)),'VSAOI transakcijas'!$P:$P,RIGHT(\"0\"&MONTH(DATE(YEAR(D2),MONTH(D2)+1,0)),2),'VSAOI transakcijas'!$Q:$Q,\"IIN\")\n-SUMIFS('VSAOI transakcijas'!$R:$R,'VSAOI transakcijas'!$D:$D,\"Aprēķins\",'VSAOI transakcijas'!$H:$H,\"Pamatsumma\",'VSAOI transakcijas'!$S:$S,\">=\"&DATE(YEAR(D2),MONTH(D2),1),'VSAOI transakcijas'!$S:$S,\"<=\"&'Sakuma lapa'!$F$16,'VSAOI transakcijas'!$O:$O,YEAR(DATE(YEAR(D2),MONTH(D2)+1,0)),'VSAOI transakcijas'!$P:$P,RIGHT(\"0\"&MONTH(DATE(YEAR(D2),MONTH(D2)+1,0)),2),'VSAOI transakcijas'!$Q:$Q,\"IIN\",'VSAOI transakcijas'!$K:$K,\"FIFO*\")\n-SUMIFS('VSAOI transakcijas'!$R:$R,'VSAOI transakcijas'!$D:$D,\"Aprēķins\",'VSAOI transakcijas'!$H:$H,\"Pamatsumma\",'VSAOI transakcijas'!$S:$S,\">=\"&DATE(YEAR(D2),MONTH(D2),1),'VSAOI transakcijas'!$S:$S,\"<=\"&'Sakuma lapa'!$F$16,'VSAOI transakcijas'!$O:$O,YEAR(DATE(YEAR(D2),MONTH(D2)+1,0)),'VSAOI transakcijas'!$P:$P,RIGHT(\"0\"&MONTH(DATE(YEAR(D2),MONTH(D2)+1,0)),2),'VSAOI transakcijas'!$Q:$Q,\"IIN\",'VSAOI transakcijas'!$K:$K,\"Iemaksas atbrīvošana\")\n-SUMIFS('VSAOI transakcijas'!$R:$R,'VSAOI transakcijas'!$H:$H,\"Nokavējuma nauda\",'VSAOI transakcijas'!$S:$S,\">=\"&DATE(YEAR(D2),MONTH(D2),1),'VSAOI transakcijas'!$S:$S,\"<=\"&'Sakuma lapa'!$F$16,'VSAOI transakcijas'!$O:$O,YEAR(DATE(YEAR(D2),MONTH(D2)+1,0)),'VSAOI transakcijas'!$P:$P,RIGHT(\"0\"&MONTH(DATE(YEAR(D2),MONTH(D2)+1,0)),2),'VSAOI transakcijas'!$Q:$Q,\"IIN\")","v":0},{"$f":"-SUMIFS('VSAOI transakcijas'!$R:$R,'VSAOI transakcijas'!$D:$D,\"Iemaksa\",'VSAOI transakcijas'!$H:$H,\"Pamatsumma\",'VSAOI transakcijas'!$S:$S,\">=\"&DATE(YEAR(E2),MONTH(E2),1),'VSAOI transakcijas'!$S:$S,\"<=\"&'Sakuma lapa'!$F$16,'VSAOI transakcijas'!$O:$O,YEAR(DATE(YEAR(E2),MONTH(E2)+1,0)),'VSAOI transakcijas'!$P:$P,RIGHT(\"0\"&MONTH(DATE(YEAR(E2),MONTH(E2)+1,0)),2),'VSAOI transakcijas'!$Q:$Q,\"IIN\")\n-SUMIFS('VSAOI transakcijas'!$R:$R,'VSAOI transakcijas'!$D:$D,\"Atmaksa\",'VSAOI transakcijas'!$H:$H,\"Pamatsumma\",'VSAOI transakcijas'!$S:$S,\">=\"&DATE(YEAR(E2),MONTH(E2),1),'VSAOI transakcijas'!$S:$S,\"<=\"&'Sakuma lapa'!$F$16,'VSAOI transakcijas'!$O:$O,YEAR(DATE(YEAR(E2),MONTH(E2)+1,0)),'VSAOI transakcijas'!$P:$P,RIGHT(\"0\"&MONTH(DATE(YEAR(E2),MONTH(E2)+1,0)),2),'VSAOI transakcijas'!$Q:$Q,\"IIN\")\n-SUMIFS('VSAOI transakcijas'!$R:$R,'VSAOI transakcijas'!$D:$D,\"Aprēķins\",'VSAOI transakcijas'!$H:$H,\"Pamatsumma\",'VSAOI transakcijas'!$S:$S,\">=\"&DATE(YEAR(E2),MONTH(E2),1),'VSAOI transakcijas'!$S:$S,\"<=\"&'Sakuma lapa'!$F$16,'VSAOI transakcijas'!$O:$O,YEAR(DATE(YEAR(E2),MONTH(E2)+1,0)),'VSAOI transakcijas'!$P:$P,RIGHT(\"0\"&MONTH(DATE(YEAR(E2),MONTH(E2)+1,0)),2),'VSAOI transakcijas'!$Q:$Q,\"IIN\",'VSAOI transakcijas'!$K:$K,\"FIFO*\")\n-SUMIFS('VSAOI transakcijas'!$R:$R,'VSAOI transakcijas'!$D:$D,\"Aprēķins\",'VSAOI transakcijas'!$H:$H,\"Pamatsumma\",'VSAOI transakcijas'!$S:$S,\">=\"&DATE(YEAR(E2),MONTH(E2),1),'VSAOI transakcijas'!$S:$S,\"<=\"&'Sakuma lapa'!$F$16,'VSAOI transakcijas'!$O:$O,YEAR(DATE(YEAR(E2),MONTH(E2)+1,0)),'VSAOI transakcijas'!$P:$P,RIGHT(\"0\"&MONTH(DATE(YEAR(E2),MONTH(E2)+1,0)),2),'VSAOI transakcijas'!$Q:$Q,\"IIN\",'VSAOI transakcijas'!$K:$K,\"Iemaksas atbrīvošana\")\n-SUMIFS('VSAOI transakcijas'!$R:$R,'VSAOI transakcijas'!$H:$H,\"Nokavējuma nauda\",'VSAOI transakcijas'!$S:$S,\">=\"&DATE(YEAR(E2),MONTH(E2),1),'VSAOI transakcijas'!$S:$S,\"<=\"&'Sakuma lapa'!$F$16,'VSAOI transakcijas'!$O:$O,YEAR(DATE(YEAR(E2),MONTH(E2)+1,0)),'VSAOI transakcijas'!$P:$P,RIGHT(\"0\"&MONTH(DATE(YEAR(E2),MONTH(E2)+1,0)),2),'VSAOI transakcijas'!$Q:$Q,\"IIN\")","v":0},{"$f":"-SUMIFS('VSAOI transakcijas'!$R:$R,'VSAOI transakcijas'!$D:$D,\"Iemaksa\",'VSAOI transakcijas'!$H:$H,\"Pamatsumma\",'VSAOI transakcijas'!$S:$S,\">=\"&DATE(YEAR(F2),MONTH(F2),1),'VSAOI transakcijas'!$S:$S,\"<=\"&'Sakuma lapa'!$F$16,'VSAOI transakcijas'!$O:$O,YEAR(DATE(YEAR(F2),MONTH(F2)+1,0)),'VSAOI transakcijas'!$P:$P,RIGHT(\"0\"&MONTH(DATE(YEAR(F2),MONTH(F2)+1,0)),2),'VSAOI transakcijas'!$Q:$Q,\"IIN\")\n-SUMIFS('VSAOI transakcijas'!$R:$R,'VSAOI transakcijas'!$D:$D,\"Atmaksa\",'VSAOI transakcijas'!$H:$H,\"Pamatsumma\",'VSAOI transakcijas'!$S:$S,\">=\"&DATE(YEAR(F2),MONTH(F2),1),'VSAOI transakcijas'!$S:$S,\"<=\"&'Sakuma lapa'!$F$16,'VSAOI transakcijas'!$O:$O,YEAR(DATE(YEAR(F2),MONTH(F2)+1,0)),'VSAOI transakcijas'!$P:$P,RIGHT(\"0\"&MONTH(DATE(YEAR(F2),MONTH(F2)+1,0)),2),'VSAOI transakcijas'!$Q:$Q,\"IIN\")\n-SUMIFS('VSAOI transakcijas'!$R:$R,'VSAOI transakcijas'!$D:$D,\"Aprēķins\",'VSAOI transakcijas'!$H:$H,\"Pamatsumma\",'VSAOI transakcijas'!$S:$S,\">=\"&DATE(YEAR(F2),MONTH(F2),1),'VSAOI transakcijas'!$S:$S,\"<=\"&'Sakuma lapa'!$F$16,'VSAOI transakcijas'!$O:$O,YEAR(DATE(YEAR(F2),MONTH(F2)+1,0)),'VSAOI transakcijas'!$P:$P,RIGHT(\"0\"&MONTH(DATE(YEAR(F2),MONTH(F2)+1,0)),2),'VSAOI transakcijas'!$Q:$Q,\"IIN\",'VSAOI transakcijas'!$K:$K,\"FIFO*\")\n-SUMIFS('VSAOI transakcijas'!$R:$R,'VSAOI transakcijas'!$D:$D,\"Aprēķins\",'VSAOI transakcijas'!$H:$H,\"Pamatsumma\",'VSAOI transakcijas'!$S:$S,\">=\"&DATE(YEAR(F2),MONTH(F2),1),'VSAOI transakcijas'!$S:$S,\"<=\"&'Sakuma lapa'!$F$16,'VSAOI transakcijas'!$O:$O,YEAR(DATE(YEAR(F2),MONTH(F2)+1,0)),'VSAOI transakcijas'!$P:$P,RIGHT(\"0\"&MONTH(DATE(YEAR(F2),MONTH(F2)+1,0)),2),'VSAOI transakcijas'!$Q:$Q,\"IIN\",'VSAOI transakcijas'!$K:$K,\"Iemaksas atbrīvošana\")\n-SUMIFS('VSAOI transakcijas'!$R:$R,'VSAOI transakcijas'!$H:$H,\"Nokavējuma nauda\",'VSAOI transakcijas'!$S:$S,\">=\"&DATE(YEAR(F2),MONTH(F2),1),'VSAOI transakcijas'!$S:$S,\"<=\"&'Sakuma lapa'!$F$16,'VSAOI transakcijas'!$O:$O,YEAR(DATE(YEAR(F2),MONTH(F2)+1,0)),'VSAOI transakcijas'!$P:$P,RIGHT(\"0\"&MONTH(DATE(YEAR(F2),MONTH(F2)+1,0)),2),'VSAOI transakcijas'!$Q:$Q,\"IIN\")","v":0},{"$f":"-SUMIFS('VSAOI transakcijas'!$R:$R,'VSAOI transakcijas'!$D:$D,\"Iemaksa\",'VSAOI transakcijas'!$H:$H,\"Pamatsumma\",'VSAOI transakcijas'!$S:$S,\">=\"&DATE(YEAR(G2),MONTH(G2),1),'VSAOI transakcijas'!$S:$S,\"<=\"&'Sakuma lapa'!$F$16,'VSAOI transakcijas'!$O:$O,YEAR(DATE(YEAR(G2),MONTH(G2)+1,0)),'VSAOI transakcijas'!$P:$P,RIGHT(\"0\"&MONTH(DATE(YEAR(G2),MONTH(G2)+1,0)),2),'VSAOI transakcijas'!$Q:$Q,\"IIN\")\n-SUMIFS('VSAOI transakcijas'!$R:$R,'VSAOI transakcijas'!$D:$D,\"Atmaksa\",'VSAOI transakcijas'!$H:$H,\"Pamatsumma\",'VSAOI transakcijas'!$S:$S,\">=\"&DATE(YEAR(G2),MONTH(G2),1),'VSAOI transakcijas'!$S:$S,\"<=\"&'Sakuma lapa'!$F$16,'VSAOI transakcijas'!$O:$O,YEAR(DATE(YEAR(G2),MONTH(G2)+1,0)),'VSAOI transakcijas'!$P:$P,RIGHT(\"0\"&MONTH(DATE(YEAR(G2),MONTH(G2)+1,0)),2),'VSAOI transakcijas'!$Q:$Q,\"IIN\")\n-SUMIFS('VSAOI transakcijas'!$R:$R,'VSAOI transakcijas'!$D:$D,\"Aprēķins\",'VSAOI transakcijas'!$H:$H,\"Pamatsumma\",'VSAOI transakcijas'!$S:$S,\">=\"&DATE(YEAR(G2),MONTH(G2),1),'VSAOI transakcijas'!$S:$S,\"<=\"&'Sakuma lapa'!$F$16,'VSAOI transakcijas'!$O:$O,YEAR(DATE(YEAR(G2),MONTH(G2)+1,0)),'VSAOI transakcijas'!$P:$P,RIGHT(\"0\"&MONTH(DATE(YEAR(G2),MONTH(G2)+1,0)),2),'VSAOI transakcijas'!$Q:$Q,\"IIN\",'VSAOI transakcijas'!$K:$K,\"FIFO*\")\n-SUMIFS('VSAOI transakcijas'!$R:$R,'VSAOI transakcijas'!$D:$D,\"Aprēķins\",'VSAOI transakcijas'!$H:$H,\"Pamatsumma\",'VSAOI transakcijas'!$S:$S,\">=\"&DATE(YEAR(G2),MONTH(G2),1),'VSAOI transakcijas'!$S:$S,\"<=\"&'Sakuma lapa'!$F$16,'VSAOI transakcijas'!$O:$O,YEAR(DATE(YEAR(G2),MONTH(G2)+1,0)),'VSAOI transakcijas'!$P:$P,RIGHT(\"0\"&MONTH(DATE(YEAR(G2),MONTH(G2)+1,0)),2),'VSAOI transakcijas'!$Q:$Q,\"IIN\",'VSAOI transakcijas'!$K:$K,\"Iemaksas atbrīvošana\")\n-SUMIFS('VSAOI transakcijas'!$R:$R,'VSAOI transakcijas'!$H:$H,\"Nokavējuma nauda\",'VSAOI transakcijas'!$S:$S,\">=\"&DATE(YEAR(G2),MONTH(G2),1),'VSAOI transakcijas'!$S:$S,\"<=\"&'Sakuma lapa'!$F$16,'VSAOI transakcijas'!$O:$O,YEAR(DATE(YEAR(G2),MONTH(G2)+1,0)),'VSAOI transakcijas'!$P:$P,RIGHT(\"0\"&MONTH(DATE(YEAR(G2),MONTH(G2)+1,0)),2),'VSAOI transakcijas'!$Q:$Q,\"IIN\")","v":0},{"$f":"-SUMIFS('VSAOI transakcijas'!$R:$R,'VSAOI transakcijas'!$D:$D,\"Iemaksa\",'VSAOI transakcijas'!$H:$H,\"Pamatsumma\",'VSAOI transakcijas'!$S:$S,\">=\"&DATE(YEAR(H2),MONTH(H2),1),'VSAOI transakcijas'!$S:$S,\"<=\"&'Sakuma lapa'!$F$16,'VSAOI transakcijas'!$O:$O,YEAR(DATE(YEAR(H2),MONTH(H2)+1,0)),'VSAOI transakcijas'!$P:$P,RIGHT(\"0\"&MONTH(DATE(YEAR(H2),MONTH(H2)+1,0)),2),'VSAOI transakcijas'!$Q:$Q,\"IIN\")\n-SUMIFS('VSAOI transakcijas'!$R:$R,'VSAOI transakcijas'!$D:$D,\"Atmaksa\",'VSAOI transakcijas'!$H:$H,\"Pamatsumma\",'VSAOI transakcijas'!$S:$S,\">=\"&DATE(YEAR(H2),MONTH(H2),1),'VSAOI transakcijas'!$S:$S,\"<=\"&'Sakuma lapa'!$F$16,'VSAOI transakcijas'!$O:$O,YEAR(DATE(YEAR(H2),MONTH(H2)+1,0)),'VSAOI transakcijas'!$P:$P,RIGHT(\"0\"&MONTH(DATE(YEAR(H2),MONTH(H2)+1,0)),2),'VSAOI transakcijas'!$Q:$Q,\"IIN\")\n-SUMIFS('VSAOI transakcijas'!$R:$R,'VSAOI transakcijas'!$D:$D,\"Aprēķins\",'VSAOI transakcijas'!$H:$H,\"Pamatsumma\",'VSAOI transakcijas'!$S:$S,\">=\"&DATE(YEAR(H2),MONTH(H2),1),'VSAOI transakcijas'!$S:$S,\"<=\"&'Sakuma lapa'!$F$16,'VSAOI transakcijas'!$O:$O,YEAR(DATE(YEAR(H2),MONTH(H2)+1,0)),'VSAOI transakcijas'!$P:$P,RIGHT(\"0\"&MONTH(DATE(YEAR(H2),MONTH(H2)+1,0)),2),'VSAOI transakcijas'!$Q:$Q,\"IIN\",'VSAOI transakcijas'!$K:$K,\"FIFO*\")\n-SUMIFS('VSAOI transakcijas'!$R:$R,'VSAOI transakcijas'!$D:$D,\"Aprēķins\",'VSAOI transakcijas'!$H:$H,\"Pamatsumma\",'VSAOI transakcijas'!$S:$S,\">=\"&DATE(YEAR(H2),MONTH(H2),1),'VSAOI transakcijas'!$S:$S,\"<=\"&'Sakuma lapa'!$F$16,'VSAOI transakcijas'!$O:$O,YEAR(DATE(YEAR(H2),MONTH(H2)+1,0)),'VSAOI transakcijas'!$P:$P,RIGHT(\"0\"&MONTH(DATE(YEAR(H2),MONTH(H2)+1,0)),2),'VSAOI transakcijas'!$Q:$Q,\"IIN\",'VSAOI transakcijas'!$K:$K,\"Iemaksas atbrīvošana\")\n-SUMIFS('VSAOI transakcijas'!$R:$R,'VSAOI transakcijas'!$H:$H,\"Nokavējuma nauda\",'VSAOI transakcijas'!$S:$S,\">=\"&DATE(YEAR(H2),MONTH(H2),1),'VSAOI transakcijas'!$S:$S,\"<=\"&'Sakuma lapa'!$F$16,'VSAOI transakcijas'!$O:$O,YEAR(DATE(YEAR(H2),MONTH(H2)+1,0)),'VSAOI transakcijas'!$P:$P,RIGHT(\"0\"&MONTH(DATE(YEAR(H2),MONTH(H2)+1,0)),2),'VSAOI transakcijas'!$Q:$Q,\"IIN\")","v":0},{"$f":"-SUMIFS('VSAOI transakcijas'!$R:$R,'VSAOI transakcijas'!$D:$D,\"Iemaksa\",'VSAOI transakcijas'!$H:$H,\"Pamatsumma\",'VSAOI transakcijas'!$S:$S,\">=\"&DATE(YEAR(I2),MONTH(I2),1),'VSAOI transakcijas'!$S:$S,\"<=\"&'Sakuma lapa'!$F$16,'VSAOI transakcijas'!$O:$O,YEAR(DATE(YEAR(I2),MONTH(I2)+1,0)),'VSAOI transakcijas'!$P:$P,RIGHT(\"0\"&MONTH(DATE(YEAR(I2),MONTH(I2)+1,0)),2),'VSAOI transakcijas'!$Q:$Q,\"IIN\")\n-SUMIFS('VSAOI transakcijas'!$R:$R,'VSAOI transakcijas'!$D:$D,\"Atmaksa\",'VSAOI transakcijas'!$H:$H,\"Pamatsumma\",'VSAOI transakcijas'!$S:$S,\">=\"&DATE(YEAR(I2),MONTH(I2),1),'VSAOI transakcijas'!$S:$S,\"<=\"&'Sakuma lapa'!$F$16,'VSAOI transakcijas'!$O:$O,YEAR(DATE(YEAR(I2),MONTH(I2)+1,0)),'VSAOI transakcijas'!$P:$P,RIGHT(\"0\"&MONTH(DATE(YEAR(I2),MONTH(I2)+1,0)),2),'VSAOI transakcijas'!$Q:$Q,\"IIN\")\n-SUMIFS('VSAOI transakcijas'!$R:$R,'VSAOI transakcijas'!$D:$D,\"Aprēķins\",'VSAOI transakcijas'!$H:$H,\"Pamatsumma\",'VSAOI transakcijas'!$S:$S,\">=\"&DATE(YEAR(I2),MONTH(I2),1),'VSAOI transakcijas'!$S:$S,\"<=\"&'Sakuma lapa'!$F$16,'VSAOI transakcijas'!$O:$O,YEAR(DATE(YEAR(I2),MONTH(I2)+1,0)),'VSAOI transakcijas'!$P:$P,RIGHT(\"0\"&MONTH(DATE(YEAR(I2),MONTH(I2)+1,0)),2),'VSAOI transakcijas'!$Q:$Q,\"IIN\",'VSAOI transakcijas'!$K:$K,\"FIFO*\")\n-SUMIFS('VSAOI transakcijas'!$R:$R,'VSAOI transakcijas'!$D:$D,\"Aprēķins\",'VSAOI transakcijas'!$H:$H,\"Pamatsumma\",'VSAOI transakcijas'!$S:$S,\">=\"&DATE(YEAR(I2),MONTH(I2),1),'VSAOI transakcijas'!$S:$S,\"<=\"&'Sakuma lapa'!$F$16,'VSAOI transakcijas'!$O:$O,YEAR(DATE(YEAR(I2),MONTH(I2)+1,0)),'VSAOI transakcijas'!$P:$P,RIGHT(\"0\"&MONTH(DATE(YEAR(I2),MONTH(I2)+1,0)),2),'VSAOI transakcijas'!$Q:$Q,\"IIN\",'VSAOI transakcijas'!$K:$K,\"Iemaksas atbrīvošana\")\n-SUMIFS('VSAOI transakcijas'!$R:$R,'VSAOI transakcijas'!$H:$H,\"Nokavējuma nauda\",'VSAOI transakcijas'!$S:$S,\">=\"&DATE(YEAR(I2),MONTH(I2),1),'VSAOI transakcijas'!$S:$S,\"<=\"&'Sakuma lapa'!$F$16,'VSAOI transakcijas'!$O:$O,YEAR(DATE(YEAR(I2),MONTH(I2)+1,0)),'VSAOI transakcijas'!$P:$P,RIGHT(\"0\"&MONTH(DATE(YEAR(I2),MONTH(I2)+1,0)),2),'VSAOI transakcijas'!$Q:$Q,\"IIN\")","v":0},{"$f":"-SUMIFS('VSAOI transakcijas'!$R:$R,'VSAOI transakcijas'!$D:$D,\"Iemaksa\",'VSAOI transakcijas'!$H:$H,\"Pamatsumma\",'VSAOI transakcijas'!$S:$S,\">=\"&DATE(YEAR(J2),MONTH(J2),1),'VSAOI transakcijas'!$S:$S,\"<=\"&'Sakuma lapa'!$F$16,'VSAOI transakcijas'!$O:$O,YEAR(DATE(YEAR(J2),MONTH(J2)+1,0)),'VSAOI transakcijas'!$P:$P,RIGHT(\"0\"&MONTH(DATE(YEAR(J2),MONTH(J2)+1,0)),2),'VSAOI transakcijas'!$Q:$Q,\"IIN\")\n-SUMIFS('VSAOI transakcijas'!$R:$R,'VSAOI transakcijas'!$D:$D,\"Atmaksa\",'VSAOI transakcijas'!$H:$H,\"Pamatsumma\",'VSAOI transakcijas'!$S:$S,\">=\"&DATE(YEAR(J2),MONTH(J2),1),'VSAOI transakcijas'!$S:$S,\"<=\"&'Sakuma lapa'!$F$16,'VSAOI transakcijas'!$O:$O,YEAR(DATE(YEAR(J2),MONTH(J2)+1,0)),'VSAOI transakcijas'!$P:$P,RIGHT(\"0\"&MONTH(DATE(YEAR(J2),MONTH(J2)+1,0)),2),'VSAOI transakcijas'!$Q:$Q,\"IIN\")\n-SUMIFS('VSAOI transakcijas'!$R:$R,'VSAOI transakcijas'!$D:$D,\"Aprēķins\",'VSAOI transakcijas'!$H:$H,\"Pamatsumma\",'VSAOI transakcijas'!$S:$S,\">=\"&DATE(YEAR(J2),MONTH(J2),1),'VSAOI transakcijas'!$S:$S,\"<=\"&'Sakuma lapa'!$F$16,'VSAOI transakcijas'!$O:$O,YEAR(DATE(YEAR(J2),MONTH(J2)+1,0)),'VSAOI transakcijas'!$P:$P,RIGHT(\"0\"&MONTH(DATE(YEAR(J2),MONTH(J2)+1,0)),2),'VSAOI transakcijas'!$Q:$Q,\"IIN\",'VSAOI transakcijas'!$K:$K,\"FIFO*\")\n-SUMIFS('VSAOI transakcijas'!$R:$R,'VSAOI transakcijas'!$D:$D,\"Aprēķins\",'VSAOI transakcijas'!$H:$H,\"Pamatsumma\",'VSAOI transakcijas'!$S:$S,\">=\"&DATE(YEAR(J2),MONTH(J2),1),'VSAOI transakcijas'!$S:$S,\"<=\"&'Sakuma lapa'!$F$16,'VSAOI transakcijas'!$O:$O,YEAR(DATE(YEAR(J2),MONTH(J2)+1,0)),'VSAOI transakcijas'!$P:$P,RIGHT(\"0\"&MONTH(DATE(YEAR(J2),MONTH(J2)+1,0)),2),'VSAOI transakcijas'!$Q:$Q,\"IIN\",'VSAOI transakcijas'!$K:$K,\"Iemaksas atbrīvošana\")\n-SUMIFS('VSAOI transakcijas'!$R:$R,'VSAOI transakcijas'!$H:$H,\"Nokavējuma nauda\",'VSAOI transakcijas'!$S:$S,\">=\"&DATE(YEAR(J2),MONTH(J2),1),'VSAOI transakcijas'!$S:$S,\"<=\"&'Sakuma lapa'!$F$16,'VSAOI transakcijas'!$O:$O,YEAR(DATE(YEAR(J2),MONTH(J2)+1,0)),'VSAOI transakcijas'!$P:$P,RIGHT(\"0\"&MONTH(DATE(YEAR(J2),MONTH(J2)+1,0)),2),'VSAOI transakcijas'!$Q:$Q,\"IIN\")","v":0},{"$f":"-SUMIFS('VSAOI transakcijas'!$R:$R,'VSAOI transakcijas'!$D:$D,\"Iemaksa\",'VSAOI transakcijas'!$H:$H,\"Pamatsumma\",'VSAOI transakcijas'!$S:$S,\">=\"&DATE(YEAR(K2),MONTH(K2),1),'VSAOI transakcijas'!$S:$S,\"<=\"&'Sakuma lapa'!$F$16,'VSAOI transakcijas'!$O:$O,YEAR(DATE(YEAR(K2),MONTH(K2)+1,0)),'VSAOI transakcijas'!$P:$P,RIGHT(\"0\"&MONTH(DATE(YEAR(K2),MONTH(K2)+1,0)),2),'VSAOI transakcijas'!$Q:$Q,\"IIN\")\n-SUMIFS('VSAOI transakcijas'!$R:$R,'VSAOI transakcijas'!$D:$D,\"Atmaksa\",'VSAOI transakcijas'!$H:$H,\"Pamatsumma\",'VSAOI transakcijas'!$S:$S,\">=\"&DATE(YEAR(K2),MONTH(K2),1),'VSAOI transakcijas'!$S:$S,\"<=\"&'Sakuma lapa'!$F$16,'VSAOI transakcijas'!$O:$O,YEAR(DATE(YEAR(K2),MONTH(K2)+1,0)),'VSAOI transakcijas'!$P:$P,RIGHT(\"0\"&MONTH(DATE(YEAR(K2),MONTH(K2)+1,0)),2),'VSAOI transakcijas'!$Q:$Q,\"IIN\")\n-SUMIFS('VSAOI transakcijas'!$R:$R,'VSAOI transakcijas'!$D:$D,\"Aprēķins\",'VSAOI transakcijas'!$H:$H,\"Pamatsumma\",'VSAOI transakcijas'!$S:$S,\">=\"&DATE(YEAR(K2),MONTH(K2),1),'VSAOI transakcijas'!$S:$S,\"<=\"&'Sakuma lapa'!$F$16,'VSAOI transakcijas'!$O:$O,YEAR(DATE(YEAR(K2),MONTH(K2)+1,0)),'VSAOI transakcijas'!$P:$P,RIGHT(\"0\"&MONTH(DATE(YEAR(K2),MONTH(K2)+1,0)),2),'VSAOI transakcijas'!$Q:$Q,\"IIN\",'VSAOI transakcijas'!$K:$K,\"FIFO*\")\n-SUMIFS('VSAOI transakcijas'!$R:$R,'VSAOI transakcijas'!$D:$D,\"Aprēķins\",'VSAOI transakcijas'!$H:$H,\"Pamatsumma\",'VSAOI transakcijas'!$S:$S,\">=\"&DATE(YEAR(K2),MONTH(K2),1),'VSAOI transakcijas'!$S:$S,\"<=\"&'Sakuma lapa'!$F$16,'VSAOI transakcijas'!$O:$O,YEAR(DATE(YEAR(K2),MONTH(K2)+1,0)),'VSAOI transakcijas'!$P:$P,RIGHT(\"0\"&MONTH(DATE(YEAR(K2),MONTH(K2)+1,0)),2),'VSAOI transakcijas'!$Q:$Q,\"IIN\",'VSAOI transakcijas'!$K:$K,\"Iemaksas atbrīvošana\")\n-SUMIFS('VSAOI transakcijas'!$R:$R,'VSAOI transakcijas'!$H:$H,\"Nokavējuma nauda\",'VSAOI transakcijas'!$S:$S,\">=\"&DATE(YEAR(K2),MONTH(K2),1),'VSAOI transakcijas'!$S:$S,\"<=\"&'Sakuma lapa'!$F$16,'VSAOI transakcijas'!$O:$O,YEAR(DATE(YEAR(K2),MONTH(K2)+1,0)),'VSAOI transakcijas'!$P:$P,RIGHT(\"0\"&MONTH(DATE(YEAR(K2),MONTH(K2)+1,0)),2),'VSAOI transakcijas'!$Q:$Q,\"IIN\")","v":0},{"$f":"-SUMIFS('VSAOI transakcijas'!$R:$R,'VSAOI transakcijas'!$D:$D,\"Iemaksa\",'VSAOI transakcijas'!$H:$H,\"Pamatsumma\",'VSAOI transakcijas'!$S:$S,\">=\"&DATE(YEAR(L2),MONTH(L2),1),'VSAOI transakcijas'!$S:$S,\"<=\"&'Sakuma lapa'!$F$16,'VSAOI transakcijas'!$O:$O,YEAR(DATE(YEAR(L2),MONTH(L2)+1,0)),'VSAOI transakcijas'!$P:$P,RIGHT(\"0\"&MONTH(DATE(YEAR(L2),MONTH(L2)+1,0)),2),'VSAOI transakcijas'!$Q:$Q,\"IIN\")\n-SUMIFS('VSAOI transakcijas'!$R:$R,'VSAOI transakcijas'!$D:$D,\"Atmaksa\",'VSAOI transakcijas'!$H:$H,\"Pamatsumma\",'VSAOI transakcijas'!$S:$S,\">=\"&DATE(YEAR(L2),MONTH(L2),1),'VSAOI transakcijas'!$S:$S,\"<=\"&'Sakuma lapa'!$F$16,'VSAOI transakcijas'!$O:$O,YEAR(DATE(YEAR(L2),MONTH(L2)+1,0)),'VSAOI transakcijas'!$P:$P,RIGHT(\"0\"&MONTH(DATE(YEAR(L2),MONTH(L2)+1,0)),2),'VSAOI transakcijas'!$Q:$Q,\"IIN\")\n-SUMIFS('VSAOI transakcijas'!$R:$R,'VSAOI transakcijas'!$D:$D,\"Aprēķins\",'VSAOI transakcijas'!$H:$H,\"Pamatsumma\",'VSAOI transakcijas'!$S:$S,\">=\"&DATE(YEAR(L2),MONTH(L2),1),'VSAOI transakcijas'!$S:$S,\"<=\"&'Sakuma lapa'!$F$16,'VSAOI transakcijas'!$O:$O,YEAR(DATE(YEAR(L2),MONTH(L2)+1,0)),'VSAOI transakcijas'!$P:$P,RIGHT(\"0\"&MONTH(DATE(YEAR(L2),MONTH(L2)+1,0)),2),'VSAOI transakcijas'!$Q:$Q,\"IIN\",'VSAOI transakcijas'!$K:$K,\"FIFO*\")\n-SUMIFS('VSAOI transakcijas'!$R:$R,'VSAOI transakcijas'!$D:$D,\"Aprēķins\",'VSAOI transakcijas'!$H:$H,\"Pamatsumma\",'VSAOI transakcijas'!$S:$S,\">=\"&DATE(YEAR(L2),MONTH(L2),1),'VSAOI transakcijas'!$S:$S,\"<=\"&'Sakuma lapa'!$F$16,'VSAOI transakcijas'!$O:$O,YEAR(DATE(YEAR(L2),MONTH(L2)+1,0)),'VSAOI transakcijas'!$P:$P,RIGHT(\"0\"&MONTH(DATE(YEAR(L2),MONTH(L2)+1,0)),2),'VSAOI transakcijas'!$Q:$Q,\"IIN\",'VSAOI transakcijas'!$K:$K,\"Iemaksas atbrīvošana\")\n-SUMIFS('VSAOI transakcijas'!$R:$R,'VSAOI transakcijas'!$H:$H,\"Nokavējuma nauda\",'VSAOI transakcijas'!$S:$S,\">=\"&DATE(YEAR(L2),MONTH(L2),1),'VSAOI transakcijas'!$S:$S,\"<=\"&'Sakuma lapa'!$F$16,'VSAOI transakcijas'!$O:$O,YEAR(DATE(YEAR(L2),MONTH(L2)+1,0)),'VSAOI transakcijas'!$P:$P,RIGHT(\"0\"&MONTH(DATE(YEAR(L2),MONTH(L2)+1,0)),2),'VSAOI transakcijas'!$Q:$Q,\"IIN\")","v":0},{"$f":"-SUMIFS('VSAOI transakcijas'!$R:$R,'VSAOI transakcijas'!$D:$D,\"Iemaksa\",'VSAOI transakcijas'!$H:$H,\"Pamatsumma\",'VSAOI transakcijas'!$S:$S,\">=\"&DATE(YEAR(M2),MONTH(M2),1),'VSAOI transakcijas'!$S:$S,\"<=\"&'Sakuma lapa'!$F$16,'VSAOI transakcijas'!$O:$O,YEAR(DATE(YEAR(M2),MONTH(M2)+1,0)),'VSAOI transakcijas'!$P:$P,RIGHT(\"0\"&MONTH(DATE(YEAR(M2),MONTH(M2)+1,0)),2),'VSAOI transakcijas'!$Q:$Q,\"IIN\")\n-SUMIFS('VSAOI transakcijas'!$R:$R,'VSAOI transakcijas'!$D:$D,\"Atmaksa\",'VSAOI transakcijas'!$H:$H,\"Pamatsumma\",'VSAOI transakcijas'!$S:$S,\">=\"&DATE(YEAR(M2),MONTH(M2),1),'VSAOI transakcijas'!$S:$S,\"<=\"&'Sakuma lapa'!$F$16,'VSAOI transakcijas'!$O:$O,YEAR(DATE(YEAR(M2),MONTH(M2)+1,0)),'VSAOI transakcijas'!$P:$P,RIGHT(\"0\"&MONTH(DATE(YEAR(M2),MONTH(M2)+1,0)),2),'VSAOI transakcijas'!$Q:$Q,\"IIN\")\n-SUMIFS('VSAOI transakcijas'!$R:$R,'VSAOI transakcijas'!$D:$D,\"Aprēķins\",'VSAOI transakcijas'!$H:$H,\"Pamatsumma\",'VSAOI transakcijas'!$S:$S,\">=\"&DATE(YEAR(M2),MONTH(M2),1),'VSAOI transakcijas'!$S:$S,\"<=\"&'Sakuma lapa'!$F$16,'VSAOI transakcijas'!$O:$O,YEAR(DATE(YEAR(M2),MONTH(M2)+1,0)),'VSAOI transakcijas'!$P:$P,RIGHT(\"0\"&MONTH(DATE(YEAR(M2),MONTH(M2)+1,0)),2),'VSAOI transakcijas'!$Q:$Q,\"IIN\",'VSAOI transakcijas'!$K:$K,\"FIFO*\")\n-SUMIFS('VSAOI transakcijas'!$R:$R,'VSAOI transakcijas'!$D:$D,\"Aprēķins\",'VSAOI transakcijas'!$H:$H,\"Pamatsumma\",'VSAOI transakcijas'!$S:$S,\">=\"&DATE(YEAR(M2),MONTH(M2),1),'VSAOI transakcijas'!$S:$S,\"<=\"&'Sakuma lapa'!$F$16,'VSAOI transakcijas'!$O:$O,YEAR(DATE(YEAR(M2),MONTH(M2)+1,0)),'VSAOI transakcijas'!$P:$P,RIGHT(\"0\"&MONTH(DATE(YEAR(M2),MONTH(M2)+1,0)),2),'VSAOI transakcijas'!$Q:$Q,\"IIN\",'VSAOI transakcijas'!$K:$K,\"Iemaksas atbrīvošana\")\n-SUMIFS('VSAOI transakcijas'!$R:$R,'VSAOI transakcijas'!$H:$H,\"Nokavējuma nauda\",'VSAOI transakcijas'!$S:$S,\">=\"&DATE(YEAR(M2),MONTH(M2),1),'VSAOI transakcijas'!$S:$S,\"<=\"&'Sakuma lapa'!$F$16,'VSAOI transakcijas'!$O:$O,YEAR(DATE(YEAR(M2),MONTH(M2)+1,0)),'VSAOI transakcijas'!$P:$P,RIGHT(\"0\"&MONTH(DATE(YEAR(M2),MONTH(M2)+1,0)),2),'VSAOI transakcijas'!$Q:$Q,\"IIN\")","v":0},{"$f":"-SUMIFS('VSAOI transakcijas'!$R:$R,'VSAOI transakcijas'!$D:$D,\"Iemaksa\",'VSAOI transakcijas'!$H:$H,\"Pamatsumma\",'VSAOI transakcijas'!$S:$S,\">=\"&DATE(YEAR(N2),MONTH(N2),1),'VSAOI transakcijas'!$S:$S,\"<=\"&'Sakuma lapa'!$F$16,'VSAOI transakcijas'!$O:$O,YEAR(DATE(YEAR(N2),MONTH(N2)+1,0)),'VSAOI transakcijas'!$P:$P,RIGHT(\"0\"&MONTH(DATE(YEAR(N2),MONTH(N2)+1,0)),2),'VSAOI transakcijas'!$Q:$Q,\"IIN\")\n-SUMIFS('VSAOI transakcijas'!$R:$R,'VSAOI transakcijas'!$D:$D,\"Atmaksa\",'VSAOI transakcijas'!$H:$H,\"Pamatsumma\",'VSAOI transakcijas'!$S:$S,\">=\"&DATE(YEAR(N2),MONTH(N2),1),'VSAOI transakcijas'!$S:$S,\"<=\"&'Sakuma lapa'!$F$16,'VSAOI transakcijas'!$O:$O,YEAR(DATE(YEAR(N2),MONTH(N2)+1,0)),'VSAOI transakcijas'!$P:$P,RIGHT(\"0\"&MONTH(DATE(YEAR(N2),MONTH(N2)+1,0)),2),'VSAOI transakcijas'!$Q:$Q,\"IIN\")\n-SUMIFS('VSAOI transakcijas'!$R:$R,'VSAOI transakcijas'!$D:$D,\"Aprēķins\",'VSAOI transakcijas'!$H:$H,\"Pamatsumma\",'VSAOI transakcijas'!$S:$S,\">=\"&DATE(YEAR(N2),MONTH(N2),1),'VSAOI transakcijas'!$S:$S,\"<=\"&'Sakuma lapa'!$F$16,'VSAOI transakcijas'!$O:$O,YEAR(DATE(YEAR(N2),MONTH(N2)+1,0)),'VSAOI transakcijas'!$P:$P,RIGHT(\"0\"&MONTH(DATE(YEAR(N2),MONTH(N2)+1,0)),2),'VSAOI transakcijas'!$Q:$Q,\"IIN\",'VSAOI transakcijas'!$K:$K,\"FIFO*\")\n-SUMIFS('VSAOI transakcijas'!$R:$R,'VSAOI transakcijas'!$D:$D,\"Aprēķins\",'VSAOI transakcijas'!$H:$H,\"Pamatsumma\",'VSAOI transakcijas'!$S:$S,\">=\"&DATE(YEAR(N2),MONTH(N2),1),'VSAOI transakcijas'!$S:$S,\"<=\"&'Sakuma lapa'!$F$16,'VSAOI transakcijas'!$O:$O,YEAR(DATE(YEAR(N2),MONTH(N2)+1,0)),'VSAOI transakcijas'!$P:$P,RIGHT(\"0\"&MONTH(DATE(YEAR(N2),MONTH(N2)+1,0)),2),'VSAOI transakcijas'!$Q:$Q,\"IIN\",'VSAOI transakcijas'!$K:$K,\"Iemaksas atbrīvošana\")\n-SUMIFS('VSAOI transakcijas'!$R:$R,'VSAOI transakcijas'!$H:$H,\"Nokavējuma nauda\",'VSAOI transakcijas'!$S:$S,\">=\"&DATE(YEAR(N2),MONTH(N2),1),'VSAOI transakcijas'!$S:$S,\"<=\"&'Sakuma lapa'!$F$16,'VSAOI transakcijas'!$O:$O,YEAR(DATE(YEAR(N2),MONTH(N2)+1,0)),'VSAOI transakcijas'!$P:$P,RIGHT(\"0\"&MONTH(DATE(YEAR(N2),MONTH(N2)+1,0)),2),'VSAOI transakcijas'!$Q:$Q,\"IIN\")","v":0},{"$f":"SUM(C49:N49)","v":0}]
[null,"VG  beigu atlikums"]
[null,"VG beigu atlikuma starpība",{"$f":"IF(C50=\"\",\"-\",C50-D46)","v":"-"},"-","-","-","-","-","-","-","-","-","-","-"]
[null,"Starpība starp deklarācijām un TransParsk",{"$f":"C12-C47","v":0},0,0,0,0,0,0,0,0,0,0,0,{"$f":"SUM(C52:N52)","v":0}]
[]
[null,"RN - VG sakuma atlikums",null,{"$f":"SUM(C54:C57)","v":0},{"$f":"SUM(D54:D57)","v":0},0,0,0,0,0,0,0,0,0,{"$f":"SUM(N54:N57)","v":0}]
[null,"Aprēķins - Deklarācijas",{"$f":"-SUMIFS('VSAOI transakcijas'!$R:$R,'VSAOI transakcijas'!$D:$D,\"Aprēķins\",'VSAOI transakcijas'!$H:$H,\"Pamatsumma\",'VSAOI transakcijas'!$S:$S,\">=\"&DATE(YEAR(C2),MONTH(C2),1),'VSAOI transakcijas'!$S:$S,\"<=\"&'Sakuma lapa'!$F$16,'VSAOI transakcijas'!$O:$O,YEAR(DATE(YEAR(C2),MONTH(C2)+2,0)),'VSAOI transakcijas'!$P:$P,RIGHT(\"0\"&MONTH(DATE(YEAR(C2),MONTH(C2)+2,0)),2),'VSAOI transakcijas'!$Q:$Q,\"Riska nodeva\",'VSAOI transakcijas'!$K:$K,\"<>\"&\"FIFO*\",'VSAOI transakcijas'!$K:$K,\"<>\"&\"Iemaksas atbrīvošana\",'VSAOI transakcijas'!$E:$E,\"Deklarācija/pārskats\")","v":0},{"$f":"-SUMIFS('VSAOI transakcijas'!$R:$R,'VSAOI transakcijas'!$D:$D,\"Aprēķins\",'VSAOI transakcijas'!$H:$H,\"Pamatsumma\",'VSAOI transakcijas'!$S:$S,\">=\"&DATE(YEAR(D2),MONTH(D2),1),'VSAOI transakcijas'!$S:$S,\"<=\"&'Sakuma lapa'!$F$16,'VSAOI transakcijas'!$O:$O,YEAR(DATE(YEAR(D2),MONTH(D2)+2,0)),'VSAOI transakcijas'!$P:$P,RIGHT(\"0\"&MONTH(DATE(YEAR(D2),MONTH(D2)+2,0)),2),'VSAOI transakcijas'!$Q:$Q,\"Riska nodeva\",'VSAOI transakcijas'!$K:$K,\"<>\"&\"FIFO*\",'VSAOI transakcijas'!$K:$K,\"<>\"&\"Iemaksas atbrīvošana\",'VSAOI transakcijas'!$E:$E,\"Deklarācija/pārskats\")","v":0},{"$f":"-SUMIFS('VSAOI transakcijas'!$R:$R,'VSAOI transakcijas'!$D:$D,\"Aprēķins\",'VSAOI transakcijas'!$H:$H,\"Pamatsumma\",'VSAOI transakcijas'!$S:$S,\">=\"&DATE(YEAR(E2),MONTH(E2),1),'VSAOI transakcijas'!$S:$S,\"<=\"&'Sakuma lapa'!$F$16,'VSAOI transakcijas'!$O:$O,YEAR(DATE(YEAR(E2),MONTH(E2)+2,0)),'VSAOI transakcijas'!$P:$P,RIGHT(\"0\"&MONTH(DATE(YEAR(E2),MONTH(E2)+2,0)),2),'VSAOI transakcijas'!$Q:$Q,\"Riska nodeva\",'VSAOI transakcijas'!$K:$K,\"<>\"&\"FIFO*\",'VSAOI transakcijas'!$K:$K,\"<>\"&\"Iemaksas atbrīvošana\",'VSAOI transakcijas'!$E:$E,\"Deklarācija/pārskats\")","v":0},{"$f":"-SUMIFS('VSAOI transakcijas'!$R:$R,'VSAOI transakcijas'!$D:$D,\"Aprēķins\",'VSAOI transakcijas'!$H:$H,\"Pamatsumma\",'VSAOI transakcijas'!$S:$S,\">=\"&DATE(YEAR(F2),MONTH(F2),1),'VSAOI transakcijas'!$S:$S,\"<=\"&'Sakuma lapa'!$F$16,'VSAOI transakcijas'!$O:$O,YEAR(DATE(YEAR(F2),MONTH(F2)+2,0)),'VSAOI transakcijas'!$P:$P,RIGHT(\"0\"&MONTH(DATE(YEAR(F2),MONTH(F2)+2,0)),2),'VSAOI transakcijas'!$Q:$Q,\"Riska nodeva\",'VSAOI transakcijas'!$K:$K,\"<>\"&\"FIFO*\",'VSAOI transakcijas'!$K:$K,\"<>\"&\"Iemaksas atbrīvošana\",'VSAOI transakcijas'!$E:$E,\"Deklarācija/pārskats\")","v":0},{"$f":"-SUMIFS('VSAOI transakcijas'!$R:$R,'VSAOI transakcijas'!$D:$D,\"Aprēķins\",'VSAOI transakcijas'!$H:$H,\"Pamatsumma\",'VSAOI transakcijas'!$S:$S,\">=\"&DATE(YEAR(G2),MONTH(G2),1),'VSAOI transakcijas'!$S:$S,\"<=\"&'Sakuma lapa'!$F$16,'VSAOI transakcijas'!$O:$O,YEAR(DATE(YEAR(G2),MONTH(G2)+2,0)),'VSAOI transakcijas'!$P:$P,RIGHT(\"0\"&MONTH(DATE(YEAR(G2),MONTH(G2)+2,0)),2),'VSAOI transakcijas'!$Q:$Q,\"Riska nodeva\",'VSAOI transakcijas'!$K:$K,\"<>\"&\"FIFO*\",'VSAOI transakcijas'!$K:$K,\"<>\"&\"Iemaksas atbrīvošana\",'VSAOI transakcijas'!$E:$E,\"Deklarācija/pārskats\")","v":0},{"$f":"-SUMIFS('VSAOI transakcijas'!$R:$R,'VSAOI transakcijas'!$D:$D,\"Aprēķins\",'VSAOI transakcijas'!$H:$H,\"Pamatsumma\",'VSAOI transakcijas'!$S:$S,\">=\"&DATE(YEAR(H2),MONTH(H2),1),'VSAOI transakcijas'!$S:$S,\"<=\"&'Sakuma lapa'!$F$16,'VSAOI transakcijas'!$O:$O,YEAR(DATE(YEAR(H2),MONTH(H2)+2,0)),'VSAOI transakcijas'!$P:$P,RIGHT(\"0\"&MONTH(DATE(YEAR(H2),MONTH(H2)+2,0)),2),'VSAOI transakcijas'!$Q:$Q,\"Riska nodeva\",'VSAOI transakcijas'!$K:$K,\"<>\"&\"FIFO*\",'VSAOI transakcijas'!$K:$K,\"<>\"&\"Iemaksas atbrīvošana\",'VSAOI transakcijas'!$E:$E,\"Deklarācija/pārskats\")","v":0},{"$f":"-SUMIFS('VSAOI transakcijas'!$R:$R,'VSAOI transakcijas'!$D:$D,\"Aprēķins\",'VSAOI transakcijas'!$H:$H,\"Pamatsumma\",'VSAOI transakcijas'!$S:$S,\">=\"&DATE(YEAR(I2),MONTH(I2),1),'VSAOI transakcijas'!$S:$S,\"<=\"&'Sakuma lapa'!$F$16,'VSAOI transakcijas'!$O:$O,YEAR(DATE(YEAR(I2),MONTH(I2)+2,0)),'VSAOI transakcijas'!$P:$P,RIGHT(\"0\"&MONTH(DATE(YEAR(I2),MONTH(I2)+2,0)),2),'VSAOI transakcijas'!$Q:$Q,\"Riska nodeva\",'VSAOI transakcijas'!$K:$K,\"<>\"&\"FIFO*\",'VSAOI transakcijas'!$K:$K,\"<>\"&\"Iemaksas atbrīvošana\",'VSAOI transakcijas'!$E:$E,\"Deklarācija/pārskats\")","v":0},{"$f":"-SUMIFS('VSAOI transakcijas'!$R:$R,'VSAOI transakcijas'!$D:$D,\"Aprēķins\",'VSAOI transakcijas'!$H:$H,\"Pamatsumma\",'VSAOI transakcijas'!$S:$S,\">=\"&DATE(YEAR(J2),MONTH(J2),1),'VSAOI transakcijas'!$S:$S,\"<=\"&'Sakuma lapa'!$F$16,'VSAOI transakcijas'!$O:$O,YEAR(DATE(YEAR(J2),MONTH(J2)+2,0)),'VSAOI transakcijas'!$P:$P,RIGHT(\"0\"&MONTH(DATE(YEAR(J2),MONTH(J2)+2,0)),2),'VSAOI transakcijas'!$Q:$Q,\"Riska nodeva\",'VSAOI transakcijas'!$K:$K,\"<>\"&\"FIFO*\",'VSAOI transakcijas'!$K:$K,\"<>\"&\"Iemaksas atbrīvošana\",'VSAOI transakcijas'!$E:$E,\"Deklarācija/pārskats\")","v":0},{"$f":"-SUMIFS('VSAOI transakcijas'!$R:$R,'VSAOI transakcijas'!$D:$D,\"Aprēķins\",'VSAOI transakcijas'!$H:$H,\"Pamatsumma\",'VSAOI transakcijas'!$S:$S,\">=\"&DATE(YEAR(K2),MONTH(K2),1),'VSAOI transakcijas'!$S:$S,\"<=\"&'Sakuma lapa'!$F$16,'VSAOI transakcijas'!$O:$O,YEAR(DATE(YEAR(K2),MONTH(K2)+2,0)),'VSAOI transakcijas'!$P:$P,RIGHT(\"0\"&MONTH(DATE(YEAR(K2),MONTH(K2)+2,0)),2),'VSAOI transakcijas'!$Q:$Q,\"Riska nodeva\",'VSAOI transakcijas'!$K:$K,\"<>\"&\"FIFO*\",'VSAOI transakcijas'!$K:$K,\"<>\"&\"Iemaksas atbrīvošana\",'VSAOI transakcijas'!$E:$E,\"Deklarācija/pārskats\")","v":0},{"$f":"-SUMIFS('VSAOI transakcijas'!$R:$R,'VSAOI transakcijas'!$D:$D,\"Aprēķins\",'VSAOI transakcijas'!$H:$H,\"Pamatsumma\",'VSAOI transakcijas'!$S:$S,\">=\"&DATE(YEAR(L2),MONTH(L2),1),'VSAOI transakcijas'!$S:$S,\"<=\"&'Sakuma lapa'!$F$16,'VSAOI transakcijas'!$O:$O,YEAR(DATE(YEAR(L2),MONTH(L2)+2,0)),'VSAOI transakcijas'!$P:$P,RIGHT(\"0\"&MONTH(DATE(YEAR(L2),MONTH(L2)+2,0)),2),'VSAOI transakcijas'!$Q:$Q,\"Riska nodeva\",'VSAOI transakcijas'!$K:$K,\"<>\"&\"FIFO*\",'VSAOI transakcijas'!$K:$K,\"<>\"&\"Iemaksas atbrīvošana\",'VSAOI transakcijas'!$E:$E,\"Deklarācija/pārskats\")","v":0},{"$f":"-SUMIFS('VSAOI transakcijas'!$R:$R,'VSAOI transakcijas'!$D:$D,\"Aprēķins\",'VSAOI transakcijas'!$H:$H,\"Pamatsumma\",'VSAOI transakcijas'!$S:$S,\">=\"&DATE(YEAR(M2),MONTH(M2),1),'VSAOI transakcijas'!$S:$S,\"<=\"&'Sakuma lapa'!$F$16,'VSAOI transakcijas'!$O:$O,YEAR(DATE(YEAR(M2),MONTH(M2)+2,0)),'VSAOI transakcijas'!$P:$P,RIGHT(\"0\"&MONTH(DATE(YEAR(M2),MONTH(M2)+2,0)),2),'VSAOI transakcijas'!$Q:$Q,\"Riska nodeva\",'VSAOI transakcijas'!$K:$K,\"<>\"&\"FIFO*\",'VSAOI transakcijas'!$K:$K,\"<>\"&\"Iemaksas atbrīvošana\",'VSAOI transakcijas'!$E:$E,\"Deklarācija/pārskats\")","v":0},{"$f":"-SUMIFS('VSAOI transakcijas'!$R:$R,'VSAOI transakcijas'!$D:$D,\"Aprēķins\",'VSAOI transakcijas'!$H:$H,\"Pamatsumma\",'VSAOI transakcijas'!$S:$S,\">=\"&DATE(YEAR(N2),MONTH(N2),1),'VSAOI transakcijas'!$S:$S,\"<=\"&'Sakuma lapa'!$F$16,'VSAOI transakcijas'!$O:$O,YEAR(DATE(YEAR(N2),MONTH(N2)+2,0)),'VSAOI transakcijas'!$P:$P,RIGHT(\"0\"&MONTH(DATE(YEAR(N2),MONTH(N2)+2,0)),2),'VSAOI transakcijas'!$Q:$Q,\"Riska nodeva\",'VSAOI transakcijas'!$K:$K,\"<>\"&\"FIFO*\",'VSAOI transakcijas'!$K:$K,\"<>\"&\"Iemaksas atbrīvošana\",'VSAOI transakcijas'!$E:$E,\"Deklarācija/pārskats\")","v":0},{"$f":"SUM(C55:N55)","v":0}]
[null,"Aprēķins - Citi",{"$f":"-SUMIFS('VSAOI transakcijas'!$R:$R,'VSAOI transakcijas'!$D:$D,\"Aprēķins\",'VSAOI transakcijas'!$H:$H,\"Pamatsumma\",'VSAOI transakcijas'!$S:$S,\">=\"&DATE(YEAR(C2),MONTH(C2),1),'VSAOI transakcijas'!$S:$S,\"<=\"&'Sakuma lapa'!$F$16,'VSAOI transakcijas'!$O:$O,YEAR(DATE(YEAR(C2),MONTH(C2)+2,0)),'VSAOI transakcijas'!$P:$P,RIGHT(\"0\"&MONTH(DATE(YEAR(C2),MONTH(C2)+2,0)),2),'VSAOI transakcijas'!$Q:$Q,\"Riska nodeva\",'VSAOI transakcijas'!$K:$K,\"<>\"&\"FIFO*\",'VSAOI transakcijas'!$K:$K,\"<>\"&\"Iemaksas atbrīvošana\",'VSAOI transakcijas'!$E:$E,\"<>\"&\"Deklarācija/pārskats\")","v":0},{"$f":"-SUMIFS('VSAOI transakcijas'!$R:$R,'VSAOI transakcijas'!$D:$D,\"Aprēķins\",'VSAOI transakcijas'!$H:$H,\"Pamatsumma\",'VSAOI transakcijas'!$S:$S,\">=\"&DATE(YEAR(D2),MONTH(D2),1),'VSAOI transakcijas'!$S:$S,\"<=\"&'Sakuma lapa'!$F$16,'VSAOI transakcijas'!$O:$O,YEAR(DATE(YEAR(D2),MONTH(D2)+2,0)),'VSAOI transakcijas'!$P:$P,RIGHT(\"0\"&MONTH(DATE(YEAR(D2),MONTH(D2)+2,0)),2),'VSAOI transakcijas'!$Q:$Q,\"Riska nodeva\",'VSAOI transakcijas'!$K:$K,\"<>\"&\"FIFO*\",'VSAOI transakcijas'!$K:$K,\"<>\"&\"Iemaksas atbrīvošana\",'VSAOI transakcijas'!$E:$E,\"<>\"&\"Deklarācija/pārskats\")","v":0},{"$f":"-SUMIFS('VSAOI transakcijas'!$R:$R,'VSAOI transakcijas'!$D:$D,\"Aprēķins\",'VSAOI transakcijas'!$H:$H,\"Pamatsumma\",'VSAOI transakcijas'!$S:$S,\">=\"&DATE(YEAR(E2),MONTH(E2),1),'VSAOI transakcijas'!$S:$S,\"<=\"&'Sakuma lapa'!$F$16,'VSAOI transakcijas'!$O:$O,YEAR(DATE(YEAR(E2),MONTH(E2)+2,0)),'VSAOI transakcijas'!$P:$P,RIGHT(\"0\"&MONTH(DATE(YEAR(E2),MONTH(E2)+2,0)),2),'VSAOI transakcijas'!$Q:$Q,\"Riska nodeva\",'VSAOI transakcijas'!$K:$K,\"<>\"&\"FIFO*\",'VSAOI transakcijas'!$K:$K,\"<>\"&\"Iemaksas atbrīvošana\",'VSAOI transakcijas'!$E:$E,\"<>\"&\"Deklarācija/pārskats\")","v":0},{"$f":"-SUMIFS('VSAOI transakcijas'!$R:$R,'VSAOI transakcijas'!$D:$D,\"Aprēķins\",'VSAOI transakcijas'!$H:$H,\"Pamatsumma\",'VSAOI transakcijas'!$S:$S,\">=\"&DATE(YEAR(F2),MONTH(F2),1),'VSAOI transakcijas'!$S:$S,\"<=\"&'Sakuma lapa'!$F$16,'VSAOI transakcijas'!$O:$O,YEAR(DATE(YEAR(F2),MONTH(F2)+2,0)),'VSAOI transakcijas'!$P:$P,RIGHT(\"0\"&MONTH(DATE(YEAR(F2),MONTH(F2)+2,0)),2),'VSAOI transakcijas'!$Q:$Q,\"Riska nodeva\",'VSAOI transakcijas'!$K:$K,\"<>\"&\"FIFO*\",'VSAOI transakcijas'!$K:$K,\"<>\"&\"Iemaksas atbrīvošana\",'VSAOI transakcijas'!$E:$E,\"<>\"&\"Deklarācija/pārskats\")","v":0},{"$f":"-SUMIFS('VSAOI transakcijas'!$R:$R,'VSAOI transakcijas'!$D:$D,\"Aprēķins\",'VSAOI transakcijas'!$H:$H,\"Pamatsumma\",'VSAOI transakcijas'!$S:$S,\">=\"&DATE(YEAR(G2),MONTH(G2),1),'VSAOI transakcijas'!$S:$S,\"<=\"&'Sakuma lapa'!$F$16,'VSAOI transakcijas'!$O:$O,YEAR(DATE(YEAR(G2),MONTH(G2)+2,0)),'VSAOI transakcijas'!$P:$P,RIGHT(\"0\"&MONTH(DATE(YEAR(G2),MONTH(G2)+2,0)),2),'VSAOI transakcijas'!$Q:$Q,\"Riska nodeva\",'VSAOI transakcijas'!$K:$K,\"<>\"&\"FIFO*\",'VSAOI transakcijas'!$K:$K,\"<>\"&\"Iemaksas atbrīvošana\",'VSAOI transakcijas'!$E:$E,\"<>\"&\"Deklarācija/pārskats\")","v":0},{"$f":"-SUMIFS('VSAOI transakcijas'!$R:$R,'VSAOI transakcijas'!$D:$D,\"Aprēķins\",'VSAOI transakcijas'!$H:$H,\"Pamatsumma\",'VSAOI transakcijas'!$S:$S,\">=\"&DATE(YEAR(H2),MONTH(H2),1),'VSAOI transakcijas'!$S:$S,\"<=\"&'Sakuma lapa'!$F$16,'VSAOI transakcijas'!$O:$O,YEAR(DATE(YEAR(H2),MONTH(H2)+2,0)),'VSAOI transakcijas'!$P:$P,RIGHT(\"0\"&MONTH(DATE(YEAR(H2),MONTH(H2)+2,0)),2),'VSAOI transakcijas'!$Q:$Q,\"Riska nodeva\",'VSAOI transakcijas'!$K:$K,\"<>\"&\"FIFO*\",'VSAOI transakcijas'!$K:$K,\"<>\"&\"Iemaksas atbrīvošana\",'VSAOI transakcijas'!$E:$E,\"<>\"&\"Deklarācija/pārskats\")","v":0},{"$f":"-SUMIFS('VSAOI transakcijas'!$R:$R,'VSAOI transakcijas'!$D:$D,\"Aprēķins\",'VSAOI transakcijas'!$H:$H,\"Pamatsumma\",'VSAOI transakcijas'!$S:$S,\">=\"&DATE(YEAR(I2),MONTH(I2),1),'VSAOI transakcijas'!$S:$S,\"<=\"&'Sakuma lapa'!$F$16,'VSAOI transakcijas'!$O:$O,YEAR(DATE(YEAR(I2),MONTH(I2)+2,0)),'VSAOI transakcijas'!$P:$P,RIGHT(\"0\"&MONTH(DATE(YEAR(I2),MONTH(I2)+2,0)),2),'VSAOI transakcijas'!$Q:$Q,\"Riska nodeva\",'VSAOI transakcijas'!$K:$K,\"<>\"&\"FIFO*\",'VSAOI transakcijas'!$K:$K,\"<>\"&\"Iemaksas atbrīvošana\",'VSAOI transakcijas'!$E:$E,\"<>\"&\"Deklarācija/pārskats\")","v":0},{"$f":"-SUMIFS('VSAOI transakcijas'!$R:$R,'VSAOI transakcijas'!$D:$D,\"Aprēķins\",'VSAOI transakcijas'!$H:$H,\"Pamatsumma\",'VSAOI transakcijas'!$S:$S,\">=\"&DATE(YEAR(J2),MONTH(J2),1),'VSAOI transakcijas'!$S:$S,\"<=\"&'Sakuma lapa'!$F$16,'VSAOI transakcijas'!$O:$O,YEAR(DATE(YEAR(J2),MONTH(J2)+2,0)),'VSAOI transakcijas'!$P:$P,RIGHT(\"0\"&MONTH(DATE(YEAR(J2),MONTH(J2)+2,0)),2),'VSAOI transakcijas'!$Q:$Q,\"Riska nodeva\",'VSAOI transakcijas'!$K:$K,\"<>\"&\"FIFO*\",'VSAOI transakcijas'!$K:$K,\"<>\"&\"Iemaksas atbrīvošana\",'VSAOI transakcijas'!$E:$E,\"<>\"&\"Deklarācija/pārskats\")","v":0},{"$f":"-SUMIFS('VSAOI transakcijas'!$R:$R,'VSAOI transakcijas'!$D:$D,\"Aprēķins\",'VSAOI transakcijas'!$H:$H,\"Pamatsumma\",'VSAOI transakcijas'!$S:$S,\">=\"&DATE(YEAR(K2),MONTH(K2),1),'VSAOI transakcijas'!$S:$S,\"<=\"&'Sakuma lapa'!$F$16,'VSAOI transakcijas'!$O:$O,YEAR(DATE(YEAR(K2),MONTH(K2)+2,0)),'VSAOI transakcijas'!$P:$P,RIGHT(\"0\"&MONTH(DATE(YEAR(K2),MONTH(K2)+2,0)),2),'VSAOI transakcijas'!$Q:$Q,\"Riska nodeva\",'VSAOI transakcijas'!$K:$K,\"<>\"&\"FIFO*\",'VSAOI transakcijas'!$K:$K,\"<>\"&\"Iemaksas atbrīvošana\",'VSAOI transakcijas'!$E:$E,\"<>\"&\"Deklarācija/pārskats\")","v":0},{"$f":"-SUMIFS('VSAOI transakcijas'!$R:$R,'VSAOI transakcijas'!$D:$D,\"Aprēķins\",'VSAOI transakcijas'!$H:$H,\"Pamatsumma\",'VSAOI transakcijas'!$S:$S,\">=\"&DATE(YEAR(L2),MONTH(L2),1),'VSAOI transakcijas'!$S:$S,\"<=\"&'Sakuma lapa'!$F$16,'VSAOI transakcijas'!$O:$O,YEAR(DATE(YEAR(L2),MONTH(L2)+2,0)),'VSAOI transakcijas'!$P:$P,RIGHT(\"0\"&MONTH(DATE(YEAR(L2),MONTH(L2)+2,0)),2),'VSAOI transakcijas'!$Q:$Q,\"Riska nodeva\",'VSAOI transakcijas'!$K:$K,\"<>\"&\"FIFO*\",'VSAOI transakcijas'!$K:$K,\"<>\"&\"Iemaksas atbrīvošana\",'VSAOI transakcijas'!$E:$E,\"<>\"&\"Deklarācija/pārskats\")","v":0},{"$f":"-SUMIFS('VSAOI transakcijas'!$R:$R,'VSAOI transakcijas'!$D:$D,\"Aprēķins\",'VSAOI transakcijas'!$H:$H,\"Pamatsumma\",'VSAOI transakcijas'!$S:$S,\">=\"&DATE(YEAR(M2),MONTH(M2),1),'VSAOI transakcijas'!$S:$S,\"<=\"&'Sakuma lapa'!$F$16,'VSAOI transakcijas'!$O:$O,YEAR(DATE(YEAR(M2),MONTH(M2)+2,0)),'VSAOI transakcijas'!$P:$P,RIGHT(\"0\"&MONTH(DATE(YEAR(M2),MONTH(M2)+2,0)),2),'VSAOI transakcijas'!$Q:$Q,\"Riska nodeva\",'VSAOI transakcijas'!$K:$K,\"<>\"&\"FIFO*\",'VSAOI transakcijas'!$K:$K,\"<>\"&\"Iemaksas atbrīvošana\",'VSAOI transakcijas'!$E:$E,\"<>\"&\"Deklarācija/pārskats\")","v":0},{"$f":"-SUMIFS('VSAOI transakcijas'!$R:$R,'VSAOI transakcijas'!$D:$D,\"Aprēķins\",'VSAOI transakcijas'!$H:$H,\"Pamatsumma\",'VSAOI transakcijas'!$S:$S,\">=\"&DATE(YEAR(N2),MONTH(N2),1),'VSAOI transakcijas'!$S:$S,\"<=\"&'Sakuma lapa'!$F$16,'VSAOI transakcijas'!$O:$O,YEAR(DATE(YEAR(N2),MONTH(N2)+2,0)),'VSAOI transakcijas'!$P:$P,RIGHT(\"0\"&MONTH(DATE(YEAR(N2),MONTH(N2)+2,0)),2),'VSAOI transakcijas'!$Q:$Q,\"Riska nodeva\",'VSAOI transakcijas'!$K:$K,\"<>\"&\"FIFO*\",'VSAOI transakcijas'!$K:$K,\"<>\"&\"Iemaksas atbrīvošana\",'VSAOI transakcijas'!$E:$E,\"<>\"&\"Deklarācija/pārskats\")","v":0},{"$f":"SUM(C56:N56)","v":0}]
[null,"Iemaksa/Atmaksa/Pārvietošana",{"$f":"-SUMIFS('VSAOI transakcijas'!$R:$R,'VSAOI transakcijas'!$D:$D,\"Iemaksa\",'VSAOI transakcijas'!$H:$H,\"Pamatsumma\",'VSAOI transakcijas'!$S:$S,\">=\"&DATE(YEAR(C2),MONTH(C2),1),'VSAOI transakcijas'!$S:$S,\"<=\"&'Sakuma lapa'!$F$16,'VSAOI transakcijas'!$O:$O,YEAR(DATE(YEAR(C2),MONTH(C2)+1,0)),'VSAOI transakcijas'!$P:$P,RIGHT(\"0\"&MONTH(DATE(YEAR(C2),MONTH(C2)+1,0)),2),'VSAOI transakcijas'!$Q:$Q,\"Riska nodeva\")\n-SUMIFS('VSAOI transakcijas'!$R:$R,'VSAOI transakcijas'!$D:$D,\"Atmaksa\",'VSAOI transakcijas'!$H:$H,\"Pamatsumma\",'VSAOI transakcijas'!$S:$S,\">=\"&DATE(YEAR(C2),MONTH(C2),1),'VSAOI transakcijas'!$S:$S,\"<=\"&'Sakuma lapa'!$F$16,'VSAOI transakcijas'!$O:$O,YEAR(DATE(YEAR(C2),MONTH(C2)+1,0)),'VSAOI transakcijas'!$P:$P,RIGHT(\"0\"&MONTH(DATE(YEAR(C2),MONTH(C2)+1,0)),2),'VSAOI transakcijas'!$Q:$Q,\"Riska nodeva\")\n-SUMIFS('VSAOI transakcijas'!$R:$R,'VSAOI transakcijas'!$D:$D,\"Aprēķins\",'VSAOI transakcijas'!$H:$H,\"Pamatsumma\",'VSAOI transakcijas'!$S:$S,\">=\"&DATE(YEAR(C2),MONTH(C2),1),'VSAOI transakcijas'!$S:$S,\"<=\"&'Sakuma lapa'!$F$16,'VSAOI transakcijas'!$O:$O,YEAR(DATE(YEAR(C2),MONTH(C2)+1,0)),'VSAOI transakcijas'!$P:$P,RIGHT(\"0\"&MONTH(DATE(YEAR(C2),MONTH(C2)+1,0)),2),'VSAOI transakcijas'!$Q:$Q,\"Riska nodeva\",'VSAOI transakcijas'!$K:$K,\"FIFO*\")\n-SUMIFS('VSAOI transakcijas'!$R:$R,'VSAOI transakcijas'!$D:$D,\"Aprēķins\",'VSAOI transakcijas'!$H:$H,\"Pamatsumma\",'VSAOI transakcijas'!$S:$S,\">=\"&DATE(YEAR(C2),MONTH(C2),1),'VSAOI transakcijas'!$S:$S,\"<=\"&'Sakuma lapa'!$F$16,'VSAOI transakcijas'!$O:$O,YEAR(DATE(YEAR(C2),MONTH(C2)+1,0)),'VSAOI transakcijas'!$P:$P,RIGHT(\"0\"&MONTH(DATE(YEAR(C2),MONTH(C2)+1,0)),2),'VSAOI transakcijas'!$Q:$Q,\"Riska nodeva\",'VSAOI transakcijas'!$K:$K,\"Iemaksas atbrīvošana\")\n-SUMIFS('VSAOI transakcijas'!$R:$R,'VSAOI transakcijas'!$H:$H,\"Nokavējuma nauda\",'VSAOI transakcijas'!$S:$S,\">=\"&DATE(YEAR(C2),MONTH(C2),1),'VSAOI transakcijas'!$S:$S,\"<=\"&'Sakuma lapa'!$F$16,'VSAOI transakcijas'!$O:$O,YEAR(DATE(YEAR(C2),MONTH(C2)+1,0)),'VSAOI transakcijas'!$P:$P,RIGHT(\"0\"&MONTH(DATE(YEAR(C2),MONTH(C2)+1,0)),2),'VSAOI transakcijas'!$Q:$Q,\"Riska nodeva\")","v":0},{"$f":"-SUMIFS('VSAOI transakcijas'!$R:$R,'VSAOI transakcijas'!$D:$D,\"Iemaksa\",'VSAOI transakcijas'!$H:$H,\"Pamatsumma\",'VSAOI transakcijas'!$S:$S,\">=\"&DATE(YEAR(D2),MONTH(D2),1),'VSAOI transakcijas'!$S:$S,\"<=\"&'Sakuma lapa'!$F$16,'VSAOI transakcijas'!$O:$O,YEAR(DATE(YEAR(D2),MONTH(D2)+1,0)),'VSAOI transakcijas'!$P:$P,RIGHT(\"0\"&MONTH(DATE(YEAR(D2),MONTH(D2)+1,0)),2),'VSAOI transakcijas'!$Q:$Q,\"Riska nodeva\")\n-SUMIFS('VSAOI transakcijas'!$R:$R,'VSAOI transakcijas'!$D:$D,\"Atmaksa\",'VSAOI transakcijas'!$H:$H,\"Pamatsumma\",'VSAOI transakcijas'!$S:$S,\">=\"&DATE(YEAR(D2),MONTH(D2),1),'VSAOI transakcijas'!$S:$S,\"<=\"&'Sakuma lapa'!$F$16,'VSAOI transakcijas'!$O:$O,YEAR(DATE(YEAR(D2),MONTH(D2)+1,0)),'VSAOI transakcijas'!$P:$P,RIGHT(\"0\"&MONTH(DATE(YEAR(D2),MONTH(D2)+1,0)),2),'VSAOI transakcijas'!$Q:$Q,\"Riska nodeva\")\n-SUMIFS('VSAOI transakcijas'!$R:$R,'VSAOI transakcijas'!$D:$D,\"Aprēķins\",'VSAOI transakcijas'!$H:$H,\"Pamatsumma\",'VSAOI transakcijas'!$S:$S,\">=\"&DATE(YEAR(D2),MONTH(D2),1),'VSAOI transakcijas'!$S:$S,\"<=\"&'Sakuma lapa'!$F$16,'VSAOI transakcijas'!$O:$O,YEAR(DATE(YEAR(D2),MONTH(D2)+1,0)),'VSAOI transakcijas'!$P:$P,RIGHT(\"0\"&MONTH(DATE(YEAR(D2),MONTH(D2)+1,0)),2),'VSAOI transakcijas'!$Q:$Q,\"Riska nodeva\",'VSAOI transakcijas'!$K:$K,\"FIFO*\")\n-SUMIFS('VSAOI transakcijas'!$R:$R,'VSAOI transakcijas'!$D:$D,\"Aprēķins\",'VSAOI transakcijas'!$H:$H,\"Pamatsumma\",'VSAOI transakcijas'!$S:$S,\">=\"&DATE(YEAR(D2),MONTH(D2),1),'VSAOI transakcijas'!$S:$S,\"<=\"&'Sakuma lapa'!$F$16,'VSAOI transakcijas'!$O:$O,YEAR(DATE(YEAR(D2),MONTH(D2)+1,0)),'VSAOI transakcijas'!$P:$P,RIGHT(\"0\"&MONTH(DATE(YEAR(D2),MONTH(D2)+1,0)),2),'VSAOI transakcijas'!$Q:$Q,\"Riska nodeva\",'VSAOI transakcijas'!$K:$K,\"Iemaksas atbrīvošana\")\n-SUMIFS('VSAOI transakcijas'!$R:$R,'VSAOI transakcijas'!$H:$H,\"Nokavējuma nauda\",'VSAOI transakcijas'!$S:$S,\">=\"&DATE(YEAR(D2),MONTH(D2),1),'VSAOI transakcijas'!$S:$S,\"<=\"&'Sakuma lapa'!$F$16,'VSAOI transakcijas'!$O:$O,YEAR(DATE(YEAR(D2),MONTH(D2)+1,0)),'VSAOI transakcijas'!$P:$P,RIGHT(\"0\"&MONTH(DATE(YEAR(D2),MONTH(D2)+1,0)),2),'VSAOI transakcijas'!$Q:$Q,\"Riska nodeva\")","v":0},{"$f":"-SUMIFS('VSAOI transakcijas'!$R:$R,'VSAOI transakcijas'!$D:$D,\"Iemaksa\",'VSAOI transakcijas'!$H:$H,\"Pamatsumma\",'VSAOI transakcijas'!$S:$S,\">=\"&DATE(YEAR(E2),MONTH(E2),1),'VSAOI transakcijas'!$S:$S,\"<=\"&'Sakuma lapa'!$F$16,'VSAOI transakcijas'!$O:$O,YEAR(DATE(YEAR(E2),MONTH(E2)+1,0)),'VSAOI transakcijas'!$P:$P,RIGHT(\"0\"&MONTH(DATE(YEAR(E2),MONTH(E2)+1,0)),2),'VSAOI transakcijas'!$Q:$Q,\"Riska nodeva\")\n-SUMIFS('VSAOI transakcijas'!$R:$R,'VSAOI transakcijas'!$D:$D,\"Atmaksa\",'VSAOI transakcijas'!$H:$H,\"Pamatsumma\",'VSAOI transakcijas'!$S:$S,\">=\"&DATE(YEAR(E2),MONTH(E2),1),'VSAOI transakcijas'!$S:$S,\"<=\"&'Sakuma lapa'!$F$16,'VSAOI transakcijas'!$O:$O,YEAR(DATE(YEAR(E2),MONTH(E2)+1,0)),'VSAOI transakcijas'!$P:$P,RIGHT(\"0\"&MONTH(DATE(YEAR(E2),MONTH(E2)+1,0)),2),'VSAOI transakcijas'!$Q:$Q,\"Riska nodeva\")\n-SUMIFS('VSAOI transakcijas'!$R:$R,'VSAOI transakcijas'!$D:$D,\"Aprēķins\",'VSAOI transakcijas'!$H:$H,\"Pamatsumma\",'VSAOI transakcijas'!$S:$S,\">=\"&DATE(YEAR(E2),MONTH(E2),1),'VSAOI transakcijas'!$S:$S,\"<=\"&'Sakuma lapa'!$F$16,'VSAOI transakcijas'!$O:$O,YEAR(DATE(YEAR(E2),MONTH(E2)+1,0)),'VSAOI transakcijas'!$P:$P,RIGHT(\"0\"&MONTH(DATE(YEAR(E2),MONTH(E2)+1,0)),2),'VSAOI transakcijas'!$Q:$Q,\"Riska nodeva\",'VSAOI transakcijas'!$K:$K,\"FIFO*\")\n-SUMIFS('VSAOI transakcijas'!$R:$R,'VSAOI transakcijas'!$D:$D,\"Aprēķins\",'VSAOI transakcijas'!$H:$H,\"Pamatsumma\",'VSAOI transakcijas'!$S:$S,\">=\"&DATE(YEAR(E2),MONTH(E2),1),'VSAOI transakcijas'!$S:$S,\"<=\"&'Sakuma lapa'!$F$16,'VSAOI transakcijas'!$O:$O,YEAR(DATE(YEAR(E2),MONTH(E2)+1,0)),'VSAOI transakcijas'!$P:$P,RIGHT(\"0\"&MONTH(DATE(YEAR(E2),MONTH(E2)+1,0)),2),'VSAOI transakcijas'!$Q:$Q,\"Riska nodeva\",'VSAOI transakcijas'!$K:$K,\"Iemaksas atbrīvošana\")\n-SUMIFS('VSAOI transakcijas'!$R:$R,'VSAOI transakcijas'!$H:$H,\"Nokavējuma nauda\",'VSAOI transakcijas'!$S:$S,\">=\"&DATE(YEAR(E2),MONTH(E2),1),'VSAOI transakcijas'!$S:$S,\"<=\"&'Sakuma lapa'!$F$16,'VSAOI transakcijas'!$O:$O,YEAR(DATE(YEAR(E2),MONTH(E2)+1,0)),'VSAOI transakcijas'!$P:$P,RIGHT(\"0\"&MONTH(DATE(YEAR(E2),MONTH(E2)+1,0)),2),'VSAOI transakcijas'!$Q:$Q,\"Riska nodeva\")","v":0},{"$f":"-SUMIFS('VSAOI transakcijas'!$R:$R,'VSAOI transakcijas'!$D:$D,\"Iemaksa\",'VSAOI transakcijas'!$H:$H,\"Pamatsumma\",'VSAOI transakcijas'!$S:$S,\">=\"&DATE(YEAR(F2),MONTH(F2),1),'VSAOI transakcijas'!$S:$S,\"<=\"&'Sakuma lapa'!$F$16,'VSAOI transakcijas'!$O:$O,YEAR(DATE(YEAR(F2),MONTH(F2)+1,0)),'VSAOI transakcijas'!$P:$P,RIGHT(\"0\"&MONTH(DATE(YEAR(F2),MONTH(F2)+1,0)),2),'VSAOI transakcijas'!$Q:$Q,\"Riska nodeva\")\n-SUMIFS('VSAOI transakcijas'!$R:$R,'VSAOI transakcijas'!$D:$D,\"Atmaksa\",'VSAOI transakcijas'!$H:$H,\"Pamatsumma\",'VSAOI transakcijas'!$S:$S,\">=\"&DATE(YEAR(F2),MONTH(F2),1),'VSAOI transakcijas'!$S:$S,\"<=\"&'Sakuma lapa'!$F$16,'VSAOI transakcijas'!$O:$O,YEAR(DATE(YEAR(F2),MONTH(F2)+1,0)),'VSAOI transakcijas'!$P:$P,RIGHT(\"0\"&MONTH(DATE(YEAR(F2),MONTH(F2)+1,0)),2),'VSAOI transakcijas'!$Q:$Q,\"Riska nodeva\")\n-SUMIFS('VSAOI transakcijas'!$R:$R,'VSAOI transakcijas'!$D:$D,\"Aprēķins\",'VSAOI transakcijas'!$H:$H,\"Pamatsumma\",'VSAOI transakcijas'!$S:$S,\">=\"&DATE(YEAR(F2),MONTH(F2),1),'VSAOI transakcijas'!$S:$S,\"<=\"&'Sakuma lapa'!$F$16,'VSAOI transakcijas'!$O:$O,YEAR(DATE(YEAR(F2),MONTH(F2)+1,0)),'VSAOI transakcijas'!$P:$P,RIGHT(\"0\"&MONTH(DATE(YEAR(F2),MONTH(F2)+1,0)),2),'VSAOI transakcijas'!$Q:$Q,\"Riska nodeva\",'VSAOI transakcijas'!$K:$K,\"FIFO*\")\n-SUMIFS('VSAOI transakcijas'!$R:$R,'VSAOI transakcijas'!$D:$D,\"Aprēķins\",'VSAOI transakcijas'!$H:$H,\"Pamatsumma\",'VSAOI transakcijas'!$S:$S,\">=\"&DATE(YEAR(F2),MONTH(F2),1),'VSAOI transakcijas'!$S:$S,\"<=\"&'Sakuma lapa'!$F$16,'VSAOI transakcijas'!$O:$O,YEAR(DATE(YEAR(F2),MONTH(F2)+1,0)),'VSAOI transakcijas'!$P:$P,RIGHT(\"0\"&MONTH(DATE(YEAR(F2),MONTH(F2)+1,0)),2),'VSAOI transakcijas'!$Q:$Q,\"Riska nodeva\",'VSAOI transakcijas'!$K:$K,\"Iemaksas atbrīvošana\")\n-SUMIFS('VSAOI transakcijas'!$R:$R,'VSAOI transakcijas'!$H:$H,\"Nokavējuma nauda\",'VSAOI transakcijas'!$S:$S,\">=\"&DATE(YEAR(F2),MONTH(F2),1),'VSAOI transakcijas'!$S:$S,\"<=\"&'Sakuma lapa'!$F$16,'VSAOI transakcijas'!$O:$O,YEAR(DATE(YEAR(F2),MONTH(F2)+1,0)),'VSAOI transakcijas'!$P:$P,RIGHT(\"0\"&MONTH(DATE(YEAR(F2),MONTH(F2)+1,0)),2),'VSAOI transakcijas'!$Q:$Q,\"Riska nodeva\")","v":0},{"$f":"-SUMIFS('VSAOI transakcijas'!$R:$R,'VSAOI transakcijas'!$D:$D,\"Iemaksa\",'VSAOI transakcijas'!$H:$H,\"Pamatsumma\",'VSAOI transakcijas'!$S:$S,\">=\"&DATE(YEAR(G2),MONTH(G2),1),'VSAOI transakcijas'!$S:$S,\"<=\"&'Sakuma lapa'!$F$16,'VSAOI transakcijas'!$O:$O,YEAR(DATE(YEAR(G2),MONTH(G2)+1,0)),'VSAOI transakcijas'!$P:$P,RIGHT(\"0\"&MONTH(DATE(YEAR(G2),MONTH(G2)+1,0)),2),'VSAOI transakcijas'!$Q:$Q,\"Riska nodeva\")\n-SUMIFS('VSAOI transakcijas'!$R:$R,'VSAOI transakcijas'!$D:$D,\"Atmaksa\",'VSAOI transakcijas'!$H:$H,\"Pamatsumma\",'VSAOI transakcijas'!$S:$S,\">=\"&DATE(YEAR(G2),MONTH(G2),1),'VSAOI transakcijas'!$S:$S,\"<=\"&'Sakuma lapa'!$F$16,'VSAOI transakcijas'!$O:$O,YEAR(DATE(YEAR(G2),MONTH(G2)+1,0)),'VSAOI transakcijas'!$P:$P,RIGHT(\"0\"&MONTH(DATE(YEAR(G2),MONTH(G2)+1,0)),2),'VSAOI transakcijas'!$Q:$Q,\"Riska nodeva\")\n-SUMIFS('VSAOI transakcijas'!$R:$R,'VSAOI transakcijas'!$D:$D,\"Aprēķins\",'VSAOI transakcijas'!$H:$H,\"Pamatsumma\",'VSAOI transakcijas'!$S:$S,\">=\"&DATE(YEAR(G2),MONTH(G2),1),'VSAOI transakcijas'!$S:$S,\"<=\"&'Sakuma lapa'!$F$16,'VSAOI transakcijas'!$O:$O,YEAR(DATE(YEAR(G2),MONTH(G2)+1,0)),'VSAOI transakcijas'!$P:$P,RIGHT(\"0\"&MONTH(DATE(YEAR(G2),MONTH(G2)+1,0)),2),'VSAOI transakcijas'!$Q:$Q,\"Riska nodeva\",'VSAOI transakcijas'!$K:$K,\"FIFO*\")\n-SUMIFS('VSAOI transakcijas'!$R:$R,'VSAOI transakcijas'!$D:$D,\"Aprēķins\",'VSAOI transakcijas'!$H:$H,\"Pamatsumma\",'VSAOI transakcijas'!$S:$S,\">=\"&DATE(YEAR(G2),MONTH(G2),1),'VSAOI transakcijas'!$S:$S,\"<=\"&'Sakuma lapa'!$F$16,'VSAOI transakcijas'!$O:$O,YEAR(DATE(YEAR(G2),MONTH(G2)+1,0)),'VSAOI transakcijas'!$P:$P,RIGHT(\"0\"&MONTH(DATE(YEAR(G2),MONTH(G2)+1,0)),2),'VSAOI transakcijas'!$Q:$Q,\"Riska nodeva\",'VSAOI transakcijas'!$K:$K,\"Iemaksas atbrīvošana\")\n-SUMIFS('VSAOI transakcijas'!$R:$R,'VSAOI transakcijas'!$H:$H,\"Nokavējuma nauda\",'VSAOI transakcijas'!$S:$S,\">=\"&DATE(YEAR(G2),MONTH(G2),1),'VSAOI transakcijas'!$S:$S,\"<=\"&'Sakuma lapa'!$F$16,'VSAOI transakcijas'!$O:$O,YEAR(DATE(YEAR(G2),MONTH(G2)+1,0)),'VSAOI transakcijas'!$P:$P,RIGHT(\"0\"&MONTH(DATE(YEAR(G2),MONTH(G2)+1,0)),2),'VSAOI transakcijas'!$Q:$Q,\"Riska nodeva\")","v":0},{"$f":"-SUMIFS('VSAOI transakcijas'!$R:$R,'VSAOI transakcijas'!$D:$D,\"Iemaksa\",'VSAOI transakcijas'!$H:$H,\"Pamatsumma\",'VSAOI transakcijas'!$S:$S,\">=\"&DATE(YEAR(H2),MONTH(H2),1),'VSAOI transakcijas'!$S:$S,\"<=\"&'Sakuma lapa'!$F$16,'VSAOI transakcijas'!$O:$O,YEAR(DATE(YEAR(H2),MONTH(H2)+1,0)),'VSAOI transakcijas'!$P:$P,RIGHT(\"0\"&MONTH(DATE(YEAR(H2),MONTH(H2)+1,0)),2),'VSAOI transakcijas'!$Q:$Q,\"Riska nodeva\")\n-SUMIFS('VSAOI transakcijas'!$R:$R,'VSAOI transakcijas'!$D:$D,\"Atmaksa\",'VSAOI transakcijas'!$H:$H,\"Pamatsumma\",'VSAOI transakcijas'!$S:$S,\">=\"&DATE(YEAR(H2),MONTH(H2),1),'VSAOI transakcijas'!$S:$S,\"<=\"&'Sakuma lapa'!$F$16,'VSAOI transakcijas'!$O:$O,YEAR(DATE(YEAR(H2),MONTH(H2)+1,0)),'VSAOI transakcijas'!$P:$P,RIGHT(\"0\"&MONTH(DATE(YEAR(H2),MONTH(H2)+1,0)),2),'VSAOI transakcijas'!$Q:$Q,\"Riska nodeva\")\n-SUMIFS('VSAOI transakcijas'!$R:$R,'VSAOI transakcijas'!$D:$D,\"Aprēķins\",'VSAOI transakcijas'!$H:$H,\"Pamatsumma\",'VSAOI transakcijas'!$S:$S,\">=\"&DATE(YEAR(H2),MONTH(H2),1),'VSAOI transakcijas'!$S:$S,\"<=\"&'Sakuma lapa'!$F$16,'VSAOI transakcijas'!$O:$O,YEAR(DATE(YEAR(H2),MONTH(H2)+1,0)),'VSAOI transakcijas'!$P:$P,RIGHT(\"0\"&MONTH(DATE(YEAR(H2),MONTH(H2)+1,0)),2),'VSAOI transakcijas'!$Q:$Q,\"Riska nodeva\",'VSAOI transakcijas'!$K:$K,\"FIFO*\")\n-SUMIFS('VSAOI transakcijas'!$R:$R,'VSAOI transakcijas'!$D:$D,\"Aprēķins\",'VSAOI transakcijas'!$H:$H,\"Pamatsumma\",'VSAOI transakcijas'!$S:$S,\">=\"&DATE(YEAR(H2),MONTH(H2),1),'VSAOI transakcijas'!$S:$S,\"<=\"&'Sakuma lapa'!$F$16,'VSAOI transakcijas'!$O:$O,YEAR(DATE(YEAR(H2),MONTH(H2)+1,0)),'VSAOI transakcijas'!$P:$P,RIGHT(\"0\"&MONTH(DATE(YEAR(H2),MONTH(H2)+1,0)),2),'VSAOI transakcijas'!$Q:$Q,\"Riska nodeva\",'VSAOI transakcijas'!$K:$K,\"Iemaksas atbrīvošana\")\n-SUMIFS('VSAOI transakcijas'!$R:$R,'VSAOI transakcijas'!$H:$H,\"Nokavējuma nauda\",'VSAOI transakcijas'!$S:$S,\">=\"&DATE(YEAR(H2),MONTH(H2),1),'VSAOI transakcijas'!$S:$S,\"<=\"&'Sakuma lapa'!$F$16,'VSAOI transakcijas'!$O:$O,YEAR(DATE(YEAR(H2),MONTH(H2)+1,0)),'VSAOI transakcijas'!$P:$P,RIGHT(\"0\"&MONTH(DATE(YEAR(H2),MONTH(H2)+1,0)),2),'VSAOI transakcijas'!$Q:$Q,\"Riska nodeva\")","v":0},{"$f":"-SUMIFS('VSAOI transakcijas'!$R:$R,'VSAOI transakcijas'!$D:$D,\"Iemaksa\",'VSAOI transakcijas'!$H:$H,\"Pamatsumma\",'VSAOI transakcijas'!$S:$S,\">=\"&DATE(YEAR(I2),MONTH(I2),1),'VSAOI transakcijas'!$S:$S,\"<=\"&'Sakuma lapa'!$F$16,'VSAOI transakcijas'!$O:$O,YEAR(DATE(YEAR(I2),MONTH(I2)+1,0)),'VSAOI transakcijas'!$P:$P,RIGHT(\"0\"&MONTH(DATE(YEAR(I2),MONTH(I2)+1,0)),2),'VSAOI transakcijas'!$Q:$Q,\"Riska nodeva\")\n-SUMIFS('VSAOI transakcijas'!$R:$R,'VSAOI transakcijas'!$D:$D,\"Atmaksa\",'VSAOI transakcijas'!$H:$H,\"Pamatsumma\",'VSAOI transakcijas'!$S:$S,\">=\"&DATE(YEAR(I2),MONTH(I2),1),'VSAOI transakcijas'!$S:$S,\"<=\"&'Sakuma lapa'!$F$16,'VSAOI transakcijas'!$O:$O,YEAR(DATE(YEAR(I2),MONTH(I2)+1,0)),'VSAOI transakcijas'!$P:$P,RIGHT(\"0\"&MONTH(DATE(YEAR(I2),MONTH(I2)+1,0)),2),'VSAOI transakcijas'!$Q:$Q,\"Riska nodeva\")\n-SUMIFS('VSAOI transakcijas'!$R:$R,'VSAOI transakcijas'!$D:$D,\"Aprēķins\",'VSAOI transakcijas'!$H:$H,\"Pamatsumma\",'VSAOI transakcijas'!$S:$S,\">=\"&DATE(YEAR(I2),MONTH(I2),1),'VSAOI transakcijas'!$S:$S,\"<=\"&'Sakuma lapa'!$F$16,'VSAOI transakcijas'!$O:$O,YEAR(DATE(YEAR(I2),MONTH(I2)+1,0)),'VSAOI transakcijas'!$P:$P,RIGHT(\"0\"&MONTH(DATE(YEAR(I2),MONTH(I2)+1,0)),2),'VSAOI transakcijas'!$Q:$Q,\"Riska nodeva\",'VSAOI transakcijas'!$K:$K,\"FIFO*\")\n-SUMIFS('VSAOI transakcijas'!$R:$R,'VSAOI transakcijas'!$D:$D,\"Aprēķins\",'VSAOI transakcijas'!$H:$H,\"Pamatsumma\",'VSAOI transakcijas'!$S:$S,\">=\"&DATE(YEAR(I2),MONTH(I2),1),'VSAOI transakcijas'!$S:$S,\"<=\"&'Sakuma lapa'!$F$16,'VSAOI transakcijas'!$O:$O,YEAR(DATE(YEAR(I2),MONTH(I2)+1,0)),'VSAOI transakcijas'!$P:$P,RIGHT(\"0\"&MONTH(DATE(YEAR(I2),MONTH(I2)+1,0)),2),'VSAOI transakcijas'!$Q:$Q,\"Riska nodeva\",'VSAOI transakcijas'!$K:$K,\"Iemaksas atbrīvošana\")\n-SUMIFS('VSAOI transakcijas'!$R:$R,'VSAOI transakcijas'!$H:$H,\"Nokavējuma nauda\",'VSAOI transakcijas'!$S:$S,\">=\"&DATE(YEAR(I2),MONTH(I2),1),'VSAOI transakcijas'!$S:$S,\"<=\"&'Sakuma lapa'!$F$16,'VSAOI transakcijas'!$O:$O,YEAR(DATE(YEAR(I2),MONTH(I2)+1,0)),'VSAOI transakcijas'!$P:$P,RIGHT(\"0\"&MONTH(DATE(YEAR(I2),MONTH(I2)+1,0)),2),'VSAOI transakcijas'!$Q:$Q,\"Riska nodeva\")","v":0},{"$f":"-SUMIFS('VSAOI transakcijas'!$R:$R,'VSAOI transakcijas'!$D:$D,\"Iemaksa\",'VSAOI transakcijas'!$H:$H,\"Pamatsumma\",'VSAOI transakcijas'!$S:$S,\">=\"&DATE(YEAR(J2),MONTH(J2),1),'VSAOI transakcijas'!$S:$S,\"<=\"&'Sakuma lapa'!$F$16,'VSAOI transakcijas'!$O:$O,YEAR(DATE(YEAR(J2),MONTH(J2)+1,0)),'VSAOI transakcijas'!$P:$P,RIGHT(\"0\"&MONTH(DATE(YEAR(J2),MONTH(J2)+1,0)),2),'VSAOI transakcijas'!$Q:$Q,\"Riska nodeva\")\n-SUMIFS('VSAOI transakcijas'!$R:$R,'VSAOI transakcijas'!$D:$D,\"Atmaksa\",'VSAOI transakcijas'!$H:$H,\"Pamatsumma\",'VSAOI transakcijas'!$S:$S,\">=\"&DATE(YEAR(J2),MONTH(J2),1),'VSAOI transakcijas'!$S:$S,\"<=\"&'Sakuma lapa'!$F$16,'VSAOI transakcijas'!$O:$O,YEAR(DATE(YEAR(J2),MONTH(J2)+1,0)),'VSAOI transakcijas'!$P:$P,RIGHT(\"0\"&MONTH(DATE(YEAR(J2),MONTH(J2)+1,0)),2),'VSAOI transakcijas'!$Q:$Q,\"Riska nodeva\")\n-SUMIFS('VSAOI transakcijas'!$R:$R,'VSAOI transakcijas'!$D:$D,\"Aprēķins\",'VSAOI transakcijas'!$H:$H,\"Pamatsumma\",'VSAOI transakcijas'!$S:$S,\">=\"&DATE(YEAR(J2),MONTH(J2),1),'VSAOI transakcijas'!$S:$S,\"<=\"&'Sakuma lapa'!$F$16,'VSAOI transakcijas'!$O:$O,YEAR(DATE(YEAR(J2),MONTH(J2)+1,0)),'VSAOI transakcijas'!$P:$P,RIGHT(\"0\"&MONTH(DATE(YEAR(J2),MONTH(J2)+1,0)),2),'VSAOI transakcijas'!$Q:$Q,\"Riska nodeva\",'VSAOI transakcijas'!$K:$K,\"FIFO*\")\n-SUMIFS('VSAOI transakcijas'!$R:$R,'VSAOI transakcijas'!$D:$D,\"Aprēķins\",'VSAOI transakcijas'!$H:$H,\"Pamatsumma\",'VSAOI transakcijas'!$S:$S,\">=\"&DATE(YEAR(J2),MONTH(J2),1),'VSAOI transakcijas'!$S:$S,\"<=\"&'Sakuma lapa'!$F$16,'VSAOI transakcijas'!$O:$O,YEAR(DATE(YEAR(J2),MONTH(J2)+1,0)),'VSAOI transakcijas'!$P:$P,RIGHT(\"0\"&MONTH(DATE(YEAR(J2),MONTH(J2)+1,0)),2),'VSAOI transakcijas'!$Q:$Q,\"Riska nodeva\",'VSAOI transakcijas'!$K:$K,\"Iemaksas atbrīvošana\")\n-SUMIFS('VSAOI transakcijas'!$R:$R,'VSAOI transakcijas'!$H:$H,\"Nokavējuma nauda\",'VSAOI transakcijas'!$S:$S,\">=\"&DATE(YEAR(J2),MONTH(J2),1),'VSAOI transakcijas'!$S:$S,\"<=\"&'Sakuma lapa'!$F$16,'VSAOI transakcijas'!$O:$O,YEAR(DATE(YEAR(J2),MONTH(J2)+1,0)),'VSAOI transakcijas'!$P:$P,RIGHT(\"0\"&MONTH(DATE(YEAR(J2),MONTH(J2)+1,0)),2),'VSAOI transakcijas'!$Q:$Q,\"Riska nodeva\")","v":0},{"$f":"-SUMIFS('VSAOI transakcijas'!$R:$R,'VSAOI transakcijas'!$D:$D,\"Iemaksa\",'VSAOI transakcijas'!$H:$H,\"Pamatsumma\",'VSAOI transakcijas'!$S:$S,\">=\"&DATE(YEAR(K2),MONTH(K2),1),'VSAOI transakcijas'!$S:$S,\"<=\"&'Sakuma lapa'!$F$16,'VSAOI transakcijas'!$O:$O,YEAR(DATE(YEAR(K2),MONTH(K2)+1,0)),'VSAOI transakcijas'!$P:$P,RIGHT(\"0\"&MONTH(DATE(YEAR(K2),MONTH(K2)+1,0)),2),'VSAOI transakcijas'!$Q:$Q,\"Riska nodeva\")\n-SUMIFS('VSAOI transakcijas'!$R:$R,'VSAOI transakcijas'!$D:$D,\"Atmaksa\",'VSAOI transakcijas'!$H:$H,\"Pamatsumma\",'VSAOI transakcijas'!$S:$S,\">=\"&DATE(YEAR(K2),MONTH(K2),1),'VSAOI transakcijas'!$S:$S,\"<=\"&'Sakuma lapa'!$F$16,'VSAOI transakcijas'!$O:$O,YEAR(DATE(YEAR(K2),MONTH(K2)+1,0)),'VSAOI transakcijas'!$P:$P,RIGHT(\"0\"&MONTH(DATE(YEAR(K2),MONTH(K2)+1,0)),2),'VSAOI transakcijas'!$Q:$Q,\"Riska nodeva\")\n-SUMIFS('VSAOI transakcijas'!$R:$R,'VSAOI transakcijas'!$D:$D,\"Aprēķins\",'VSAOI transakcijas'!$H:$H,\"Pamatsumma\",'VSAOI transakcijas'!$S:$S,\">=\"&DATE(YEAR(K2),MONTH(K2),1),'VSAOI transakcijas'!$S:$S,\"<=\"&'Sakuma lapa'!$F$16,'VSAOI transakcijas'!$O:$O,YEAR(DATE(YEAR(K2),MONTH(K2)+1,0)),'VSAOI transakcijas'!$P:$P,RIGHT(\"0\"&MONTH(DATE(YEAR(K2),MONTH(K2)+1,0)),2),'VSAOI transakcijas'!$Q:$Q,\"Riska nodeva\",'VSAOI transakcijas'!$K:$K,\"FIFO*\")\n-SUMIFS('VSAOI transakcijas'!$R:$R,'VSAOI transakcijas'!$D:$D,\"Aprēķins\",'VSAOI transakcijas'!$H:$H,\"Pamatsumma\",'VSAOI transakcijas'!$S:$S,\">=\"&DATE(YEAR(K2),MONTH(K2),1),'VSAOI transakcijas'!$S:$S,\"<=\"&'Sakuma lapa'!$F$16,'VSAOI transakcijas'!$O:$O,YEAR(DATE(YEAR(K2),MONTH(K2)+1,0)),'VSAOI transakcijas'!$P:$P,RIGHT(\"0\"&MONTH(DATE(YEAR(K2),MONTH(K2)+1,0)),2),'VSAOI transakcijas'!$Q:$Q,\"Riska nodeva\",'VSAOI transakcijas'!$K:$K,\"Iemaksas atbrīvošana\")\n-SUMIFS('VSAOI transakcijas'!$R:$R,'VSAOI transakcijas'!$H:$H,\"Nokavējuma nauda\",'VSAOI transakcijas'!$S:$S,\">=\"&DATE(YEAR(K2),MONTH(K2),1),'VSAOI transakcijas'!$S:$S,\"<=\"&'Sakuma lapa'!$F$16,'VSAOI transakcijas'!$O:$O,YEAR(DATE(YEAR(K2),MONTH(K2)+1,0)),'VSAOI transakcijas'!$P:$P,RIGHT(\"0\"&MONTH(DATE(YEAR(K2),MONTH(K2)+1,0)),2),'VSAOI transakcijas'!$Q:$Q,\"Riska nodeva\")","v":0},{"$f":"-SUMIFS('VSAOI transakcijas'!$R:$R,'VSAOI transakcijas'!$D:$D,\"Iemaksa\",'VSAOI transakcijas'!$H:$H,\"Pamatsumma\",'VSAOI transakcijas'!$S:$S,\">=\"&DATE(YEAR(L2),MONTH(L2),1),'VSAOI transakcijas'!$S:$S,\"<=\"&'Sakuma lapa'!$F$16,'VSAOI transakcijas'!$O:$O,YEAR(DATE(YEAR(L2),MONTH(L2)+1,0)),'VSAOI transakcijas'!$P:$P,RIGHT(\"0\"&MONTH(DATE(YEAR(L2),MONTH(L2)+1,0)),2),'VSAOI transakcijas'!$Q:$Q,\"Riska nodeva\")\n-SUMIFS('VSAOI transakcijas'!$R:$R,'VSAOI transakcijas'!$D:$D,\"Atmaksa\",'VSAOI transakcijas'!$H:$H,\"Pamatsumma\",'VSAOI transakcijas'!$S:$S,\">=\"&DATE(YEAR(L2),MONTH(L2),1),'VSAOI transakcijas'!$S:$S,\"<=\"&'Sakuma lapa'!$F$16,'VSAOI transakcijas'!$O:$O,YEAR(DATE(YEAR(L2),MONTH(L2)+1,0)),'VSAOI transakcijas'!$P:$P,RIGHT(\"0\"&MONTH(DATE(YEAR(L2),MONTH(L2)+1,0)),2),'VSAOI transakcijas'!$Q:$Q,\"Riska nodeva\")\n-SUMIFS('VSAOI transakcijas'!$R:$R,'VSAOI transakcijas'!$D:$D,\"Aprēķins\",'VSAOI transakcijas'!$H:$H,\"Pamatsumma\",'VSAOI transakcijas'!$S:$S,\">=\"&DATE(YEAR(L2),MONTH(L2),1),'VSAOI transakcijas'!$S:$S,\"<=\"&'Sakuma lapa'!$F$16,'VSAOI transakcijas'!$O:$O,YEAR(DATE(YEAR(L2),MONTH(L2)+1,0)),'VSAOI transakcijas'!$P:$P,RIGHT(\"0\"&MONTH(DATE(YEAR(L2),MONTH(L2)+1,0)),2),'VSAOI transakcijas'!$Q:$Q,\"Riska nodeva\",'VSAOI transakcijas'!$K:$K,\"FIFO*\")\n-SUMIFS('VSAOI transakcijas'!$R:$R,'VSAOI transakcijas'!$D:$D,\"Aprēķins\",'VSAOI transakcijas'!$H:$H,\"Pamatsumma\",'VSAOI transakcijas'!$S:$S,\">=\"&DATE(YEAR(L2),MONTH(L2),1),'VSAOI transakcijas'!$S:$S,\"<=\"&'Sakuma lapa'!$F$16,'VSAOI transakcijas'!$O:$O,YEAR(DATE(YEAR(L2),MONTH(L2)+1,0)),'VSAOI transakcijas'!$P:$P,RIGHT(\"0\"&MONTH(DATE(YEAR(L2),MONTH(L2)+1,0)),2),'VSAOI transakcijas'!$Q:$Q,\"Riska nodeva\",'VSAOI transakcijas'!$K:$K,\"Iemaksas atbrīvošana\")\n-SUMIFS('VSAOI transakcijas'!$R:$R,'VSAOI transakcijas'!$H:$H,\"Nokavējuma nauda\",'VSAOI transakcijas'!$S:$S,\">=\"&DATE(YEAR(L2),MONTH(L2),1),'VSAOI transakcijas'!$S:$S,\"<=\"&'Sakuma lapa'!$F$16,'VSAOI transakcijas'!$O:$O,YEAR(DATE(YEAR(L2),MONTH(L2)+1,0)),'VSAOI transakcijas'!$P:$P,RIGHT(\"0\"&MONTH(DATE(YEAR(L2),MONTH(L2)+1,0)),2),'VSAOI transakcijas'!$Q:$Q,\"Riska nodeva\")","v":0},{"$f":"-SUMIFS('VSAOI transakcijas'!$R:$R,'VSAOI transakcijas'!$D:$D,\"Iemaksa\",'VSAOI transakcijas'!$H:$H,\"Pamatsumma\",'VSAOI transakcijas'!$S:$S,\">=\"&DATE(YEAR(M2),MONTH(M2),1),'VSAOI transakcijas'!$S:$S,\"<=\"&'Sakuma lapa'!$F$16,'VSAOI transakcijas'!$O:$O,YEAR(DATE(YEAR(M2),MONTH(M2)+1,0)),'VSAOI transakcijas'!$P:$P,RIGHT(\"0\"&MONTH(DATE(YEAR(M2),MONTH(M2)+1,0)),2),'VSAOI transakcijas'!$Q:$Q,\"Riska nodeva\")\n-SUMIFS('VSAOI transakcijas'!$R:$R,'VSAOI transakcijas'!$D:$D,\"Atmaksa\",'VSAOI transakcijas'!$H:$H,\"Pamatsumma\",'VSAOI transakcijas'!$S:$S,\">=\"&DATE(YEAR(M2),MONTH(M2),1),'VSAOI transakcijas'!$S:$S,\"<=\"&'Sakuma lapa'!$F$16,'VSAOI transakcijas'!$O:$O,YEAR(DATE(YEAR(M2),MONTH(M2)+1,0)),'VSAOI transakcijas'!$P:$P,RIGHT(\"0\"&MONTH(DATE(YEAR(M2),MONTH(M2)+1,0)),2),'VSAOI transakcijas'!$Q:$Q,\"Riska nodeva\")\n-SUMIFS('VSAOI transakcijas'!$R:$R,'VSAOI transakcijas'!$D:$D,\"Aprēķins\",'VSAOI transakcijas'!$H:$H,\"Pamatsumma\",'VSAOI transakcijas'!$S:$S,\">=\"&DATE(YEAR(M2),MONTH(M2),1),'VSAOI transakcijas'!$S:$S,\"<=\"&'Sakuma lapa'!$F$16,'VSAOI transakcijas'!$O:$O,YEAR(DATE(YEAR(M2),MONTH(M2)+1,0)),'VSAOI transakcijas'!$P:$P,RIGHT(\"0\"&MONTH(DATE(YEAR(M2),MONTH(M2)+1,0)),2),'VSAOI transakcijas'!$Q:$Q,\"Riska nodeva\",'VSAOI transakcijas'!$K:$K,\"FIFO*\")\n-SUMIFS('VSAOI transakcijas'!$R:$R,'VSAOI transakcijas'!$D:$D,\"Aprēķins\",'VSAOI transakcijas'!$H:$H,\"Pamatsumma\",'VSAOI transakcijas'!$S:$S,\">=\"&DATE(YEAR(M2),MONTH(M2),1),'VSAOI transakcijas'!$S:$S,\"<=\"&'Sakuma lapa'!$F$16,'VSAOI transakcijas'!$O:$O,YEAR(DATE(YEAR(M2),MONTH(M2)+1,0)),'VSAOI transakcijas'!$P:$P,RIGHT(\"0\"&MONTH(DATE(YEAR(M2),MONTH(M2)+1,0)),2),'VSAOI transakcijas'!$Q:$Q,\"Riska nodeva\",'VSAOI transakcijas'!$K:$K,\"Iemaksas atbrīvošana\")\n-SUMIFS('VSAOI transakcijas'!$R:$R,'VSAOI transakcijas'!$H:$H,\"Nokavējuma nauda\",'VSAOI transakcijas'!$S:$S,\">=\"&DATE(YEAR(M2),MONTH(M2),1),'VSAOI transakcijas'!$S:$S,\"<=\"&'Sakuma lapa'!$F$16,'VSAOI transakcijas'!$O:$O,YEAR(DATE(YEAR(M2),MONTH(M2)+1,0)),'VSAOI transakcijas'!$P:$P,RIGHT(\"0\"&MONTH(DATE(YEAR(M2),MONTH(M2)+1,0)),2),'VSAOI transakcijas'!$Q:$Q,\"Riska nodeva\")","v":0},{"$f":"-SUMIFS('VSAOI transakcijas'!$R:$R,'VSAOI transakcijas'!$D:$D,\"Iemaksa\",'VSAOI transakcijas'!$H:$H,\"Pamatsumma\",'VSAOI transakcijas'!$S:$S,\">=\"&DATE(YEAR(N2),MONTH(N2),1),'VSAOI transakcijas'!$S:$S,\"<=\"&'Sakuma lapa'!$F$16,'VSAOI transakcijas'!$O:$O,YEAR(DATE(YEAR(N2),MONTH(N2)+1,0)),'VSAOI transakcijas'!$P:$P,RIGHT(\"0\"&MONTH(DATE(YEAR(N2),MONTH(N2)+1,0)),2),'VSAOI transakcijas'!$Q:$Q,\"Riska nodeva\")\n-SUMIFS('VSAOI transakcijas'!$R:$R,'VSAOI transakcijas'!$D:$D,\"Atmaksa\",'VSAOI transakcijas'!$H:$H,\"Pamatsumma\",'VSAOI transakcijas'!$S:$S,\">=\"&DATE(YEAR(N2),MONTH(N2),1),'VSAOI transakcijas'!$S:$S,\"<=\"&'Sakuma lapa'!$F$16,'VSAOI transakcijas'!$O:$O,YEAR(DATE(YEAR(N2),MONTH(N2)+1,0)),'VSAOI transakcijas'!$P:$P,RIGHT(\"0\"&MONTH(DATE(YEAR(N2),MONTH(N2)+1,0)),2),'VSAOI transakcijas'!$Q:$Q,\"Riska nodeva\")\n-SUMIFS('VSAOI transakcijas'!$R:$R,'VSAOI transakcijas'!$D:$D,\"Aprēķins\",'VSAOI transakcijas'!$H:$H,\"Pamatsumma\",'VSAOI transakcijas'!$S:$S,\">=\"&DATE(YEAR(N2),MONTH(N2),1),'VSAOI transakcijas'!$S:$S,\"<=\"&'Sakuma lapa'!$F$16,'VSAOI transakcijas'!$O:$O,YEAR(DATE(YEAR(N2),MONTH(N2)+1,0)),'VSAOI transakcijas'!$P:$P,RIGHT(\"0\"&MONTH(DATE(YEAR(N2),MONTH(N2)+1,0)),2),'VSAOI transakcijas'!$Q:$Q,\"Riska nodeva\",'VSAOI transakcijas'!$K:$K,\"FIFO*\")\n-SUMIFS('VSAOI transakcijas'!$R:$R,'VSAOI transakcijas'!$D:$D,\"Aprēķins\",'VSAOI transakcijas'!$H:$H,\"Pamatsumma\",'VSAOI transakcijas'!$S:$S,\">=\"&DATE(YEAR(N2),MONTH(N2),1),'VSAOI transakcijas'!$S:$S,\"<=\"&'Sakuma lapa'!$F$16,'VSAOI transakcijas'!$O:$O,YEAR(DATE(YEAR(N2),MONTH(N2)+1,0)),'VSAOI transakcijas'!$P:$P,RIGHT(\"0\"&MONTH(DATE(YEAR(N2),MONTH(N2)+1,0)),2),'VSAOI transakcijas'!$Q:$Q,\"Riska nodeva\",'VSAOI transakcijas'!$K:$K,\"Iemaksas atbrīvošana\")\n-SUMIFS('VSAOI transakcijas'!$R:$R,'VSAOI transakcijas'!$H:$H,\"Nokavējuma nauda\",'VSAOI transakcijas'!$S:$S,\">=\"&DATE(YEAR(N2),MONTH(N2),1),'VSAOI transakcijas'!$S:$S,\"<=\"&'Sakuma lapa'!$F$16,'VSAOI transakcijas'!$O:$O,YEAR(DATE(YEAR(N2),MONTH(N2)+1,0)),'VSAOI transakcijas'!$P:$P,RIGHT(\"0\"&MONTH(DATE(YEAR(N2),MONTH(N2)+1,0)),2),'VSAOI transakcijas'!$Q:$Q,\"Riska nodeva\")","v":0},{"$f":"SUM(C57:N57)","v":0}]
[null,"VG  beigu atlikums"]
[null,"VG beigu atlikuma starpība",{"$f":"IF(C58=\"\",\"-\",C58-D54)","v":"-"},"-","-","-","-","-","-","-","-","-","-","-"]
[null,"Starpība starp deklarācijām un TransParsk",{"$f":"C15-C55","v":0},0,0,0,0,0,0,0,0,0,0,0,{"$f":"SUM(C60:N60)","v":0}]

{"sheet":"VSAOI horizontāli","index":9,"n_rows":28,"n_cols":21,"rows_kept":28,"cut":false,"hidden":false,"merged":[[23,7,23,8],[23,15,23,16],[20,6,20,8],[20,11,20,12],[20,14,20,16],[21,7,21,8],[22,7,22,8],[22,15,22,16],[21,15,21,16],[24,7,24,8],[25,7,25,8],[26,7,26,8],[27,7,27,8],[27,15,27,16],[26,15,26,16],[25,15,25,16],[24,15,24,16]]}
[null,{"$f":"'Sakuma lapa'!O30","v":0}]
[null,"Mēnesis","Bruto alga","Revidenta aprēķinātās \nDD VSAOI","Revidenta aprēķinātās \nDŅ VSAOI","starpības","KOPĀ VSAOI no VID EDS","Darbinieku skaits ","ar nodokļu grāmatiņu","bez nodokļu grāmatiņas","Apgādājamo skaits",{"$f":"\"Ieturētais IIN \npar \"&'Sakuma lapa'!$J$8","v":"Ieturētais IIN \npar pārskata mēnesi"},"Revidenta pārrēķinātais IIN \npar tekošo mēnesi","starpības","Riska nodeva","Nostrādātās stundas","Atlaistie","Vidējā mēneša alga","Vidējā stundas likme",null,"Ienākumi izmaksāti skaidrā n."]
[null,{"$f":"'Sakuma lapa'!E16","v":"00:00:00"},{"$f":"SUMIFS('VSAOI data'!$J:$J,'VSAOI data'!$Z:$Z,YEAR($B3)&MONTH($B3))+SUMIFS('VSAOI data'!$L:$L,'VSAOI data'!$Z:$Z,YEAR($B3)&MONTH($B3))","v":0},{"$f":"SUMIFS('VSAOI data'!$AQ:$AQ,'VSAOI data'!$AA:$AA,YEAR($B3)&MONTH($B3)&\"D*\")+SUMIFS('VSAOI data'!$AQ:$AQ,'VSAOI data'!$AA:$AA,YEAR($B3)&MONTH($B3)&\"C*\")+SUMIFS('VSAOI data'!$AQ:$AQ,'VSAOI data'!$AA:$AA,YEAR($B3)&MONTH($B3)&\"A*\")","v":0},{"$f":"SUMIFS('VSAOI data'!$AP:$AP,'VSAOI data'!$AA:$AA,YEAR($B3)&MONTH($B3)&\"D*\")+SUMIFS('VSAOI data'!$AP:$AP,'VSAOI data'!$AA:$AA,YEAR($B3)&MONTH($B3)&\"C*\")+SUMIF('VSAOI data'!$AA:$AA,YEAR($B3)&MONTH($B3)&\"A*\",'VSAOI data'!$AP:$AP)","v":0},{"$f":"G3-SUM(D3:E3)","v":0},{"$f":"SUMIFS('VSAOI data'!$K:$K,'VSAOI data'!$Z:$Z,YEAR($B3)&MONTH($B3))+SUMIFS('VSAOI data'!$M:$M,'VSAOI data'!$Z:$Z,YEAR($B3)&MONTH($B3))","v":0},{"$f":"SUM(I3:J3)","v":0},{"$f":"COUNTIFS('VSAOI data'!$AB:$AB,YEAR($B3)&MONTH($B3)&\"Tab*Ir\")-COUNTIFS('VSAOI data'!$AB:$AB,YEAR($B3)&MONTH($B3)&\"Tab4*Ir\")","v":0},{"$f":"COUNTIFS('VSAOI data'!$AB:$AB,YEAR($B3)&MONTH($B3)&\"Tab*Nav\")-COUNTIFS('VSAOI data'!$AB:$AB,YEAR($B3)&MONTH($B3)&\"Tab4*Nav\")","v":0},{"$f":"SUMIFS('VSAOI data'!$AJ:$AJ,'VSAOI data'!$AA:$AA,YEAR($B3)&MONTH($B3)&\"D*\")+SUMIFS('VSAOI data'!$AJ:$AJ,'VSAOI data'!$AA:$AA,YEAR($B3)&MONTH($B3)&\"C*\")+SUMIFS('VSAOI data'!$AJ:$AJ,'VSAOI data'!$AA:$AA,YEAR($B3)&MONTH($B3)&\"A*\")","v":0},{"$f":"SUMIFS('VSAOI data'!$N:$N,'VSAOI data'!$Z:$Z,YEAR($B3)&MONTH($B3))","v":0},{"$f":"SUMIFS('VSAOI data'!$AN:$AN,'VSAOI data'!$AA:$AA,YEAR($B3)&MONTH($B3)&\"D*\")+SUMIFS('VSAOI data'!$AN:$AN,'VSAOI data'!$AA:$AA,YEAR($B3)&MONTH($B3)&\"C*\")+SUMIFS('VSAOI data'!$AN:$AN,'VSAOI data'!$AA:$AA,YEAR($B3)&MONTH($B3)&\"A*\")","v":0},{"$f":"IF('Sakuma lapa'!$J$8=\"iepriekšējo mēnesi\",IF(C4>0,M3-L4,0),IF(C3>0,M3-L3,0))","v":0},{"$f":"SUMIFS('VSAOI data'!$P:$P,'VSAOI data'!$Z:$Z,YEAR($B3)&MONTH($B3))","v":0},{"$f":"SUMIFS('VSAOI data'!$Q:$Q,'VSAOI data'!$Z:$Z,YEAR($B3)&MONTH($B3))","v":0},{"$f":"COUNTIFS('VSAOI data'!$AB:$AB,YEAR($B3)&MONTH($B3)&\"Tab4G*\")","v":0},{"$f":"IFERROR((SUMIFS('VSAOI data'!$J:$J,'VSAOI data'!$AC:$AC,YEAR($B3)&MONTH($B3))+SUMIFS('VSAOI data'!$L:$L,'VSAOI data'!$AC:$AC,YEAR($B3)&MONTH($B3)))/COUNTIFS('VSAOI data'!$AC:$AC,YEAR($B3)&MONTH($B3)),\"-\")","v":"-"},{"$f":"IFERROR((SUMIFS('VSAOI data'!$J:$J,'VSAOI data'!$AC:$AC,YEAR($B3)&MONTH($B3))+SUMIFS('VSAOI data'!$L:$L,'VSAOI data'!$AC:$AC,YEAR($B3)&MONTH($B3)))/SUMIFS('VSAOI data'!$Q:$Q,'VSAOI data'!$AC:$AC,YEAR($B3)&MONTH($B3)),\"-\")","v":"-"},null,{"$f":"SUMIFS('VSAOI data'!$J:$J,'VSAOI data'!$Z:$Z,YEAR($B3)&MONTH($B3),'VSAOI data'!$X:$X,1)+SUMIFS('VSAOI data'!$L:$L,'VSAOI data'!$Z:$Z,YEAR($B3)&MONTH($B3),'VSAOI data'!$X:$X,1)","v":0}]
[null,{"$f":"DATE(YEAR(B3),MONTH(B3)+2,0)","v":60},{"$f":"SUMIFS('VSAOI data'!$J:$J,'VSAOI data'!$Z:$Z,YEAR($B4)&MONTH($B4))+SUMIFS('VSAOI data'!$L:$L,'VSAOI data'!$Z:$Z,YEAR($B4)&MONTH($B4))","v":0},{"$f":"SUMIFS('VSAOI data'!$AQ:$AQ,'VSAOI data'!$AA:$AA,YEAR($B4)&MONTH($B4)&\"D*\")+SUMIFS('VSAOI data'!$AQ:$AQ,'VSAOI data'!$AA:$AA,YEAR($B4)&MONTH($B4)&\"C*\")+SUMIFS('VSAOI data'!$AQ:$AQ,'VSAOI data'!$AA:$AA,YEAR($B4)&MONTH($B4)&\"A*\")","v":0},{"$f":"SUMIFS('VSAOI data'!$AP:$AP,'VSAOI data'!$AA:$AA,YEAR($B4)&MONTH($B4)&\"D*\")+SUMIFS('VSAOI data'!$AP:$AP,'VSAOI data'!$AA:$AA,YEAR($B4)&MONTH($B4)&\"C*\")+SUMIF('VSAOI data'!$AA:$AA,YEAR($B4)&MONTH($B4)&\"A*\",'VSAOI data'!$AP:$AP)","v":0},{"$f":"G4-SUM(D4:E4)","v":0},{"$f":"SUMIFS('VSAOI data'!$K:$K,'VSAOI data'!$Z:$Z,YEAR($B4)&MONTH($B4))+SUMIFS('VSAOI data'!$M:$M,'VSAOI data'!$Z:$Z,YEAR($B4)&MONTH($B4))","v":0},{"$f":"SUM(I4:J4)","v":0},{"$f":"COUNTIFS('VSAOI data'!$AB:$AB,YEAR($B4)&MONTH($B4)&\"Tab*Ir\")-COUNTIFS('VSAOI data'!$AB:$AB,YEAR($B4)&MONTH($B4)&\"Tab4*Ir\")","v":0},{"$f":"COUNTIFS('VSAOI data'!$AB:$AB,YEAR($B4)&MONTH($B4)&\"Tab*Nav\")-COUNTIFS('VSAOI data'!$AB:$AB,YEAR($B4)&MONTH($B4)&\"Tab4*Nav\")","v":0},{"$f":"SUMIFS('VSAOI data'!$AJ:$AJ,'VSAOI data'!$AA:$AA,YEAR($B4)&MONTH($B4)&\"D*\")+SUMIFS('VSAOI data'!$AJ:$AJ,'VSAOI data'!$AA:$AA,YEAR($B4)&MONTH($B4)&\"C*\")+SUMIFS('VSAOI data'!$AJ:$AJ,'VSAOI data'!$AA:$AA,YEAR($B4)&MONTH($B4)&\"A*\")","v":0},{"$f":"SUMIFS('VSAOI data'!$N:$N,'VSAOI data'!$Z:$Z,YEAR($B4)&MONTH($B4))","v":0},{"$f":"SUMIFS('VSAOI data'!$AN:$AN,'VSAOI data'!$AA:$AA,YEAR($B4)&MONTH($B4)&\"D*\")+SUMIFS('VSAOI data'!$AN:$AN,'VSAOI data'!$AA:$AA,YEAR($B4)&MONTH($B4)&\"C*\")+SUMIFS('VSAOI data'!$AN:$AN,'VSAOI data'!$AA:$AA,YEAR($B4)&MONTH($B4)&\"A*\")","v":0},{"$f":"IF('Sakuma lapa'!$J$8=\"iepriekšējo mēnesi\",IF(C5>0,M4-L5,0),IF(C4>0,M4-L4,0))","v":0},{"$f":"SUMIFS('VSAOI data'!$P:$P,'VSAOI data'!$Z:$Z,YEAR($B4)&MONTH($B4))","v":0},{"$f":"SUMIFS('VSAOI data'!$Q:$Q,'VSAOI data'!$Z:$Z,YEAR($B4)&MONTH($B4))","v":0},{"$f":"COUNTIFS('VSAOI data'!$AB:$AB,YEAR($B4)&MONTH($B4)&\"Tab4G*\")","v":0},{"$f":"IFERROR((SUMIFS('VSAOI data'!$J:$J,'VSAOI data'!$AC:$AC,YEAR($B4)&MONTH($B4))+SUMIFS('VSAOI data'!$L:$L,'VSAOI data'!$AC:$AC,YEAR($B4)&MONTH($B4)))/COUNTIFS('VSAOI data'!$AC:$AC,YEAR($B4)&MONTH($B4)),\"-\")","v":"-"},{"$f":"IFERROR((SUMIFS('VSAOI data'!$J:$J,'VSAOI data'!$AC:$AC,YEAR($B4)&MONTH($B4))+SUMIFS('VSAOI data'!$L:$L,'VSAOI data'!$AC:$AC,YEAR($B4)&MONTH($B4)))/SUMIFS('VSAOI data'!$Q:$Q,'VSAOI data'!$AC:$AC,YEAR($B4)&MONTH($B4)),\"-\")","v":"-"},null,{"$f":"SUMIFS('VSAOI data'!$J:$J,'VSAOI data'!$Z:$Z,YEAR($B4)&MONTH($B4),'VSAOI data'!$X:$X,1)+SUMIFS('VSAOI data'!$L:$L,'VSAOI data'!$Z:$Z,YEAR($B4)&MONTH($B4),'VSAOI data'!$X:$X,1)","v":0}]
[null,{"$f":"DATE(YEAR(B4),MONTH(B4)+2,0)","v":"1900-03-31"},{"$f":"SUMIFS('VSAOI data'!$J:$J,'VSAOI data'!$Z:$Z,YEAR($B5)&MONTH($B5))+SUMIFS('VSAOI data'!$L:$L,'VSAOI data'!$Z:$Z,YEAR($B5)&MONTH($B5))","v":0},{"$f":"SUMIFS('VSAOI data'!$AQ:$AQ,'VSAOI data'!$AA:$AA,YEAR($B5)&MONTH($B5)&\"D*\")+SUMIFS('VSAOI data'!$AQ:$AQ,'VSAOI data'!$AA:$AA,YEAR($B5)&MONTH($B5)&\"C*\")+SUMIFS('VSAOI data'!$AQ:$AQ,'VSAOI data'!$AA:$AA,YEAR($B5)&MONTH($B5)&\"A*\")","v":0},{"$f":"SUMIFS('VSAOI data'!$AP:$AP,'VSAOI data'!$AA:$AA,YEAR($B5)&MONTH($B5)&\"D*\")+SUMIFS('VSAOI data'!$AP:$AP,'VSAOI data'!$AA:$AA,YEAR($B5)&MONTH($B5)&\"C*\")+SUMIF('VSAOI data'!$AA:$AA,YEAR($B5)&MONTH($B5)&\"A*\",'VSAOI data'!$AP:$AP)","v":0},0,{"$f":"SUMIFS('VSAOI data'!$K:$K,'VSAOI data'!$Z:$Z,YEAR($B5)&MONTH($B5))+SUMIFS('VSAOI data'!$M:$M,'VSAOI data'!$Z:$Z,YEAR($B5)&MONTH($B5))","v":0},0,{"$f":"COUNTIFS('VSAOI data'!$AB:$AB,YEAR($B5)&MONTH($B5)&\"Tab*Ir\")-COUNTIFS('VSAOI data'!$AB:$AB,YEAR($B5)&MONTH($B5)&\"Tab4*Ir\")","v":0},{"$f":"COUNTIFS('VSAOI data'!$AB:$AB,YEAR($B5)&MONTH($B5)&\"Tab*Nav\")-COUNTIFS('VSAOI data'!$AB:$AB,YEAR($B5)&MONTH($B5)&\"Tab4*Nav\")","v":0},{"$f":"SUMIFS('VSAOI data'!$AJ:$AJ,'VSAOI data'!$AA:$AA,YEAR($B5)&MONTH($B5)&\"D*\")+SUMIFS('VSAOI data'!$AJ:$AJ,'VSAOI data'!$AA:$AA,YEAR($B5)&MONTH($B5)&\"C*\")+SUMIFS('VSAOI data'!$AJ:$AJ,'VSAOI data'!$AA:$AA,YEAR($B5)&MONTH($B5)&\"A*\")","v":0},{"$f":"SUMIFS('VSAOI data'!$N:$N,'VSAOI data'!$Z:$Z,YEAR($B5)&MONTH($B5))","v":0},{"$f":"SUMIFS('VSAOI data'!$AN:$AN,'VSAOI data'!$AA:$AA,YEAR($B5)&MONTH($B5)&\"D*\")+SUMIFS('VSAOI data'!$AN:$AN,'VSAOI data'!$AA:$AA,YEAR($B5)&MONTH($B5)&\"C*\")+SUMIFS('VSAOI data'!$AN:$AN,'VSAOI data'!$AA:$AA,YEAR($B5)&MONTH($B5)&\"A*\")","v":0},{"$f":"IF('Sakuma lapa'!$J$8=\"iepriekšējo mēnesi\",IF(C6>0,M5-L6,0),IF(C5>0,M5-L5,0))","v":0},{"$f":"SUMIFS('VSAOI data'!$P:$P,'VSAOI data'!$Z:$Z,YEAR($B5)&MONTH($B5))","v":0},{"$f":"SUMIFS('VSAOI data'!$Q:$Q,'VSAOI data'!$Z:$Z,YEAR($B5)&MONTH($B5))","v":0},{"$f":"COUNTIFS('VSAOI data'!$AB:$AB,YEAR($B5)&MONTH($B5)&\"Tab4G*\")","v":0},{"$f":"IFERROR((SUMIFS('VSAOI data'!$J:$J,'VSAOI data'!$AC:$AC,YEAR($B5)&MONTH($B5))+SUMIFS('VSAOI data'!$L:$L,'VSAOI data'!$AC:$AC,YEAR($B5)&MONTH($B5)))/COUNTIFS('VSAOI data'!$AC:$AC,YEAR($B5)&MONTH($B5)),\"-\")","v":"-"},{"$f":"IFERROR((SUMIFS('VSAOI data'!$J:$J,'VSAOI data'!$AC:$AC,YEAR($B5)&MONTH($B5))+SUMIFS('VSAOI data'!$L:$L,'VSAOI data'!$AC:$AC,YEAR($B5)&MONTH($B5)))/SUMIFS('VSAOI data'!$Q:$Q,'VSAOI data'!$AC:$AC,YEAR($B5)&MONTH($B5)),\"-\")","v":"-"},null,{"$f":"SUMIFS('VSAOI data'!$J:$J,'VSAOI data'!$Z:$Z,YEAR($B5)&MONTH($B5),'VSAOI data'!$X:$X,1)+SUMIFS('VSAOI data'!$L:$L,'VSAOI data'!$Z:$Z,YEAR($B5)&MONTH($B5),'VSAOI data'!$X:$X,1)","v":0}]
[null,"1900-04-30",{"$f":"SUMIFS('VSAOI data'!$J:$J,'VSAOI data'!$Z:$Z,YEAR($B6)&MONTH($B6))+SUMIFS('VSAOI data'!$L:$L,'VSAOI data'!$Z:$Z,YEAR($B6)&MONTH($B6))","v":0},{"$f":"SUMIFS('VSAOI data'!$AQ:$AQ,'VSAOI data'!$AA:$AA,YEAR($B6)&MONTH($B6)&\"D*\")+SUMIFS('VSAOI data'!$AQ:$AQ,'VSAOI data'!$AA:$AA,YEAR($B6)&MONTH($B6)&\"C*\")+SUMIFS('VSAOI data'!$AQ:$AQ,'VSAOI data'!$AA:$AA,YEAR($B6)&MONTH($B6)&\"A*\")","v":0},{"$f":"SUMIFS('VSAOI data'!$AP:$AP,'VSAOI data'!$AA:$AA,YEAR($B6)&MONTH($B6)&\"D*\")+SUMIFS('VSAOI data'!$AP:$AP,'VSAOI data'!$AA:$AA,YEAR($B6)&MONTH($B6)&\"C*\")+SUMIF('VSAOI data'!$AA:$AA,YEAR($B6)&MONTH($B6)&\"A*\",'VSAOI data'!$AP:$AP)","v":0},0,{"$f":"SUMIFS('VSAOI data'!$K:$K,'VSAOI data'!$Z:$Z,YEAR($B6)&MONTH($B6))+SUMIFS('VSAOI data'!$M:$M,'VSAOI data'!$Z:$Z,YEAR($B6)&MONTH($B6))","v":0},0,{"$f":"COUNTIFS('VSAOI data'!$AB:$AB,YEAR($B6)&MONTH($B6)&\"Tab*Ir\")-COUNTIFS('VSAOI data'!$AB:$AB,YEAR($B6)&MONTH($B6)&\"Tab4*Ir\")","v":0},{"$f":"COUNTIFS('VSAOI data'!$AB:$AB,YEAR($B6)&MONTH($B6)&\"Tab*Nav\")-COUNTIFS('VSAOI data'!$AB:$AB,YEAR($B6)&MONTH($B6)&\"Tab4*Nav\")","v":0},{"$f":"SUMIFS('VSAOI data'!$AJ:$AJ,'VSAOI data'!$AA:$AA,YEAR($B6)&MONTH($B6)&\"D*\")+SUMIFS('VSAOI data'!$AJ:$AJ,'VSAOI data'!$AA:$AA,YEAR($B6)&MONTH($B6)&\"C*\")+SUMIFS('VSAOI data'!$AJ:$AJ,'VSAOI data'!$AA:$AA,YEAR($B6)&MONTH($B6)&\"A*\")","v":0},{"$f":"SUMIFS('VSAOI data'!$N:$N,'VSAOI data'!$Z:$Z,YEAR($B6)&MONTH($B6))","v":0},{"$f":"SUMIFS('VSAOI data'!$AN:$AN,'VSAOI data'!$AA:$AA,YEAR($B6)&MONTH($B6)&\"D*\")+SUMIFS('VSAOI data'!$AN:$AN,'VSAOI data'!$AA:$AA,YEAR($B6)&MONTH($B6)&\"C*\")+SUMIFS('VSAOI data'!$AN:$AN,'VSAOI data'!$AA:$AA,YEAR($B6)&MONTH($B6)&\"A*\")","v":0},{"$f":"IF('Sakuma lapa'!$J$8=\"iepriekšējo mēnesi\",IF(C7>0,M6-L7,0),IF(C6>0,M6-L6,0))","v":0},{"$f":"SUMIFS('VSAOI data'!$P:$P,'VSAOI data'!$Z:$Z,YEAR($B6)&MONTH($B6))","v":0},{"$f":"SUMIFS('VSAOI data'!$Q:$Q,'VSAOI data'!$Z:$Z,YEAR($B6)&MONTH($B6))","v":0},{"$f":"COUNTIFS('VSAOI data'!$AB:$AB,YEAR($B6)&MONTH($B6)&\"Tab4G*\")","v":0},{"$f":"IFERROR((SUMIFS('VSAOI data'!$J:$J,'VSAOI data'!$AC:$AC,YEAR($B6)&MONTH($B6))+SUMIFS('VSAOI data'!$L:$L,'VSAOI data'!$AC:$AC,YEAR($B6)&MONTH($B6)))/COUNTIFS('VSAOI data'!$AC:$AC,YEAR($B6)&MONTH($B6)),\"-\")","v":"-"},{"$f":"IFERROR((SUMIFS('VSAOI data'!$J:$J,'VSAOI data'!$AC:$AC,YEAR($B6)&MONTH($B6))+SUMIFS('VSAOI data'!$L:$L,'VSAOI data'!$AC:$AC,YEAR($B6)&MONTH($B6)))/SUMIFS('VSAOI data'!$Q:$Q,'VSAOI data'!$AC:$AC,YEAR($B6)&MONTH($B6)),\"-\")","v":"-"},null,{"$f":"SUMIFS('VSAOI data'!$J:$J,'VSAOI data'!$Z:$Z,YEAR($B6)&MONTH($B6),'VSAOI data'!$X:$X,1)+SUMIFS('VSAOI data'!$L:$L,'VSAOI data'!$Z:$Z,YEAR($B6)&MONTH($B6),'VSAOI data'!$X:$X,1)","v":0}]
[null,"1900-05-31",{"$f":"SUMIFS('VSAOI data'!$J:$J,'VSAOI data'!$Z:$Z,YEAR($B7)&MONTH($B7))+SUMIFS('VSAOI data'!$L:$L,'VSAOI data'!$Z:$Z,YEAR($B7)&MONTH($B7))","v":0},{"$f":"SUMIFS('VSAOI data'!$AQ:$AQ,'VSAOI data'!$AA:$AA,YEAR($B7)&MONTH($B7)&\"D*\")+SUMIFS('VSAOI data'!$AQ:$AQ,'VSAOI data'!$AA:$AA,YEAR($B7)&MONTH($B7)&\"C*\")+SUMIFS('VSAOI data'!$AQ:$AQ,'VSAOI data'!$AA:$AA,YEAR($B7)&MONTH($B7)&\"A*\")","v":0},{"$f":"SUMIFS('VSAOI data'!$AP:$AP,'VSAOI data'!$AA:$AA,YEAR($B7)&MONTH($B7)&\"D*\")+SUMIFS('VSAOI data'!$AP:$AP,'VSAOI data'!$AA:$AA,YEAR($B7)&MONTH($B7)&\"C*\")+SUMIF('VSAOI data'!$AA:$AA,YEAR($B7)&MONTH($B7)&\"A*\",'VSAOI data'!$AP:$AP)","v":0},0,{"$f":"SUMIFS('VSAOI data'!$K:$K,'VSAOI data'!$Z:$Z,YEAR($B7)&MONTH($B7))+SUMIFS('VSAOI data'!$M:$M,'VSAOI data'!$Z:$Z,YEAR($B7)&MONTH($B7))","v":0},0,{"$f":"COUNTIFS('VSAOI data'!$AB:$AB,YEAR($B7)&MONTH($B7)&\"Tab*Ir\")-COUNTIFS('VSAOI data'!$AB:$AB,YEAR($B7)&MONTH($B7)&\"Tab4*Ir\")","v":0},{"$f":"COUNTIFS('VSAOI data'!$AB:$AB,YEAR($B7)&MONTH($B7)&\"Tab*Nav\")-COUNTIFS('VSAOI data'!$AB:$AB,YEAR($B7)&MONTH($B7)&\"Tab4*Nav\")","v":0},{"$f":"SUMIFS('VSAOI data'!$AJ:$AJ,'VSAOI data'!$AA:$AA,YEAR($B7)&MONTH($B7)&\"D*\")+SUMIFS('VSAOI data'!$AJ:$AJ,'VSAOI data'!$AA:$AA,YEAR($B7)&MONTH($B7)&\"C*\")+SUMIFS('VSAOI data'!$AJ:$AJ,'VSAOI data'!$AA:$AA,YEAR($B7)&MONTH($B7)&\"A*\")","v":0},{"$f":"SUMIFS('VSAOI data'!$N:$N,'VSAOI data'!$Z:$Z,YEAR($B7)&MONTH($B7))","v":0},{"$f":"SUMIFS('VSAOI data'!$AN:$AN,'VSAOI data'!$AA:$AA,YEAR($B7)&MONTH($B7)&\"D*\")+SUMIFS('VSAOI data'!$AN:$AN,'VSAOI data'!$AA:$AA,YEAR($B7)&MONTH($B7)&\"C*\")+SUMIFS('VSAOI data'!$AN:$AN,'VSAOI data'!$AA:$AA,YEAR($B7)&MONTH($B7)&\"A*\")","v":0},{"$f":"IF('Sakuma lapa'!$J$8=\"iepriekšējo mēnesi\",IF(C8>0,M7-L8,0),IF(C7>0,M7-L7,0))","v":0},{"$f":"SUMIFS('VSAOI data'!$P:$P,'VSAOI data'!$Z:$Z,YEAR($B7)&MONTH($B7))","v":0},{"$f":"SUMIFS('VSAOI data'!$Q:$Q,'VSAOI data'!$Z:$Z,YEAR($B7)&MONTH($B7))","v":0},{"$f":"COUNTIFS('VSAOI data'!$AB:$AB,YEAR($B7)&MONTH($B7)&\"Tab4G*\")","v":0},{"$f":"IFERROR((SUMIFS('VSAOI data'!$J:$J,'VSAOI data'!$AC:$AC,YEAR($B7)&MONTH($B7))+SUMIFS('VSAOI data'!$L:$L,'VSAOI data'!$AC:$AC,YEAR($B7)&MONTH($B7)))/COUNTIFS('VSAOI data'!$AC:$AC,YEAR($B7)&MONTH($B7)),\"-\")","v":"-"},{"$f":"IFERROR((SUMIFS('VSAOI data'!$J:$J,'VSAOI data'!$AC:$AC,YEAR($B7)&MONTH($B7))+SUMIFS('VSAOI data'!$L:$L,'VSAOI data'!$AC:$AC,YEAR($B7)&MONTH($B7)))/SUMIFS('VSAOI data'!$Q:$Q,'VSAOI data'!$AC:$AC,YEAR($B7)&MONTH($B7)),\"-\")","v":"-"},null,{"$f":"SUMIFS('VSAOI data'!$J:$J,'VSAOI data'!$Z:$Z,YEAR($B7)&MONTH($B7),'VSAOI data'!$X:$X,1)+SUMIFS('VSAOI data'!$L:$L,'VSAOI data'!$Z:$Z,YEAR($B7)&MONTH($B7),'VSAOI data'!$X:$X,1)","v":0}]
[null,"1900-06-30",{"$f":"SUMIFS('VSAOI data'!$J:$J,'VSAOI data'!$Z:$Z,YEAR($B8)&MONTH($B8))+SUMIFS('VSAOI data'!$L:$L,'VSAOI data'!$Z:$Z,YEAR($B8)&MONTH($B8))","v":0},{"$f":"SUMIFS('VSAOI data'!$AQ:$AQ,'VSAOI data'!$AA:$AA,YEAR($B8)&MONTH($B8)&\"D*\")+SUMIFS('VSAOI data'!$AQ:$AQ,'VSAOI data'!$AA:$AA,YEAR($B8)&MONTH($B8)&\"C*\")+SUMIFS('VSAOI data'!$AQ:$AQ,'VSAOI data'!$AA:$AA,YEAR($B8)&MONTH($B8)&\"A*\")","v":0},{"$f":"SUMIFS('VSAOI data'!$AP:$AP,'VSAOI data'!$AA:$AA,YEAR($B8)&MONTH($B8)&\"D*\")+SUMIFS('VSAOI data'!$AP:$AP,'VSAOI data'!$AA:$AA,YEAR($B8)&MONTH($B8)&\"C*\")+SUMIF('VSAOI data'!$AA:$AA,YEAR($B8)&MONTH($B8)&\"A*\",'VSAOI data'!$AP:$AP)","v":0},0,{"$f":"SUMIFS('VSAOI data'!$K:$K,'VSAOI data'!$Z:$Z,YEAR($B8)&MONTH($B8))+SUMIFS('VSAOI data'!$M:$M,'VSAOI data'!$Z:$Z,YEAR($B8)&MONTH($B8))","v":0},0,{"$f":"COUNTIFS('VSAOI data'!$AB:$AB,YEAR($B8)&MONTH($B8)&\"Tab*Ir\")-COUNTIFS('VSAOI data'!$AB:$AB,YEAR($B8)&MONTH($B8)&\"Tab4*Ir\")","v":0},{"$f":"COUNTIFS('VSAOI data'!$AB:$AB,YEAR($B8)&MONTH($B8)&\"Tab*Nav\")-COUNTIFS('VSAOI data'!$AB:$AB,YEAR($B8)&MONTH($B8)&\"Tab4*Nav\")","v":0},{"$f":"SUMIFS('VSAOI data'!$AJ:$AJ,'VSAOI data'!$AA:$AA,YEAR($B8)&MONTH($B8)&\"D*\")+SUMIFS('VSAOI data'!$AJ:$AJ,'VSAOI data'!$AA:$AA,YEAR($B8)&MONTH($B8)&\"C*\")+SUMIFS('VSAOI data'!$AJ:$AJ,'VSAOI data'!$AA:$AA,YEAR($B8)&MONTH($B8)&\"A*\")","v":0},{"$f":"SUMIFS('VSAOI data'!$N:$N,'VSAOI data'!$Z:$Z,YEAR($B8)&MONTH($B8))","v":0},{"$f":"SUMIFS('VSAOI data'!$AN:$AN,'VSAOI data'!$AA:$AA,YEAR($B8)&MONTH($B8)&\"D*\")+SUMIFS('VSAOI data'!$AN:$AN,'VSAOI data'!$AA:$AA,YEAR($B8)&MONTH($B8)&\"C*\")+SUMIFS('VSAOI data'!$AN:$AN,'VSAOI data'!$AA:$AA,YEAR($B8)&MONTH($B8)&\"A*\")","v":0},{"$f":"IF('Sakuma lapa'!$J$8=\"iepriekšējo mēnesi\",IF(C9>0,M8-L9,0),IF(C8>0,M8-L8,0))","v":0},{"$f":"SUMIFS('VSAOI data'!$P:$P,'VSAOI data'!$Z:$Z,YEAR($B8)&MONTH($B8))","v":0},{"$f":"SUMIFS('VSAOI data'!$Q:$Q,'VSAOI data'!$Z:$Z,YEAR($B8)&MONTH($B8))","v":0},{"$f":"COUNTIFS('VSAOI data'!$AB:$AB,YEAR($B8)&MONTH($B8)&\"Tab4G*\")","v":0},{"$f":"IFERROR((SUMIFS('VSAOI data'!$J:$J,'VSAOI data'!$AC:$AC,YEAR($B8)&MONTH($B8))+SUMIFS('VSAOI data'!$L:$L,'VSAOI data'!$AC:$AC,YEAR($B8)&MONTH($B8)))/COUNTIFS('VSAOI data'!$AC:$AC,YEAR($B8)&MONTH($B8)),\"-\")","v":"-"},{"$f":"IFERROR((SUMIFS('VSAOI data'!$J:$J,'VSAOI data'!$AC:$AC,YEAR($B8)&MONTH($B8))+SUMIFS('VSAOI data'!$L:$L,'VSAOI data'!$AC:$AC,YEAR($B8)&MONTH($B8)))/SUMIFS('VSAOI data'!$Q:$Q,'VSAOI data'!$AC:$AC,YEAR($B8)&MONTH($B8)),\"-\")","v":"-"},null,{"$f":"SUMIFS('VSAOI data'!$J:$J,'VSAOI data'!$Z:$Z,YEAR($B8)&MONTH($B8),'VSAOI data'!$X:$X,1)+SUMIFS('VSAOI data'!$L:$L,'VSAOI data'!$Z:$Z,YEAR($B8)&MONTH($B8),'VSAOI data'!$X:$X,1)","v":0}]
[null,"1900-07-31",{"$f":"SUMIFS('VSAOI data'!$J:$J,'VSAOI data'!$Z:$Z,YEAR($B9)&MONTH($B9))+SUMIFS('VSAOI data'!$L:$L,'VSAOI data'!$Z:$Z,YEAR($B9)&MONTH($B9))","v":0},{"$f":"SUMIFS('VSAOI data'!$AQ:$AQ,'VSAOI data'!$AA:$AA,YEAR($B9)&MONTH($B9)&\"D*\")+SUMIFS('VSAOI data'!$AQ:$AQ,'VSAOI data'!$AA:$AA,YEAR($B9)&MONTH($B9)&\"C*\")+SUMIFS('VSAOI data'!$AQ:$AQ,'VSAOI data'!$AA:$AA,YEAR($B9)&MONTH($B9)&\"A*\")","v":0},{"$f":"SUMIFS('VSAOI data'!$AP:$AP,'VSAOI data'!$AA:$AA,YEAR($B9)&MONTH($B9)&\"D*\")+SUMIFS('VSAOI data'!$AP:$AP,'VSAOI data'!$AA:$AA,YEAR($B9)&MONTH($B9)&\"C*\")+SUMIF('VSAOI data'!$AA:$AA,YEAR($B9)&MONTH($B9)&\"A*\",'VSAOI data'!$AP:$AP)","v":0},0,{"$f":"SUMIFS('VSAOI data'!$K:$K,'VSAOI data'!$Z:$Z,YEAR($B9)&MONTH($B9))+SUMIFS('VSAOI data'!$M:$M,'VSAOI data'!$Z:$Z,YEAR($B9)&MONTH($B9))","v":0},0,{"$f":"COUNTIFS('VSAOI data'!$AB:$AB,YEAR($B9)&MONTH($B9)&\"Tab*Ir\")-COUNTIFS('VSAOI data'!$AB:$AB,YEAR($B9)&MONTH($B9)&\"Tab4*Ir\")","v":0},{"$f":"COUNTIFS('VSAOI data'!$AB:$AB,YEAR($B9)&MONTH($B9)&\"Tab*Nav\")-COUNTIFS('VSAOI data'!$AB:$AB,YEAR($B9)&MONTH($B9)&\"Tab4*Nav\")","v":0},{"$f":"SUMIFS('VSAOI data'!$AJ:$AJ,'VSAOI data'!$AA:$AA,YEAR($B9)&MONTH($B9)&\"D*\")+SUMIFS('VSAOI data'!$AJ:$AJ,'VSAOI data'!$AA:$AA,YEAR($B9)&MONTH($B9)&\"C*\")+SUMIFS('VSAOI data'!$AJ:$AJ,'VSAOI data'!$AA:$AA,YEAR($B9)&MONTH($B9)&\"A*\")","v":0},{"$f":"SUMIFS('VSAOI data'!$N:$N,'VSAOI data'!$Z:$Z,YEAR($B9)&MONTH($B9))","v":0},{"$f":"SUMIFS('VSAOI data'!$AN:$AN,'VSAOI data'!$AA:$AA,YEAR($B9)&MONTH($B9)&\"D*\")+SUMIFS('VSAOI data'!$AN:$AN,'VSAOI data'!$AA:$AA,YEAR($B9)&MONTH($B9)&\"C*\")+SUMIFS('VSAOI data'!$AN:$AN,'VSAOI data'!$AA:$AA,YEAR($B9)&MONTH($B9)&\"A*\")","v":0},{"$f":"IF('Sakuma lapa'!$J$8=\"iepriekšējo mēnesi\",IF(C10>0,M9-L10,0),IF(C9>0,M9-L9,0))","v":0},{"$f":"SUMIFS('VSAOI data'!$P:$P,'VSAOI data'!$Z:$Z,YEAR($B9)&MONTH($B9))","v":0},{"$f":"SUMIFS('VSAOI data'!$Q:$Q,'VSAOI data'!$Z:$Z,YEAR($B9)&MONTH($B9))","v":0},{"$f":"COUNTIFS('VSAOI data'!$AB:$AB,YEAR($B9)&MONTH($B9)&\"Tab4G*\")","v":0},{"$f":"IFERROR((SUMIFS('VSAOI data'!$J:$J,'VSAOI data'!$AC:$AC,YEAR($B9)&MONTH($B9))+SUMIFS('VSAOI data'!$L:$L,'VSAOI data'!$AC:$AC,YEAR($B9)&MONTH($B9)))/COUNTIFS('VSAOI data'!$AC:$AC,YEAR($B9)&MONTH($B9)),\"-\")","v":"-"},{"$f":"IFERROR((SUMIFS('VSAOI data'!$J:$J,'VSAOI data'!$AC:$AC,YEAR($B9)&MONTH($B9))+SUMIFS('VSAOI data'!$L:$L,'VSAOI data'!$AC:$AC,YEAR($B9)&MONTH($B9)))/SUMIFS('VSAOI data'!$Q:$Q,'VSAOI data'!$AC:$AC,YEAR($B9)&MONTH($B9)),\"-\")","v":"-"},null,{"$f":"SUMIFS('VSAOI data'!$J:$J,'VSAOI data'!$Z:$Z,YEAR($B9)&MONTH($B9),'VSAOI data'!$X:$X,1)+SUMIFS('VSAOI data'!$L:$L,'VSAOI data'!$Z:$Z,YEAR($B9)&MONTH($B9),'VSAOI data'!$X:$X,1)","v":0}]
[null,"1900-08-31",{"$f":"SUMIFS('VSAOI data'!$J:$J,'VSAOI data'!$Z:$Z,YEAR($B10)&MONTH($B10))+SUMIFS('VSAOI data'!$L:$L,'VSAOI data'!$Z:$Z,YEAR($B10)&MONTH($B10))","v":0},{"$f":"SUMIFS('VSAOI data'!$AQ:$AQ,'VSAOI data'!$AA:$AA,YEAR($B10)&MONTH($B10)&\"D*\")+SUMIFS('VSAOI data'!$AQ:$AQ,'VSAOI data'!$AA:$AA,YEAR($B10)&MONTH($B10)&\"C*\")+SUMIFS('VSAOI data'!$AQ:$AQ,'VSAOI data'!$AA:$AA,YEAR($B10)&MONTH($B10)&\"A*\")","v":0},{"$f":"SUMIFS('VSAOI data'!$AP:$AP,'VSAOI data'!$AA:$AA,YEAR($B10)&MONTH($B10)&\"D*\")+SUMIFS('VSAOI data'!$AP:$AP,'VSAOI data'!$AA:$AA,YEAR($B10)&MONTH($B10)&\"C*\")+SUMIF('VSAOI data'!$AA:$AA,YEAR($B10)&MONTH($B10)&\"A*\",'VSAOI data'!$AP:$AP)","v":0},0,{"$f":"SUMIFS('VSAOI data'!$K:$K,'VSAOI data'!$Z:$Z,YEAR($B10)&MONTH($B10))+SUMIFS('VSAOI data'!$M:$M,'VSAOI data'!$Z:$Z,YEAR($B10)&MONTH($B10))","v":0},0,{"$f":"COUNTIFS('VSAOI data'!$AB:$AB,YEAR($B10)&MONTH($B10)&\"Tab*Ir\")-COUNTIFS('VSAOI data'!$AB:$AB,YEAR($B10)&MONTH($B10)&\"Tab4*Ir\")","v":0},{"$f":"COUNTIFS('VSAOI data'!$AB:$AB,YEAR($B10)&MONTH($B10)&\"Tab*Nav\")-COUNTIFS('VSAOI data'!$AB:$AB,YEAR($B10)&MONTH($B10)&\"Tab4*Nav\")","v":0},{"$f":"SUMIFS('VSAOI data'!$AJ:$AJ,'VSAOI data'!$AA:$AA,YEAR($B10)&MONTH($B10)&\"D*\")+SUMIFS('VSAOI data'!$AJ:$AJ,'VSAOI data'!$AA:$AA,YEAR($B10)&MONTH($B10)&\"C*\")+SUMIFS('VSAOI data'!$AJ:$AJ,'VSAOI data'!$AA:$AA,YEAR($B10)&MONTH($B10)&\"A*\")","v":0},{"$f":"SUMIFS('VSAOI data'!$N:$N,'VSAOI data'!$Z:$Z,YEAR($B10)&MONTH($B10))","v":0},{"$f":"SUMIFS('VSAOI data'!$AN:$AN,'VSAOI data'!$AA:$AA,YEAR($B10)&MONTH($B10)&\"D*\")+SUMIFS('VSAOI data'!$AN:$AN,'VSAOI data'!$AA:$AA,YEAR($B10)&MONTH($B10)&\"C*\")+SUMIFS('VSAOI data'!$AN:$AN,'VSAOI data'!$AA:$AA,YEAR($B10)&MONTH($B10)&\"A*\")","v":0},{"$f":"IF('Sakuma lapa'!$J$8=\"iepriekšējo mēnesi\",IF(C11>0,M10-L11,0),IF(C10>0,M10-L10,0))","v":0},{"$f":"SUMIFS('VSAOI data'!$P:$P,'VSAOI data'!$Z:$Z,YEAR($B10)&MONTH($B10))","v":0},{"$f":"SUMIFS('VSAOI data'!$Q:$Q,'VSAOI data'!$Z:$Z,YEAR($B10)&MONTH($B10))","v":0},{"$f":"COUNTIFS('VSAOI data'!$AB:$AB,YEAR($B10)&MONTH($B10)&\"Tab4G*\")","v":0},{"$f":"IFERROR((SUMIFS('VSAOI data'!$J:$J,'VSAOI data'!$AC:$AC,YEAR($B10)&MONTH($B10))+SUMIFS('VSAOI data'!$L:$L,'VSAOI data'!$AC:$AC,YEAR($B10)&MONTH($B10)))/COUNTIFS('VSAOI data'!$AC:$AC,YEAR($B10)&MONTH($B10)),\"-\")","v":"-"},{"$f":"IFERROR((SUMIFS('VSAOI data'!$J:$J,'VSAOI data'!$AC:$AC,YEAR($B10)&MONTH($B10))+SUMIFS('VSAOI data'!$L:$L,'VSAOI data'!$AC:$AC,YEAR($B10)&MONTH($B10)))/SUMIFS('VSAOI data'!$Q:$Q,'VSAOI data'!$AC:$AC,YEAR($B10)&MONTH($B10)),\"-\")","v":"-"},null,{"$f":"SUMIFS('VSAOI data'!$J:$J,'VSAOI data'!$Z:$Z,YEAR($B10)&MONTH($B10),'VSAOI data'!$X:$X,1)+SUMIFS('VSAOI data'!$L:$L,'VSAOI data'!$Z:$Z,YEAR($B10)&MONTH($B10),'VSAOI data'!$X:$X,1)","v":0}]
[null,"1900-09-30",{"$f":"SUMIFS('VSAOI data'!$J:$J,'VSAOI data'!$Z:$Z,YEAR($B11)&MONTH($B11))+SUMIFS('VSAOI data'!$L:$L,'VSAOI data'!$Z:$Z,YEAR($B11)&MONTH($B11))","v":0},{"$f":"SUMIFS('VSAOI data'!$AQ:$AQ,'VSAOI data'!$AA:$AA,YEAR($B11)&MONTH($B11)&\"D*\")+SUMIFS('VSAOI data'!$AQ:$AQ,'VSAOI data'!$AA:$AA,YEAR($B11)&MONTH($B11)&\"C*\")+SUMIFS('VSAOI data'!$AQ:$AQ,'VSAOI data'!$AA:$AA,YEAR($B11)&MONTH($B11)&\"A*\")","v":0},{"$f":"SUMIFS('VSAOI data'!$AP:$AP,'VSAOI data'!$AA:$AA,YEAR($B11)&MONTH($B11)&\"D*\")+SUMIFS('VSAOI data'!$AP:$AP,'VSAOI data'!$AA:$AA,YEAR($B11)&MONTH($B11)&\"C*\")+SUMIF('VSAOI data'!$AA:$AA,YEAR($B11)&MONTH($B11)&\"A*\",'VSAOI data'!$AP:$AP)","v":0},0,{"$f":"SUMIFS('VSAOI data'!$K:$K,'VSAOI data'!$Z:$Z,YEAR($B11)&MONTH($B11))+SUMIFS('VSAOI data'!$M:$M,'VSAOI data'!$Z:$Z,YEAR($B11)&MONTH($B11))","v":0},0,{"$f":"COUNTIFS('VSAOI data'!$AB:$AB,YEAR($B11)&MONTH($B11)&\"Tab*Ir\")-COUNTIFS('VSAOI data'!$AB:$AB,YEAR($B11)&MONTH($B11)&\"Tab4*Ir\")","v":0},{"$f":"COUNTIFS('VSAOI data'!$AB:$AB,YEAR($B11)&MONTH($B11)&\"Tab*Nav\")-COUNTIFS('VSAOI data'!$AB:$AB,YEAR($B11)&MONTH($B11)&\"Tab4*Nav\")","v":0},{"$f":"SUMIFS('VSAOI data'!$AJ:$AJ,'VSAOI data'!$AA:$AA,YEAR($B11)&MONTH($B11)&\"D*\")+SUMIFS('VSAOI data'!$AJ:$AJ,'VSAOI data'!$AA:$AA,YEAR($B11)&MONTH($B11)&\"C*\")+SUMIFS('VSAOI data'!$AJ:$AJ,'VSAOI data'!$AA:$AA,YEAR($B11)&MONTH($B11)&\"A*\")","v":0},{"$f":"SUMIFS('VSAOI data'!$N:$N,'VSAOI data'!$Z:$Z,YEAR($B11)&MONTH($B11))","v":0},{"$f":"SUMIFS('VSAOI data'!$AN:$AN,'VSAOI data'!$AA:$AA,YEAR($B11)&MONTH($B11)&\"D*\")+SUMIFS('VSAOI data'!$AN:$AN,'VSAOI data'!$AA:$AA,YEAR($B11)&MONTH($B11)&\"C*\")+SUMIFS('VSAOI data'!$AN:$AN,'VSAOI data'!$AA:$AA,YEAR($B11)&MONTH($B11)&\"A*\")","v":0},{"$f":"IF('Sakuma lapa'!$J$8=\"iepriekšējo mēnesi\",IF(C12>0,M11-L12,0),IF(C11>0,M11-L11,0))","v":0},{"$f":"SUMIFS('VSAOI data'!$P:$P,'VSAOI data'!$Z:$Z,YEAR($B11)&MONTH($B11))","v":0},{"$f":"SUMIFS('VSAOI data'!$Q:$Q,'VSAOI data'!$Z:$Z,YEAR($B11)&MONTH($B11))","v":0},{"$f":"COUNTIFS('VSAOI data'!$AB:$AB,YEAR($B11)&MONTH($B11)&\"Tab4G*\")","v":0},{"$f":"IFERROR((SUMIFS('VSAOI data'!$J:$J,'VSAOI data'!$AC:$AC,YEAR($B11)&MONTH($B11))+SUMIFS('VSAOI data'!$L:$L,'VSAOI data'!$AC:$AC,YEAR($B11)&MONTH($B11)))/COUNTIFS('VSAOI data'!$AC:$AC,YEAR($B11)&MONTH($B11)),\"-\")","v":"-"},{"$f":"IFERROR((SUMIFS('VSAOI data'!$J:$J,'VSAOI data'!$AC:$AC,YEAR($B11)&MONTH($B11))+SUMIFS('VSAOI data'!$L:$L,'VSAOI data'!$AC:$AC,YEAR($B11)&MONTH($B11)))/SUMIFS('VSAOI data'!$Q:$Q,'VSAOI data'!$AC:$AC,YEAR($B11)&MONTH($B11)),\"-\")","v":"-"},null,{"$f":"SUMIFS('VSAOI data'!$J:$J,'VSAOI data'!$Z:$Z,YEAR($B11)&MONTH($B11),'VSAOI data'!$X:$X,1)+SUMIFS('VSAOI data'!$L:$L,'VSAOI data'!$Z:$Z,YEAR($B11)&MONTH($B11),'VSAOI data'!$X:$X,1)","v":0}]
[null,"1900-10-31",{"$f":"SUMIFS('VSAOI data'!$J:$J,'VSAOI data'!$Z:$Z,YEAR($B12)&MONTH($B12))+SUMIFS('VSAOI data'!$L:$L,'VSAOI data'!$Z:$Z,YEAR($B12)&MONTH($B12))","v":0},{"$f":"SUMIFS('VSAOI data'!$AQ:$AQ,'VSAOI data'!$AA:$AA,YEAR($B12)&MONTH($B12)&\"D*\")+SUMIFS('VSAOI data'!$AQ:$AQ,'VSAOI data'!$AA:$AA,YEAR($B12)&MONTH($B12)&\"C*\")+SUMIFS('VSAOI data'!$AQ:$AQ,'VSAOI data'!$AA:$AA,YEAR($B12)&MONTH($B12)&\"A*\")","v":0},{"$f":"SUMIFS('VSAOI data'!$AP:$AP,'VSAOI data'!$AA:$AA,YEAR($B12)&MONTH($B12)&\"D*\")+SUMIFS('VSAOI data'!$AP:$AP,'VSAOI data'!$AA:$AA,YEAR($B12)&MONTH($B12)&\"C*\")+SUMIF('VSAOI data'!$AA:$AA,YEAR($B12)&MONTH($B12)&\"A*\",'VSAOI data'!$AP:$AP)","v":0},0,{"$f":"SUMIFS('VSAOI data'!$K:$K,'VSAOI data'!$Z:$Z,YEAR($B12)&MONTH($B12))+SUMIFS('VSAOI data'!$M:$M,'VSAOI data'!$Z:$Z,YEAR($B12)&MONTH($B12))","v":0},0,{"$f":"COUNTIFS('VSAOI data'!$AB:$AB,YEAR($B12)&MONTH($B12)&\"Tab*Ir\")-COUNTIFS('VSAOI data'!$AB:$AB,YEAR($B12)&MONTH($B12)&\"Tab4*Ir\")","v":0},{"$f":"COUNTIFS('VSAOI data'!$AB:$AB,YEAR($B12)&MONTH($B12)&\"Tab*Nav\")-COUNTIFS('VSAOI data'!$AB:$AB,YEAR($B12)&MONTH($B12)&\"Tab4*Nav\")","v":0},{"$f":"SUMIFS('VSAOI data'!$AJ:$AJ,'VSAOI data'!$AA:$AA,YEAR($B12)&MONTH($B12)&\"D*\")+SUMIFS('VSAOI data'!$AJ:$AJ,'VSAOI data'!$AA:$AA,YEAR($B12)&MONTH($B12)&\"C*\")+SUMIFS('VSAOI data'!$AJ:$AJ,'VSAOI data'!$AA:$AA,YEAR($B12)&MONTH($B12)&\"A*\")","v":0},{"$f":"SUMIFS('VSAOI data'!$N:$N,'VSAOI data'!$Z:$Z,YEAR($B12)&MONTH($B12))","v":0},{"$f":"SUMIFS('VSAOI data'!$AN:$AN,'VSAOI data'!$AA:$AA,YEAR($B12)&MONTH($B12)&\"D*\")+SUMIFS('VSAOI data'!$AN:$AN,'VSAOI data'!$AA:$AA,YEAR($B12)&MONTH($B12)&\"C*\")+SUMIFS('VSAOI data'!$AN:$AN,'VSAOI data'!$AA:$AA,YEAR($B12)&MONTH($B12)&\"A*\")","v":0},{"$f":"IF('Sakuma lapa'!$J$8=\"iepriekšējo mēnesi\",IF(C13>0,M12-L13,0),IF(C12>0,M12-L12,0))","v":0},{"$f":"SUMIFS('VSAOI data'!$P:$P,'VSAOI data'!$Z:$Z,YEAR($B12)&MONTH($B12))","v":0},{"$f":"SUMIFS('VSAOI data'!$Q:$Q,'VSAOI data'!$Z:$Z,YEAR($B12)&MONTH($B12))","v":0},{"$f":"COUNTIFS('VSAOI data'!$AB:$AB,YEAR($B12)&MONTH($B12)&\"Tab4G*\")","v":0},{"$f":"IFERROR((SUMIFS('VSAOI data'!$J:$J,'VSAOI data'!$AC:$AC,YEAR($B12)&MONTH($B12))+SUMIFS('VSAOI data'!$L:$L,'VSAOI data'!$AC:$AC,YEAR($B12)&MONTH($B12)))/COUNTIFS('VSAOI data'!$AC:$AC,YEAR($B12)&MONTH($B12)),\"-\")","v":"-"},{"$f":"IFERROR((SUMIFS('VSAOI data'!$J:$J,'VSAOI data'!$AC:$AC,YEAR($B12)&MONTH($B12))+SUMIFS('VSAOI data'!$L:$L,'VSAOI data'!$AC:$AC,YEAR($B12)&MONTH($B12)))/SUMIFS('VSAOI data'!$Q:$Q,'VSAOI data'!$AC:$AC,YEAR($B12)&MONTH($B12)),\"-\")","v":"-"},null,{"$f":"SUMIFS('VSAOI data'!$J:$J,'VSAOI data'!$Z:$Z,YEAR($B12)&MONTH($B12),'VSAOI data'!$X:$X,1)+SUMIFS('VSAOI data'!$L:$L,'VSAOI data'!$Z:$Z,YEAR($B12)&MONTH($B12),'VSAOI data'!$X:$X,1)","v":0}]
[null,{"$f":"DATE(YEAR(B12),MONTH(B12)+2,0)","v":"1900-11-30"},{"$f":"SUMIFS('VSAOI data'!$J:$J,'VSAOI data'!$Z:$Z,YEAR($B13)&MONTH($B13))+SUMIFS('VSAOI data'!$L:$L,'VSAOI data'!$Z:$Z,YEAR($B13)&MONTH($B13))","v":0},{"$f":"SUMIFS('VSAOI data'!$AQ:$AQ,'VSAOI data'!$AA:$AA,YEAR($B13)&MONTH($B13)&\"D*\")+SUMIFS('VSAOI data'!$AQ:$AQ,'VSAOI data'!$AA:$AA,YEAR($B13)&MONTH($B13)&\"C*\")+SUMIFS('VSAOI data'!$AQ:$AQ,'VSAOI data'!$AA:$AA,YEAR($B13)&MONTH($B13)&\"A*\")","v":0},{"$f":"SUMIFS('VSAOI data'!$AP:$AP,'VSAOI data'!$AA:$AA,YEAR($B13)&MONTH($B13)&\"D*\")+SUMIFS('VSAOI data'!$AP:$AP,'VSAOI data'!$AA:$AA,YEAR($B13)&MONTH($B13)&\"C*\")+SUMIF('VSAOI data'!$AA:$AA,YEAR($B13)&MONTH($B13)&\"A*\",'VSAOI data'!$AP:$AP)","v":0},0,{"$f":"SUMIFS('VSAOI data'!$K:$K,'VSAOI data'!$Z:$Z,YEAR($B13)&MONTH($B13))+SUMIFS('VSAOI data'!$M:$M,'VSAOI data'!$Z:$Z,YEAR($B13)&MONTH($B13))","v":0},0,{"$f":"COUNTIFS('VSAOI data'!$AB:$AB,YEAR($B13)&MONTH($B13)&\"Tab*Ir\")-COUNTIFS('VSAOI data'!$AB:$AB,YEAR($B13)&MONTH($B13)&\"Tab4*Ir\")","v":0},{"$f":"COUNTIFS('VSAOI data'!$AB:$AB,YEAR($B13)&MONTH($B13)&\"Tab*Nav\")-COUNTIFS('VSAOI data'!$AB:$AB,YEAR($B13)&MONTH($B13)&\"Tab4*Nav\")","v":0},{"$f":"SUMIFS('VSAOI data'!$AJ:$AJ,'VSAOI data'!$AA:$AA,YEAR($B13)&MONTH($B13)&\"D*\")+SUMIFS('VSAOI data'!$AJ:$AJ,'VSAOI data'!$AA:$AA,YEAR($B13)&MONTH($B13)&\"C*\")+SUMIFS('VSAOI data'!$AJ:$AJ,'VSAOI data'!$AA:$AA,YEAR($B13)&MONTH($B13)&\"A*\")","v":0},{"$f":"SUMIFS('VSAOI data'!$N:$N,'VSAOI data'!$Z:$Z,YEAR($B13)&MONTH($B13))","v":0},{"$f":"SUMIFS('VSAOI data'!$AN:$AN,'VSAOI data'!$AA:$AA,YEAR($B13)&MONTH($B13)&\"D*\")+SUMIFS('VSAOI data'!$AN:$AN,'VSAOI data'!$AA:$AA,YEAR($B13)&MONTH($B13)&\"C*\")+SUMIFS('VSAOI data'!$AN:$AN,'VSAOI data'!$AA:$AA,YEAR($B13)&MONTH($B13)&\"A*\")","v":0},{"$f":"IF('Sakuma lapa'!$J$8=\"iepriekšējo mēnesi\",IF(C14>0,M13-L14,0),IF(C13>0,M13-L13,0))","v":0},{"$f":"SUMIFS('VSAOI data'!$P:$P,'VSAOI data'!$Z:$Z,YEAR($B13)&MONTH($B13))","v":0},{"$f":"SUMIFS('VSAOI data'!$Q:$Q,'VSAOI data'!$Z:$Z,YEAR($B13)&MONTH($B13))","v":0},{"$f":"COUNTIFS('VSAOI data'!$AB:$AB,YEAR($B13)&MONTH($B13)&\"Tab4G*\")","v":0},{"$f":"IFERROR((SUMIFS('VSAOI data'!$J:$J,'VSAOI data'!$AC:$AC,YEAR($B13)&MONTH($B13))+SUMIFS('VSAOI data'!$L:$L,'VSAOI data'!$AC:$AC,YEAR($B13)&MONTH($B13)))/COUNTIFS('VSAOI data'!$AC:$AC,YEAR($B13)&MONTH($B13)),\"-\")","v":"-"},{"$f":"IFERROR((SUMIFS('VSAOI data'!$J:$J,'VSAOI data'!$AC:$AC,YEAR($B13)&MONTH($B13))+SUMIFS('VSAOI data'!$L:$L,'VSAOI data'!$AC:$AC,YEAR($B13)&MONTH($B13)))/SUMIFS('VSAOI data'!$Q:$Q,'VSAOI data'!$AC:$AC,YEAR($B13)&MONTH($B13)),\"-\")","v":"-"},null,{"$f":"SUMIFS('VSAOI data'!$J:$J,'VSAOI data'!$Z:$Z,YEAR($B13)&MONTH($B13),'VSAOI data'!$X:$X,1)+SUMIFS('VSAOI data'!$L:$L,'VSAOI data'!$Z:$Z,YEAR($B13)&MONTH($B13),'VSAOI data'!$X:$X,1)","v":0}]
[null,"1900-12-31",{"$f":"SUMIFS('VSAOI data'!$J:$J,'VSAOI data'!$Z:$Z,YEAR($B14)&MONTH($B14))+SUMIFS('VSAOI data'!$L:$L,'VSAOI data'!$Z:$Z,YEAR($B14)&MONTH($B14))","v":0},{"$f":"SUMIFS('VSAOI data'!$AQ:$AQ,'VSAOI data'!$AA:$AA,YEAR($B14)&MONTH($B14)&\"D*\")+SUMIFS('VSAOI data'!$AQ:$AQ,'VSAOI data'!$AA:$AA,YEAR($B14)&MONTH($B14)&\"C*\")+SUMIFS('VSAOI data'!$AQ:$AQ,'VSAOI data'!$AA:$AA,YEAR($B14)&MONTH($B14)&\"A*\")","v":0},{"$f":"SUMIFS('VSAOI data'!$AP:$AP,'VSAOI data'!$AA:$AA,YEAR($B14)&MONTH($B14)&\"D*\")+SUMIFS('VSAOI data'!$AP:$AP,'VSAOI data'!$AA:$AA,YEAR($B14)&MONTH($B14)&\"C*\")+SUMIF('VSAOI data'!$AA:$AA,YEAR($B14)&MONTH($B14)&\"A*\",'VSAOI data'!$AP:$AP)","v":0},0,{"$f":"SUMIFS('VSAOI data'!$K:$K,'VSAOI data'!$Z:$Z,YEAR($B14)&MONTH($B14))+SUMIFS('VSAOI data'!$M:$M,'VSAOI data'!$Z:$Z,YEAR($B14)&MONTH($B14))","v":0},0,{"$f":"COUNTIFS('VSAOI data'!$AB:$AB,YEAR($B14)&MONTH($B14)&\"Tab*Ir\")-COUNTIFS('VSAOI data'!$AB:$AB,YEAR($B14)&MONTH($B14)&\"Tab4*Ir\")","v":0},{"$f":"COUNTIFS('VSAOI data'!$AB:$AB,YEAR($B14)&MONTH($B14)&\"Tab*Nav\")-COUNTIFS('VSAOI data'!$AB:$AB,YEAR($B14)&MONTH($B14)&\"Tab4*Nav\")","v":0},{"$f":"SUMIFS('VSAOI data'!$AJ:$AJ,'VSAOI data'!$AA:$AA,YEAR($B14)&MONTH($B14)&\"D*\")+SUMIFS('VSAOI data'!$AJ:$AJ,'VSAOI data'!$AA:$AA,YEAR($B14)&MONTH($B14)&\"C*\")+SUMIFS('VSAOI data'!$AJ:$AJ,'VSAOI data'!$AA:$AA,YEAR($B14)&MONTH($B14)&\"A*\")","v":0},{"$f":"SUMIFS('VSAOI data'!$N:$N,'VSAOI data'!$Z:$Z,YEAR($B14)&MONTH($B14))","v":0},{"$f":"SUMIFS('VSAOI data'!$AN:$AN,'VSAOI data'!$AA:$AA,YEAR($B14)&MONTH($B14)&\"D*\")+SUMIFS('VSAOI data'!$AN:$AN,'VSAOI data'!$AA:$AA,YEAR($B14)&MONTH($B14)&\"C*\")+SUMIFS('VSAOI data'!$AN:$AN,'VSAOI data'!$AA:$AA,YEAR($B14)&MONTH($B14)&\"A*\")","v":0},{"$f":"IF('Sakuma lapa'!$J$8=\"iepriekšējo mēnesi\",IF(C15>0,M14-L15,0),IF(C14>0,M14-L14,0))","v":0},{"$f":"SUMIFS('VSAOI data'!$P:$P,'VSAOI data'!$Z:$Z,YEAR($B14)&MONTH($B14))","v":0},{"$f":"SUMIFS('VSAOI data'!$Q:$Q,'VSAOI data'!$Z:$Z,YEAR($B14)&MONTH($B14))","v":0},{"$f":"COUNTIFS('VSAOI data'!$AB:$AB,YEAR($B14)&MONTH($B14)&\"Tab4G*\")","v":0},{"$f":"IFERROR((SUMIFS('VSAOI data'!$J:$J,'VSAOI data'!$AC:$AC,YEAR($B14)&MONTH($B14))+SUMIFS('VSAOI data'!$L:$L,'VSAOI data'!$AC:$AC,YEAR($B14)&MONTH($B14)))/COUNTIFS('VSAOI data'!$AC:$AC,YEAR($B14)&MONTH($B14)),\"-\")","v":"-"},{"$f":"IFERROR((SUMIFS('VSAOI data'!$J:$J,'VSAOI data'!$AC:$AC,YEAR($B14)&MONTH($B14))+SUMIFS('VSAOI data'!$L:$L,'VSAOI data'!$AC:$AC,YEAR($B14)&MONTH($B14)))/SUMIFS('VSAOI data'!$Q:$Q,'VSAOI data'!$AC:$AC,YEAR($B14)&MONTH($B14)),\"-\")","v":"-"},null,{"$f":"SUMIFS('VSAOI data'!$J:$J,'VSAOI data'!$Z:$Z,YEAR($B14)&MONTH($B14),'VSAOI data'!$X:$X,1)+SUMIFS('VSAOI data'!$L:$L,'VSAOI data'!$Z:$Z,YEAR($B14)&MONTH($B14),'VSAOI data'!$X:$X,1)","v":0}]
[null,"Kopā:",{"$f":"SUM(C3:C14)","v":0},{"$f":"SUM(D3:D14)","v":0},{"$f":"SUM(E3:E14)","v":0},{"$f":"SUM(F3:F14)","v":0},{"$f":"SUM(G3:G14)","v":0},null,null,null,null,{"$f":"SUM(L3:L14)","v":0},{"$f":"SUM(M3:M14)","v":0},{"$f":"SUM(N3:N14)","v":0},{"$f":"SUM(O3:O14)","v":0},{"$f":"SUM(P3:P14)","v":0},null,null,null,null,{"$f":"SUM(U3:U14)","v":0}]
[]
[null,"VG aprēķīns"]
[null,"Aprēķ. novirze",{"$f":"C15-C17","v":0},{"$f":"D15-D17","v":0},0,null,{"$f":"G15-G17","v":0},null,null,null,null,{"$f":"L15-L17","v":0},null,null,{"$f":"O15-O17","v":0}]
[]
[null,null,null,null,null,null,"(+ parāds, - pārmaksa)",null,null,null,null,"(+ parāds, - pārmaksa)",null,null,"(+ parāds, - pārmaksa)"]
[null,null,null,null,null,null,"VSAOI",null,null,null,null,"IIN",null,null,"Riska nodeva"]
[null,null,null,null,null,null,null,"VG sakuma saldo",null,null,null,null,"VG sakuma saldo",null,null,"VG sakuma saldo"]
[null,null,null,null,null,null,{"$f":"'VSAOI vertikāli'!O39","v":0},"Aprēķināts - Deklarācija",null,null,null,{"$f":"'VSAOI vertikāli'!O47","v":0},"Aprēķināts ",null,{"$f":"'VSAOI vertikāli'!O55","v":0},"Aprēķināts "]
[null,null,null,null,null,null,{"$f":"'VSAOI vertikāli'!O40","v":0},"Aprēķināts - Citi",null,null,null,{"$f":"'VSAOI vertikāli'!O48","v":0},"Aprēķināts - CIti",null,{"$f":"'VSAOI vertikāli'!O56","v":0},"Aprēķināts "]
[null,null,null,null,null,null,{"$f":"G15-SUM(G23:G24)","v":0},"Apr. starpība",null,null,null,{"$f":"L15-SUM(L23:L24)","v":0},"Apr. starpība",null,{"$f":"O15-SUM(O23:O24)","v":0},"Apr. starpība"]
[null,null,null,null,null,null,{"$f":"'VSAOI vertikāli'!O41","v":0},"Iemaksa/Atmaksa/Pārvietošana",null,null,null,{"$f":"'VSAOI vertikāli'!O49","v":0},"Iemaksa/Atmaksa/Pārvietošana"," ",{"$f":"'VSAOI vertikāli'!O57","v":0},"Iemaksa/Atmaksa/Pārvietošana"]
[null,null,null,null,null,null,null,"VG  beigu saldo",null,null,null,null,"VG  beigu saldo",null,null,"VG  beigu saldo"]
[null,null,null,null,null,null,{"$f":"IF(G27=\"\",\"-\",G27-SUM(G22:G23,G26))","v":"-"},"Saldo starpība",null,null,null,{"$f":"IF(L27=\"\",\"-\",L27-SUM(L22:L23,L26))","v":"-"},"Saldo starpība",null,{"$f":"IF(O27=\"\",\"-\",O27-SUM(O22:O23,O26))","v":"-"},"Saldo starpība"]

{"sheet":"VSAOI pa darbiniekiem","index":10,"n_rows":2,"n_cols":17,"rows_kept":2,"cut":false,"hidden":true,"merged":[]}
[]
[null,"Darbienieks","Statuss","Periods","Bruto alga","Aprēķinātās darba devēja VSAOI","Aprēķinātās darba ņēmēja VSAOI","starpības","KOPĀ VSAOI","Aprēķinātais\n IIN (par iepr. Menesi)","Riska nodeva","Nostrādātās stundas","Minimālā stundas likme","Stundas likme","80% no vid.st.\nlikmes valstī","St. likmen \nmēneša\nizmaiņas","DokId"]

{"sheet":"Ienākumi pa gruppam - Alga","index":11,"n_rows":11,"n_cols":8,"rows_kept":11,"cut":false,"hidden":false,"merged":[]}
[]
[null,null,null,"Kritērijs (EUR)","Skaits","%",null,"Bruto alga = Ienākumi + Precizētie ienākumi"]
[null,0.01,{"$f":"ROUND('Sakuma lapa'!$R$12,2)","v":0},{"$f":"B3&\"-\"&C3","v":"0.01-0"},{"$f":"COUNTIF($E$11:$P$65536,\">=\"&B3)-E4-E5-E6","v":0},{"$f":"E3/SUM($E$3:$E$6)","v":{"$error":"#DIV/0!"}}]
[null,{"$f":"C3+0.01","v":0.01},{"$f":"ROUND(B4*2,0)","v":0},{"$f":"B4&\"-\"&C4","v":"0.01-0"},{"$f":"COUNTIF($E$11:$P$65536,\">=\"&B4)-E5-E6","v":0},{"$f":"E4/SUM($E$3:$E$6)","v":{"$error":"#DIV/0!"}}]
[null,{"$f":"C4+0.01","v":0.01},{"$f":"ROUND(B5*2,0)","v":0},{"$f":"B5&\"-\"&C5","v":"0.01-0"},{"$f":"COUNTIF($E$11:$P$65536,\">=\"&B5)-E6","v":0},{"$f":"E5/SUM($E$3:$E$6)","v":{"$error":"#DIV/0!"}}]
[null,{"$f":"C5+0.01","v":0.01},null,{"$f":"B6&\"+\"&C6","v":"0.01+"},{"$f":"COUNTIF($E$11:$P$65536,\">=\"&B6)","v":0},{"$f":"E6/SUM($E$3:$E$6)","v":{"$error":"#DIV/0!"}}]
[]
[null,null,null,"Sum of Bruto alga","Gads","Menesis"]
[null,null,null,null,"(blank)"]
[null,null,null,"Persona2","(blank)"]
[null,null,null,"(blank)",0]

{"sheet":"Ienākumi pa gruppam - st.likme","index":12,"n_rows":11,"n_cols":8,"rows_kept":11,"cut":false,"hidden":false,"merged":[]}
[]
[null,null,null,"Kritērijs (EUR)","Skaits","%",null,"Bruto alga = Ienākumi + Precizētie ienākumi"]
[null,0.01,{"$f":"ROUND('Sakuma lapa'!R28,2)","v":0},{"$f":"B3&\"-\"&C3","v":"0.01-0"},{"$f":"COUNTIF($E$11:$P$65536,\">=\"&B3)-E4-E5-E6","v":0},{"$f":"E3/SUM($E$3:$E$6)","v":{"$error":"#DIV/0!"}}]
[null,{"$f":"C3+0.01","v":0.01},{"$f":"B4*3","v":0.03},{"$f":"B4&\"-\"&C4","v":"0.01-0.03"},{"$f":"COUNTIF($E$11:$P$65536,\">=\"&B4)-E5-E6","v":0},{"$f":"E4/SUM($E$3:$E$6)","v":{"$error":"#DIV/0!"}}]
[null,{"$f":"C4+0.01","v":0.04},{"$f":"B5*2","v":0.08},{"$f":"B5&\"-\"&C5","v":"0.04-0.08"},{"$f":"COUNTIF($E$11:$P$65536,\">=\"&B5)-E6","v":0},{"$f":"E5/SUM($E$3:$E$6)","v":{"$error":"#DIV/0!"}}]
[null,{"$f":"C5+0.01","v":0.09},null,{"$f":"B6&\"+\"&C6","v":"0.09+"},{"$f":"COUNTIF($E$11:$P$65536,\">=\"&B6)","v":0},{"$f":"E6/SUM($E$3:$E$6)","v":{"$error":"#DIV/0!"}}]
[]
[null,null,null,"Vid. st. likme ","Gads","Menesis"]
[null,null,null,null,"(blank)"]
[null,null,null,"Persona2","(blank)"]
[null,null,null,"(blank)"]

{"sheet":"Format","index":13,"n_rows":100,"n_cols":17,"rows_kept":100,"cut":false,"hidden":true,"merged":[]}
[]
[null,"Darbienieks","Statuss","Periods","Bruto alga","Aprēķinātās darba devēja VSAOI","Aprēķinātās darba ņēmēja VSAOI","starpības","KOPĀ VSAOI","Aprēķinātais\n IIN (par iepr. Menesi)","Riska nodeva","Nostrādātās stundas","Minimālā stundas likme","Stundas likme","80% no vid.st.\nlikmes valstī","St. likmen \nmēneša\nizmaiņas","DokId"]
[null,null,null,null,{"$f":"SUMIFS('VSAOI data'!$J:$J,'VSAOI data'!$D:$D,$B3)+SUMIFS('VSAOI data'!$L:$L,'VSAOI data'!$D:$D,$B3)","v":0},{"$f":"SUMIFS('VSAOI data'!$AQ:$AQ,'VSAOI data'!$D:$D,$B3)","v":0},{"$f":"SUMIFS('VSAOI data'!$AP:$AP,'VSAOI data'!$D:$D,$B3)","v":0},{"$f":"I3-SUM(F3:G3)","v":0},{"$f":"SUMIFS('VSAOI data'!$K:$K,'VSAOI data'!$D:$D,$B3)+SUMIFS('VSAOI data'!$M:$M,'VSAOI data'!$D:$D,$B3)","v":0},{"$f":"SUMIFS('VSAOI data'!$N:$N,'VSAOI data'!$D:$D,$B3)","v":0},{"$f":"SUMIFS('VSAOI data'!$P:$P,'VSAOI data'!$D:$D,$B3)","v":0},{"$f":"SUMIFS('VSAOI data'!$Q:$Q,'VSAOI data'!$D:$D,$B3)","v":0},{"$f":"IF(COUNTIFS('VSAOI data'!$AE:$AE,$B3&\"*\")=0,\"-\",(SUMIFS('VSAOI data'!$J:$J,'VSAOI data'!$AE:$AE,$B3&\"*\")+SUMIFS('VSAOI data'!$L:$L,'VSAOI data'!$AE:$AE,$B3&\"*\"))\n/COUNTIFS('VSAOI data'!$AE:$AE,$B3&\"*\"))","v":0},{"$f":"IF(SUMIFS('VSAOI data'!$Q:$Q,'VSAOI data'!$AE:$AE,$B3&\"*\")=0,\"-\",(SUMIFS('VSAOI data'!$J:$J,'VSAOI data'!$D:$D,$B3)+SUMIFS('VSAOI data'!$L:$L,'VSAOI data'!$AE:$AE,$B3&\"*\"))\n/SUMIFS('VSAOI data'!$Q:$Q,'VSAOI data'!$AE:$AE,$B3&\"*\"))","v":"-"}]
[null,null,null,null,{"$f":"SUMIFS('VSAOI data'!$J:$J,'VSAOI data'!$D:$D,$B4,'VSAOI data'!$E:$E,YEAR($D4),'VSAOI data'!$F:$F,MONTH($D4))+SUMIFS('VSAOI data'!$L:$L,'VSAOI data'!$D:$D,$B4,'VSAOI data'!$E:$E,YEAR($D4),'VSAOI data'!$F:$F,MONTH($D4))","v":0},{"$f":"SUMIFS('VSAOI data'!$AQ:$AQ,'VSAOI data'!$D:$D,$B4,'VSAOI data'!$E:$E,YEAR($D4),'VSAOI data'!$F:$F,MONTH($D4))","v":0},{"$f":"SUMIFS('VSAOI data'!$AP:$AP,'VSAOI data'!$D:$D,$B4,'VSAOI data'!$E:$E,YEAR($D4),'VSAOI data'!$F:$F,MONTH($D4))","v":0},{"$f":"I4-SUM(F4:G4)","v":0},{"$f":"SUMIFS('VSAOI data'!$K:$K,'VSAOI data'!$D:$D,$B4,'VSAOI data'!$E:$E,YEAR($D4),'VSAOI data'!$F:$F,MONTH($D4))+SUMIFS('VSAOI data'!$M:$M,'VSAOI data'!$D:$D,$B4,'VSAOI data'!$E:$E,YEAR($D4),'VSAOI data'!$F:$F,MONTH($D4))","v":0},{"$f":"SUMIFS('VSAOI data'!$N:$N,'VSAOI data'!$D:$D,$B4,'VSAOI data'!$E:$E,YEAR($D4),'VSAOI data'!$F:$F,MONTH($D4))","v":0},{"$f":"SUMIFS('VSAOI data'!$P:$P,'VSAOI data'!$D:$D,$B4,'VSAOI data'!$E:$E,YEAR($D4),'VSAOI data'!$F:$F,MONTH($D4))","v":0},{"$f":"SUMIFS('VSAOI data'!$Q:$Q,'VSAOI data'!$D:$D,$B4,'VSAOI data'!$E:$E,YEAR($D4),'VSAOI data'!$F:$F,MONTH($D4))","v":0},{"$f":"SUMIF('Sakuma lapa'!$N$15:$N$26,D4,'Sakuma lapa'!$R$15:$R$26)","v":0},{"$f":"IF(L4=0,\"-\",ROUND(E4/L4,2))","v":"-"},null,{"$f":"IFERROR(IF(D3=\"\",\"\",N4-N3),\"-\")","v":""}]
[]
[]
[]
[null,null,null,null,null,null,null,null,null,{"$f":"IF(AND(I8=\"\",OR(M8<>\"\",L8<>\"\")),IF(L8=\"\",M8,L8)-1,IF(I8<>\"\",I8,IF(H8<'Sakuma lapa'!$F$16,'Sakuma lapa'!$F$16,\"\")))","v":""}]
[]
[]
[]
[]
[]
[]
[]
[]
[]
[]
[]
[]
[]
[]
[]
[]
[]
[]
[]
[null,null,null,"Periods","DD","DST","VidSt/D","Min. Likme","Min. alga"]
[null,null,null,"2026.01",21,168,{"$f":"F29/E29","v":8},{"$f":"I29/F29","v":4.6428571428571432},780]
[null,null,null,"2026.02",20,160,8,{"$f":"I30/F30","v":4.875},780]
[null,null,null,"2026.03",22,176,8,4.4318181818181817,780]
[null,null,null,"2026.04",20,158,7.9,4.9367088607594933,780]
[null,null,null,"2026.05",19,152,8,5.1315789473684212,780]
[null,null,null,"2026.06",20,159,7.95,4.9056603773584904,780]
[null,null,null,"2026.07",23,184,8,4.2391304347826084,780]
[null,null,null,"2026.08",21,168,8,4.6428571428571432,780]
[null,null,null,"2026.09",22,176,8,4.4318181818181817,780]
[null,null,null,"2026.10",22,176,8,4.4318181818181817,780]
[null,null,null,"2026.11",20,159,7.95,4.9056603773584904,780]
[null,null,null,"2026.12",20,158,7.9,4.9367088607594933,780]
[null,null,null,"2025.01",22,176,{"$f":"F41/E41","v":8},4.0217000000000001,740]
[null,null,null,"2025.02",20,160,8,4.625,740]
[null,null,null,"2025.03",21,168,8,4.4047999999999998,740]
[null,null,null,"2025.04",20,158,7.9,4.2045000000000003,740]
[null,null,null,"2025.05",20,160,8,4.2045000000000003,740]
[null,null,null,"2025.06",19,152,8,4.4047999999999998,740]
[null,null,null,"2025.07",23,184,8,4.0217000000000001,740]
[null,null,null,"2025.08",21,168,8,4.4047999999999998,740]
[null,null,null,"2025.09",22,176,8,4.2045000000000003,740]
[null,null,null,"2025.10",23,184,8,4.0217000000000001,740]
[null,null,null,"2025.11",19,151,7.9473684210526319,4.625,740]
[null,null,null,"2025.12",19,150,7.8947368421052628,4.0217000000000001,740]
[null,null,null,"2024.01",22,176,8,3.8043,700]
[null,null,null,"2024.02",21,168,8,4.1666999999999996,700]
[null,null,null,"2024.03",20,159,7.95,4.1666999999999996,700]
[null,null,null,"2024.04",21,167,7.9523809523809526,3.9773000000000001,700]
[null,null,null,"2024.05",21,167,7.9523809523809526,3.8043,700]
[null,null,null,"2024.06",19,152,8,4.375,700]
[null,null,null,"2024.07",23,184,8,3.8043,700]
[null,null,null,"2024.08",22,175,7.9545454545454541,3.9773000000000001,700]
[null,null,null,"2024.09",21,168,8,4.1666999999999996,700]
[null,null,null,"2024.10",23,184,8,3.8043,700]
[null,null,null,"2024.11",20,160,8,4.1666999999999996,700]
[null,null,null,"2024.12",18,142,7.8888888888888893,3.9773000000000001,700]
[null,null,null,"2023.01",22,176,8,3.5226999999999999,620]
[null,null,null,"2023.02",20,160,8,3.875,620]
[null,null,null,"2023.03",23,184,8,3.3696000000000002,620]
[null,null,null,"2023.04",18,143,7.9444444444444446,3.875,620]
[null,null,null,"2023.05",20,159,7.95,3.3696000000000002,620]
[null,null,null,"2023.06",21,167,7.9523809523809526,3.5226999999999999,620]
[null,null,null,"2023.07",20,160,8,3.6905000000000001,620]
[null,null,null,"2023.08",23,184,8,3.3696000000000002,620]
[null,null,null,"2023.09",21,168,8,3.6905000000000001,620]
[null,null,null,"2023.10",22,176,8,3.5226999999999999,620]
[null,null,null,"2023.11",21,167,7.9523809523809526,3.5226999999999999,620]
[null,null,null,"2023.12",19,152,8,3.6905000000000001,620]
[null,null,null,"2022.01",21,168,8,2.9761904761904763,500]
[null,null,null,"2022.02",20,160,8,3.125,500]
[null,null,null,"2022.03",23,184,8,2.7173913043478262,500]
[null,null,null,"2022.04",19,151,7.9473684210526319,3.3112582781456954,500]
[null,null,null,"2022.05",21,167,7.9523809523809526,2.9940119760479043,500]
[null,null,null,"2022.06",20,159,7.95,3.1446540880503147,500]
[null,null,null,"2022.07",21,168,8,2.9761904761904763,500]
[null,null,null,"2022.08",23,184,8,2.7173913043478262,500]
[null,null,null,"2022.09",22,176,8,2.8409090909090908,500]
[null,null,null,"2022.10",21,168,8,2.9761904761904763,500]
[null,null,null,"2022.11",21,167,7.9523809523809526,2.9940119760479043,500]
[null,null,null,"2022.12",21,166,7.9047619047619051,3.0120481927710845,500]
[null,null,null,"2021.01",20,160,8,2.98,500]
[null,null,null,"2021.02",20,160,8,3.12,500]
[null,null,null,"2021.03",23,184,8,2.72,500]
[null,null,null,"2021.04",20,158,7.9,2.84,500]
[null,null,null,"2021.05",20,159,7.95,2.98,500]
[null,null,null,"2021.06",20,159,7.95,2.84,500]
[null,null,null,"2021.07",22,176,8,2.84,500]
[null,null,null,"2021.08",22,176,8,2.84,500]
[null,null,null,"2021.09",22,176,8,2.84,500]
[null,null,null,"2021.10",21,168,8,2.98,500]
[null,null,null,"2021.11",21,167,7.9523809523809526,2.84,500]
[null,null,null,"2021.12",21,166,7.9047619047619051,2.72,500]

{"sheet":"Tiesibas","index":14,"n_rows":18,"n_cols":15,"rows_kept":18,"cut":false,"hidden":true,"merged":[]}
[]
[null,null,null,"DatumsNo","2025-09-09",null,null,"TisWbName","ThisWbCustId","RN","ActivationDate","CompName/Path","Processor/HddSerialId","PROCESSOR_REVISION","USERNAME"]
[null,null,null,"DatumsLidz","2025-09-20",null,null,"VSAOI",1,25,"2020-09-09","-","-","-","-"]
[null,null,null,"Skaitītājs (demo versijai)"]
[]
[null,null,null,"ThisWbName","VSAOI"]
[null,null,null,"ThisWbCustId",1]
[null,null,null,"Limenis","D"]
[]
[null,null,null,"Nesakonfigurētas tiesības!"]
[null,null,null,"Nesakonfigurētas tiesības versijai!"]
[null,null,null,"Versijas periods ir beidzies!"]
[null,null,null,"Versijas apstrādes uzņēmuma RegNr neatbilst definētam!"]
[null,null,null,"Izvelētais RegNr nav definēts šajā versijā!"]
[null,null,null,"Lūdzu aizpildiet reģistrācijas numuru!"]
[null,null,null,"Versijas Importa/Eksporta skaits sasniedza 20!"]
[null,null,null,"Lūdzu veikt faila aktivāciju uz lapas \"Instrukcija\"!"]
[null,null,null,"Fails jau ir aktivizēts šim datoram un lietotājam!"]